Payment Date,Transaction Number,Net Amount,Supplier (Beneficiary) Name,Local Supplier Internal Reference,Directorate / Service Where Expenditure Incurred,Service Category Label,Service Category URI,SeRCOP Expenditure Category,SeRCOP Expenditure Code,Purpose of Spend,SeRCOP Detailed Expenditure Code,Capital/Revenue,Procurement Classification
29-Sep-2017,7003983,3.32,AMAZON DIGITAL DWNLDS,386594,"Health, Education, Care and Safeguarding",Children's & Education Services,103,Supplies and Services,504,Miscellaneous Expenses,5034,Revenue,18.BOOKS & PUBLICATIONS
29-Sep-2017,7003983,4.16,AMAZON DIGITAL DWNLDS,386594,"Environment, Housing & Leisure",Cultural & Related Services,104,Supplies and Services,504,Equipment,5023,Revenue,18.BOOKS & PUBLICATIONS
29-Sep-2017,7003983,48.07,AMAZON DIGITAL DWNLDS,386594,Chief Executive Office,Central Services,102,Supplies and Services,504,"Printing, Stationery and General Office Expenses",5026,Revenue,18.BOOKS & PUBLICATIONS
29-Sep-2017,7003984,41.58,SHELL TYNEMOUTH,385893,"Environment, Housing & Leisure",Cultural & Related Services,104,Transport,503,Direct Transport Costs,5016,Revenue,28.FUEL
29-Sep-2017,7003985,37.98,ESSENTIALAIDS.COM LTD,385878,"Health, Education, Care and Safeguarding",Adult Social Care,101,Supplies and Services,504,Equipment,5023,Revenue,SOCIAL SUPP
29-Sep-2017,7003986,450.00,HILLHEADS POULTRY FARM,315771,"Environment, Housing & Leisure",Cultural & Related Services,104,Supplies and Services,504,Equipment,5023,Revenue,03.GROCERIES & PROVISIONS
29-Sep-2017,7003987,270.26,MARK TONEY & CO LTD,013184,"Environment, Housing & Leisure",Cultural & Related Services,104,Supplies and Services,504,Equipment,5023,Revenue,16.EVENTS & PROMOTIONS
29-Sep-2017,7003987,785.14,MARK TONEY & CO LTD,013184,"Environment, Housing & Leisure",Adult Social Care,101,Supplies and Services,504,Equipment,5023,Revenue,16.EVENTS & PROMOTIONS
29-Sep-2017,7003987,703.12,MARK TONEY & CO LTD,013184,"Environment, Housing & Leisure",Cultural & Related Services,104,Supplies and Services,504,Equipment,5023,Revenue,16.EVENTS & PROMOTIONS
29-Sep-2017,7003987,763.77,MARK TONEY & CO LTD,013184,"Environment, Housing & Leisure",Cultural & Related Services,104,Supplies and Services,504,Equipment,5023,Revenue,16.EVENTS & PROMOTIONS
29-Sep-2017,7003987,357.64,MARK TONEY & CO LTD,013184,"Environment, Housing & Leisure",Cultural & Related Services,104,Supplies and Services,504,Equipment,5023,Revenue,16.EVENTS & PROMOTIONS
29-Sep-2017,7003988,121.92,C/GAS KENDAL,385638,"Health, Education, Care and Safeguarding",Children's & Education Services,103,Premises-Related Expenditure,502,Energy Costs,5006,Revenue,27.GAS
29-Sep-2017,7003989,45.00,PASTA KING (UK) LIMITED,366311,Commissioning & Investment,Children's & Education Services,103,Supplies and Services,504,Equipment,5023,Revenue,03.GROCERIES & PROVISIONS
29-Sep-2017,7003990,75.50,HER MAJESTY'S PASSPORT OFFICE,342302,"Health, Education, Care and Safeguarding",Children's & Education Services,103,Third Party Payments,505,Other Establishments,5041,Revenue,00.NON INFLUENCIBLE
29-Sep-2017,7003990,18.50,HER MAJESTY'S PASSPORT OFFICE,342302,"Health, Education, Care and Safeguarding",Children's & Education Services,103,Supplies and Services,504,Miscellaneous Expenses,5034,Revenue,00.NON INFLUENCIBLE
29-Sep-2017,7003990,27.75,HER MAJESTY'S PASSPORT OFFICE,342302,"Health, Education, Care and Safeguarding",Children's & Education Services,103,Supplies and Services,504,Miscellaneous Expenses,5034,Revenue,00.NON INFLUENCIBLE
29-Sep-2017,7003990,27.75,HER MAJESTY'S PASSPORT OFFICE,342302,"Health, Education, Care and Safeguarding",Children's & Education Services,103,Third Party Payments,505,Private Contractors,5042,Revenue,00.NON INFLUENCIBLE
29-Sep-2017,7003990,-23.40,HER MAJESTY'S PASSPORT OFFICE,342302,"Health, Education, Care and Safeguarding",Children's & Education Services,103,Supplies and Services,504,Miscellaneous Expenses,5034,Revenue,00.NON INFLUENCIBLE
29-Sep-2017,7003990,60.42,HER MAJESTY'S PASSPORT OFFICE,342302,"Health, Education, Care and Safeguarding",Children's & Education Services,103,Supplies and Services,504,Miscellaneous Expenses,5034,Revenue,00.NON INFLUENCIBLE
29-Sep-2017,7003990,-46.80,HER MAJESTY'S PASSPORT OFFICE,342302,"Health, Education, Care and Safeguarding",Children's & Education Services,103,Supplies and Services,504,Miscellaneous Expenses,5034,Revenue,00.NON INFLUENCIBLE
29-Sep-2017,7003990,-23.40,HER MAJESTY'S PASSPORT OFFICE,342302,"Health, Education, Care and Safeguarding",Children's & Education Services,103,Supplies and Services,504,Miscellaneous Expenses,5034,Revenue,00.NON INFLUENCIBLE
29-Sep-2017,7003990,37.00,HER MAJESTY'S PASSPORT OFFICE,342302,"Health, Education, Care and Safeguarding",Children's & Education Services,103,Supplies and Services,504,Miscellaneous Expenses,5034,Revenue,00.NON INFLUENCIBLE
29-Sep-2017,7003990,9.25,HER MAJESTY'S PASSPORT OFFICE,342302,"Health, Education, Care and Safeguarding",Children's & Education Services,103,Supplies and Services,504,Miscellaneous Expenses,5034,Revenue,00.NON INFLUENCIBLE
29-Sep-2017,7003990,70.20,HER MAJESTY'S PASSPORT OFFICE,342302,"Health, Education, Care and Safeguarding",Children's & Education Services,103,Supplies and Services,504,Miscellaneous Expenses,5034,Revenue,00.NON INFLUENCIBLE
29-Sep-2017,7003990,75.50,HER MAJESTY'S PASSPORT OFFICE,342302,"Health, Education, Care and Safeguarding",Children's & Education Services,103,Third Party Payments,505,Other Establishments,5041,Revenue,00.NON INFLUENCIBLE
29-Sep-2017,7003991,18.37,RIVER ISLAND 400,385067,"Health, Education, Care and Safeguarding",Children's & Education Services,103,Supplies and Services,504,"Clothing, Uniforms and Laundry",5025,Revenue,CLOTH ADULT
29-Sep-2017,7003992,22.48,TYNE CYCLES,356440,"Health, Education, Care and Safeguarding",Children's & Education Services,103,Supplies and Services,504,Equipment,5023,Revenue,26.BICYCLES
29-Sep-2017,7003993,171.00,BISHOP SPORTS & LEISURE LTD,303156,"Environment, Housing & Leisure",Cultural & Related Services,104,Supplies and Services,504,Equipment,5023,Revenue,SPORTS EQUIP
29-Sep-2017,7003994,167.50,DVLA,322925,"Environment, Housing & Leisure",Unallocated,N/A,Transport,503,Direct Transport Costs,5016,Revenue,00.NON INFLUENCIBLE
29-Sep-2017,7003994,32.50,DVLA,322925,"Environment, Housing & Leisure",Unallocated,N/A,Transport,503,Direct Transport Costs,5016,Revenue,00.NON INFLUENCIBLE
29-Sep-2017,7003994,202.50,DVLA,322925,"Environment, Housing & Leisure",Unallocated,N/A,Transport,503,Direct Transport Costs,5016,Revenue,00.NON INFLUENCIBLE
29-Sep-2017,7003995,270.00,SPORTS DIRECT,373833,Commissioning & Investment,Children's & Education Services,103,Supplies and Services,504,"Printing, Stationery and General Office Expenses",5026,Revenue,CLOTH ADULT
29-Sep-2017,7003996,130.00,LOW FELL REMOVALS,302158,Housing Revenue Account,Housing Revenue Account,N/A,Supplies and Services,504,Miscellaneous Expenses,5034,Revenue,18.REMOVALS
29-Sep-2017,7003996,120.00,LOW FELL REMOVALS,302158,"Health, Education, Care and Safeguarding",Children's & Education Services,103,Supplies and Services,504,Miscellaneous Expenses,5034,Revenue,18.REMOVALS
29-Sep-2017,7003997,392.61,DALLAS CARPETS LTD,307445,"Health, Education, Care and Safeguarding",Children's & Education Services,103,Supplies and Services,504,Equipment,5023,Revenue,10.BLINDS CARPETS CURTAIN
29-Sep-2017,7003997,333.33,DALLAS CARPETS LTD,307445,"Health, Education, Care and Safeguarding",Children's & Education Services,103,Supplies and Services,504,Equipment,5023,Revenue,10.BLINDS CARPETS CURTAIN
29-Sep-2017,7003998,13.33,VIKING SAFETY LTD,022071,"Environment, Housing & Leisure",Environmental & Regulatory Services,105,Third Party Payments,505,Private Contractors,5042,Revenue,11.WORKWEAR
29-Sep-2017,7003998,7.42,VIKING SAFETY LTD,022071,"Environment, Housing & Leisure",Environmental & Regulatory Services,105,Third Party Payments,505,Private Contractors,5042,Revenue,11.WORKWEAR
29-Sep-2017,7003999,14.97,JTF WHOLESALE,368725,"Health, Education, Care and Safeguarding",Children's & Education Services,103,Supplies and Services,504,Equipment,5023,Revenue,03.GROCERIES & PROVISIONS
29-Sep-2017,7003999,142.71,JTF WHOLESALE,368725,"Environment, Housing & Leisure",Environmental & Regulatory Services,105,Supplies and Services,504,Equipment,5023,Revenue,03.GROCERIES & PROVISIONS
29-Sep-2017,7003999,74.38,JTF WHOLESALE,368725,"Environment, Housing & Leisure",Environmental & Regulatory Services,105,Supplies and Services,504,Equipment,5023,Revenue,03.GROCERIES & PROVISIONS
29-Sep-2017,7003999,12.99,JTF WHOLESALE,368725,"Environment, Housing & Leisure",Environmental & Regulatory Services,105,Supplies and Services,504,"Clothing, Uniforms and Laundry",5025,Revenue,03.GROCERIES & PROVISIONS
29-Sep-2017,7003999,11.97,JTF WHOLESALE,368725,"Environment, Housing & Leisure",Cultural & Related Services,104,Supplies and Services,504,Equipment,5023,Revenue,03.GROCERIES & PROVISIONS
29-Sep-2017,7003999,43.90,JTF WHOLESALE,368725,"Environment, Housing & Leisure",Cultural & Related Services,104,Supplies and Services,504,Equipment,5023,Revenue,03.GROCERIES & PROVISIONS
29-Sep-2017,7003999,52.51,JTF WHOLESALE,368725,"Health, Education, Care and Safeguarding",Children's & Education Services,103,Supplies and Services,504,Equipment,5023,Revenue,03.GROCERIES & PROVISIONS
29-Sep-2017,7003999,84.68,JTF WHOLESALE,368725,"Environment, Housing & Leisure",Environmental & Regulatory Services,105,Supplies and Services,504,Equipment,5023,Revenue,03.GROCERIES & PROVISIONS
29-Sep-2017,7003999,47.90,JTF WHOLESALE,368725,"Health, Education, Care and Safeguarding",Children's & Education Services,103,Supplies and Services,504,Equipment,5023,Revenue,03.GROCERIES & PROVISIONS
29-Sep-2017,7003999,29.95,JTF WHOLESALE,368725,"Environment, Housing & Leisure",Cultural & Related Services,104,Supplies and Services,504,Equipment,5023,Revenue,03.GROCERIES & PROVISIONS
29-Sep-2017,7004000,178.30,ARGOS RETAIL GROUP,376473,"Health, Education, Care and Safeguarding",Children's & Education Services,103,Third Party Payments,505,Other Establishments,5041,Revenue,10.HOUSEHOLD
29-Sep-2017,7004001,25.85,GM PACKAGING (UK) LTD,312623,"Environment, Housing & Leisure",Cultural & Related Services,104,Supplies and Services,504,Equipment,5023,Revenue,03.DISPOSABLES
29-Sep-2017,7004001,66.60,GM PACKAGING (UK) LTD,312623,Commissioning & Investment,Children's & Education Services,103,Supplies and Services,504,Equipment,5023,Revenue,03.DISPOSABLES
29-Sep-2017,7004001,120.15,GM PACKAGING (UK) LTD,312623,Commissioning & Investment,Children's & Education Services,103,Supplies and Services,504,Equipment,5023,Revenue,03.DISPOSABLES
29-Sep-2017,7004001,589.61,GM PACKAGING (UK) LTD,312623,Commissioning & Investment,Children's & Education Services,103,Supplies and Services,504,Equipment,5023,Revenue,03.DISPOSABLES
29-Sep-2017,7004001,220.74,GM PACKAGING (UK) LTD,312623,Commissioning & Investment,Children's & Education Services,103,Supplies and Services,504,Equipment,5023,Revenue,03.DISPOSABLES
29-Sep-2017,7004001,186.27,GM PACKAGING (UK) LTD,312623,"Environment, Housing & Leisure",Adult Social Care,101,Supplies and Services,504,Equipment,5023,Revenue,03.DISPOSABLES
29-Sep-2017,7004001,226.18,GM PACKAGING (UK) LTD,312623,"Environment, Housing & Leisure",Cultural & Related Services,104,Supplies and Services,504,Equipment,5023,Revenue,03.DISPOSABLES
29-Sep-2017,7004001,-100.50,GM PACKAGING (UK) LTD,312623,"Environment, Housing & Leisure",Cultural & Related Services,104,Supplies and Services,504,Equipment,5023,Revenue,03.DISPOSABLES
29-Sep-2017,7004001,33.36,GM PACKAGING (UK) LTD,312623,Commissioning & Investment,Children's & Education Services,103,Supplies and Services,504,Equipment,5023,Revenue,03.DISPOSABLES
29-Sep-2017,7004001,232.92,GM PACKAGING (UK) LTD,312623,Commissioning & Investment,Children's & Education Services,103,Supplies and Services,504,Equipment,5023,Revenue,03.DISPOSABLES
29-Sep-2017,7004001,33.34,GM PACKAGING (UK) LTD,312623,Commissioning & Investment,Children's & Education Services,103,Supplies and Services,504,Equipment,5023,Revenue,03.DISPOSABLES
29-Sep-2017,7004002,20.00,WILKO RETAIL LIMITED,280813,Housing Revenue Account,Housing Revenue Account,N/A,Supplies and Services,504,Equipment,5023,Revenue,00.REDECORATION GRANTS
29-Sep-2017,7004002,6.25,WILKO RETAIL LIMITED,280813,"Health, Education, Care and Safeguarding",Children's & Education Services,103,Third Party Payments,505,Other Establishments,5041,Revenue,00.REDECORATION GRANTS
29-Sep-2017,7004002,2.08,WILKO RETAIL LIMITED,280813,"Environment, Housing & Leisure",Cultural & Related Services,104,Supplies and Services,504,Equipment,5023,Revenue,00.REDECORATION GRANTS
29-Sep-2017,7004002,85.08,WILKO RETAIL LIMITED,280813,Housing Revenue Account,Housing Revenue Account,N/A,Supplies and Services,504,Equipment,5023,Revenue,00.REDECORATION GRANTS
29-Sep-2017,7004002,17.08,WILKO RETAIL LIMITED,280813,Housing Revenue Account,Housing Revenue Account,N/A,Supplies and Services,504,Equipment,5023,Revenue,00.REDECORATION GRANTS
29-Sep-2017,7004002,6.67,WILKO RETAIL LIMITED,280813,"Health, Education, Care and Safeguarding",Children's & Education Services,103,Third Party Payments,505,Other Establishments,5041,Revenue,00.REDECORATION GRANTS
29-Sep-2017,7004003,60.00,MONEY CLAIM ONLINE,371608,Housing Revenue Account,Housing Services,108,Supplies and Services,504,Expenses,5030,Revenue,16.LEGAL SERVICES
29-Sep-2017,7004003,60.00,MONEY CLAIM ONLINE,371608,Housing Revenue Account,Housing Services,108,Supplies and Services,504,Expenses,5030,Revenue,16.LEGAL SERVICES
29-Sep-2017,7004003,60.00,MONEY CLAIM ONLINE,371608,Housing Revenue Account,Housing Services,108,Supplies and Services,504,Expenses,5030,Revenue,16.LEGAL SERVICES
29-Sep-2017,7004003,25.00,MONEY CLAIM ONLINE,371608,Housing Revenue Account,Housing Services,108,Supplies and Services,504,Expenses,5030,Revenue,16.LEGAL SERVICES
29-Sep-2017,7004003,185.00,MONEY CLAIM ONLINE,371608,Housing Revenue Account,Housing Services,108,Supplies and Services,504,Expenses,5030,Revenue,16.LEGAL SERVICES
29-Sep-2017,7004003,105.00,MONEY CLAIM ONLINE,371608,Housing Revenue Account,Housing Services,108,Supplies and Services,504,Expenses,5030,Revenue,16.LEGAL SERVICES
29-Sep-2017,7004003,35.00,MONEY CLAIM ONLINE,371608,Housing Revenue Account,Housing Services,108,Supplies and Services,504,Expenses,5030,Revenue,16.LEGAL SERVICES
29-Sep-2017,7004003,60.00,MONEY CLAIM ONLINE,371608,Housing Revenue Account,Housing Services,108,Supplies and Services,504,Expenses,5030,Revenue,16.LEGAL SERVICES
29-Sep-2017,7004004,223.33,WHITLEY BAY CARPET CENTRE LTD,363266,"Health, Education, Care and Safeguarding",Children's & Education Services,103,Third Party Payments,505,Other Establishments,5041,Revenue,10.BLINDS CARPETS CURTAIN
29-Sep-2017,7004005,6.99,FASTHOSTS INTERNET LIMITED,367002,"Health, Education, Care and Safeguarding",Children's & Education Services,103,Supplies and Services,504,Communications & Computing,5028,Revenue,15.SOFTWARE
29-Sep-2017,7004005,7.98,FASTHOSTS INTERNET LIMITED,367002,"Health, Education, Care and Safeguarding",Children's & Education Services,103,Supplies and Services,504,Communications & Computing,5028,Revenue,15.SOFTWARE
29-Sep-2017,7004005,6.99,FASTHOSTS INTERNET LIMITED,367002,"Health, Education, Care and Safeguarding",Children's & Education Services,103,Supplies and Services,504,Communications & Computing,5028,Revenue,15.SOFTWARE
29-Sep-2017,7004005,1.49,FASTHOSTS INTERNET LIMITED,367002,"Health, Education, Care and Safeguarding",Children's & Education Services,103,Supplies and Services,504,Communications & Computing,5028,Revenue,15.SOFTWARE
29-Sep-2017,7004005,1.99,FASTHOSTS INTERNET LIMITED,367002,"Health, Education, Care and Safeguarding",Children's & Education Services,103,Supplies and Services,504,Communications & Computing,5028,Revenue,15.SOFTWARE
29-Sep-2017,7004005,6.99,FASTHOSTS INTERNET LIMITED,367002,"Health, Education, Care and Safeguarding",Children's & Education Services,103,Supplies and Services,504,Communications & Computing,5028,Revenue,15.SOFTWARE
29-Sep-2017,7004005,1.49,FASTHOSTS INTERNET LIMITED,367002,"Health, Education, Care and Safeguarding",Children's & Education Services,103,Supplies and Services,504,Communications & Computing,5028,Revenue,15.SOFTWARE
29-Sep-2017,7004005,1.49,FASTHOSTS INTERNET LIMITED,367002,"Health, Education, Care and Safeguarding",Children's & Education Services,103,Supplies and Services,504,Communications & Computing,5028,Revenue,15.SOFTWARE
29-Sep-2017,7004005,7.98,FASTHOSTS INTERNET LIMITED,367002,"Health, Education, Care and Safeguarding",Children's & Education Services,103,Supplies and Services,504,Communications & Computing,5028,Revenue,15.SOFTWARE
29-Sep-2017,7004006,59.75,BT BUSINESS DIRECT LTD,370821,"Health, Education, Care and Safeguarding",Children's & Education Services,103,Supplies and Services,504,Miscellaneous Expenses,5034,Revenue,15.HARDWARE
29-Sep-2017,7004007,95.50,THE NATIONAL TRUST,342753,"Health, Education, Care and Safeguarding",Children's & Education Services,103,Supplies and Services,504,Miscellaneous Expenses,5034,Revenue,00.NON INFLUENCIBLE
29-Sep-2017,7004008,10.70,NORTH TYNESIDE COUNCIL,102767,"Health, Education, Care and Safeguarding",Children's & Education Services,103,Third Party Payments,505,Other Establishments,5041,Revenue,00.PUBLIC SECTOR
29-Sep-2017,7004008,80.00,NORTH TYNESIDE COUNCIL,102767,"Health, Education, Care and Safeguarding",Children's & Education Services,103,Third Party Payments,505,Other Establishments,5041,Revenue,00.PUBLIC SECTOR
29-Sep-2017,7004008,25.00,NORTH TYNESIDE COUNCIL,102767,"Health, Education, Care and Safeguarding",Children's & Education Services,103,Third Party Payments,505,Other Establishments,5041,Revenue,00.PUBLIC SECTOR
29-Sep-2017,7004008,32.92,NORTH TYNESIDE COUNCIL,102767,"Health, Education, Care and Safeguarding",Children's & Education Services,103,Third Party Payments,505,Other Establishments,5041,Revenue,00.PUBLIC SECTOR
29-Sep-2017,7004008,48.00,NORTH TYNESIDE COUNCIL,102767,"Health, Education, Care and Safeguarding",Children's & Education Services,103,Third Party Payments,505,Other Establishments,5041,Revenue,00.PUBLIC SECTOR
29-Sep-2017,7004008,79.00,NORTH TYNESIDE COUNCIL,102767,"Health, Education, Care and Safeguarding",Children's & Education Services,103,Third Party Payments,505,Other Establishments,5041,Revenue,00.PUBLIC SECTOR
29-Sep-2017,7004008,40.00,NORTH TYNESIDE COUNCIL,102767,"Health, Education, Care and Safeguarding",Children's & Education Services,103,Third Party Payments,505,Other Establishments,5041,Revenue,00.PUBLIC SECTOR
29-Sep-2017,7004008,149.87,NORTH TYNESIDE COUNCIL,102767,"Health, Education, Care and Safeguarding",Children's & Education Services,103,Third Party Payments,505,Other Establishments,5041,Revenue,00.PUBLIC SECTOR
29-Sep-2017,7004009,416.67,VILLAGE HOTEL AND LEISURE CLUB,333605,Law & Governance,Central Services,102,Supplies and Services,504,Expenses,5030,Revenue,18.CONFERENCING
29-Sep-2017,7004010,32.61,NORTHUMBRIAN WATER LIMITED,014360,"Health, Education, Care and Safeguarding",Children's & Education Services,103,Third Party Payments,505,Other Establishments,5041,Revenue,27.WATER
29-Sep-2017,7004010,37.33,NORTHUMBRIAN WATER LIMITED,014360,"Health, Education, Care and Safeguarding",Children's & Education Services,103,Third Party Payments,505,Other Establishments,5041,Revenue,27.WATER
29-Sep-2017,7004011,60.00,H M COURT SERVICES,379509,Housing Revenue Account,Housing Revenue Account,N/A,Supplies and Services,504,Expenses,5030,Revenue,00.NON INFLUENCIBLE
29-Sep-2017,7004011,20.00,H M COURT SERVICES,379509,Housing Revenue Account,Housing Revenue Account,N/A,Supplies and Services,504,Expenses,5030,Revenue,00.NON INFLUENCIBLE
29-Sep-2017,7004012,3.75,ICELAND FROZEN FOODS PLC,308154,"Health, Education, Care and Safeguarding",Children's & Education Services,103,Third Party Payments,505,Other Establishments,5041,Revenue,03.GROCERIES & PROVISIONS
29-Sep-2017,7004013,120.00,POUNDWORLD,381648,Commissioning & Investment,Children's & Education Services,103,Supplies and Services,504,"Printing, Stationery and General Office Expenses",5026,Revenue,10.BLINDS CARPETS CURTAIN
29-Sep-2017,7004013,380.83,POUNDWORLD,381648,Commissioning & Investment,Children's & Education Services,103,Supplies and Services,504,"Printing, Stationery and General Office Expenses",5026,Revenue,10.BLINDS CARPETS CURTAIN
29-Sep-2017,7004013,80.00,POUNDWORLD,381648,Commissioning & Investment,Children's & Education Services,103,Supplies and Services,504,"Printing, Stationery and General Office Expenses",5026,Revenue,10.BLINDS CARPETS CURTAIN
29-Sep-2017,7004014,15.03,NEW LOOK,382612,"Health, Education, Care and Safeguarding",Children's & Education Services,103,Third Party Payments,505,Other Establishments,5041,Revenue,CLOTH ADULT
29-Sep-2017,7004014,15.40,NEW LOOK,382612,"Health, Education, Care and Safeguarding",Children's & Education Services,103,Third Party Payments,505,Other Establishments,5041,Revenue,CLOTH ADULT
29-Sep-2017,7004014,14.99,NEW LOOK,382612,"Health, Education, Care and Safeguarding",Children's & Education Services,103,Third Party Payments,505,Other Establishments,5041,Revenue,CLOTH ADULT
29-Sep-2017,7004015,14.99,HALFORDS,347854,"Health, Education, Care and Safeguarding",Children's & Education Services,103,Supplies and Services,504,Equipment,5023,Revenue,09.FINANCIAL SERVICES
29-Sep-2017,7004016,32.50,FE MAUGHAN LTD,013143,"Environment, Housing & Leisure",Cultural & Related Services,104,Supplies and Services,504,Equipment,5023,Revenue,00.REDECORATION GRANTS
29-Sep-2017,7004017,7.87,WM MORRISON SUPERMARKETS PLC,013562,"Environment, Housing & Leisure",Cultural & Related Services,104,Premises-Related Expenditure,502,Cleaning and Domestic Supplies,5012,Revenue,03.GROCERIES & PROVISIONS
29-Sep-2017,7004017,54.03,WM MORRISON SUPERMARKETS PLC,013562,"Health, Education, Care and Safeguarding",Children's & Education Services,103,Supplies and Services,504,Equipment,5023,Revenue,03.GROCERIES & PROVISIONS
29-Sep-2017,7004017,13.76,WM MORRISON SUPERMARKETS PLC,013562,"Environment, Housing & Leisure",Cultural & Related Services,104,Supplies and Services,504,Catering,5024,Revenue,03.GROCERIES & PROVISIONS
29-Sep-2017,7004017,10.42,WM MORRISON SUPERMARKETS PLC,013562,"Environment, Housing & Leisure",Cultural & Related Services,104,Supplies and Services,504,Equipment,5023,Revenue,03.GROCERIES & PROVISIONS
29-Sep-2017,7004017,21.34,WM MORRISON SUPERMARKETS PLC,013562,"Health, Education, Care and Safeguarding",Children's & Education Services,103,Supplies and Services,504,Equipment,5023,Revenue,03.GROCERIES & PROVISIONS
29-Sep-2017,7004018,12.47,BETTER EQUIPPED,395472,"Environment, Housing & Leisure",Cultural & Related Services,104,Supplies and Services,504,Equipment,5023,Revenue,STAT SUNDRIES
29-Sep-2017,7004019,166.67,BABY DEEP SLEEP,395471,"Health, Education, Care and Safeguarding",Adult Social Care,101,Supplies and Services,504,Equipment,5023,Revenue,10.HOUSEHOLD
29-Sep-2017,7004020,723.49,AZTEC EVENT SERVICES LIMITED,395427,Business & Economic Development,Planning Services ,110,Supplies and Services,504,"Printing, Stationery and General Office Expenses",5026,Revenue,16.EVENTS & PROMOTIONS
29-Sep-2017,7004021,249.85,COMPLETE CARE SHOP,395383,"Health, Education, Care and Safeguarding",Adult Social Care,101,Supplies and Services,504,Equipment,5023,Revenue,SOCIAL FITTED
29-Sep-2017,7004022,36.67,HOTEL ONBOOKING,395243,"Health, Education, Care and Safeguarding",Children's & Education Services,103,Third Party Payments,505,Other Establishments,5041,Revenue,HR ACCOMM
29-Sep-2017,7004023,62.08,STAGECOACH SERVICES LIMITED,382363,"Health, Education, Care and Safeguarding",Children's & Education Services,103,Supplies and Services,504,Miscellaneous Expenses,5034,Revenue,18.TRAVEL
29-Sep-2017,7004023,37.08,STAGECOACH SERVICES LIMITED,382363,"Health, Education, Care and Safeguarding",Children's & Education Services,103,Supplies and Services,504,Miscellaneous Expenses,5034,Revenue,18.TRAVEL
29-Sep-2017,7004024,10.79,UNLIMITED WEBHOSTING,394828,"Health, Education, Care and Safeguarding",Children's & Education Services,103,Supplies and Services,504,Communications & Computing,5028,Revenue,ICT WEB
29-Sep-2017,7004025,4.94,UK HOSTING,394827,Corporate Strategy,Central Services,102,Supplies and Services,504,"Printing, Stationery and General Office Expenses",5026,Revenue,ICT WEB
29-Sep-2017,7004026,44.50,TAYLOR FOODS,394743,"Environment, Housing & Leisure",Adult Social Care,101,Supplies and Services,504,Equipment,5023,Revenue,03.GROCERIES & PROVISIONS
29-Sep-2017,7004026,124.93,TAYLOR FOODS,394743,Commissioning & Investment,Children's & Education Services,103,Supplies and Services,504,Equipment,5023,Revenue,03.GROCERIES & PROVISIONS
29-Sep-2017,7004026,56.19,TAYLOR FOODS,394743,Commissioning & Investment,Children's & Education Services,103,Supplies and Services,504,Equipment,5023,Revenue,03.GROCERIES & PROVISIONS
29-Sep-2017,7004026,199.50,TAYLOR FOODS,394743,Commissioning & Investment,Children's & Education Services,103,Supplies and Services,504,Equipment,5023,Revenue,03.GROCERIES & PROVISIONS
29-Sep-2017,7004026,110.50,TAYLOR FOODS,394743,Commissioning & Investment,Children's & Education Services,103,Supplies and Services,504,Equipment,5023,Revenue,03.GROCERIES & PROVISIONS
29-Sep-2017,7004026,197.48,TAYLOR FOODS,394743,Commissioning & Investment,Children's & Education Services,103,Supplies and Services,504,Equipment,5023,Revenue,03.GROCERIES & PROVISIONS
29-Sep-2017,7004027,49.95,MORE HANDLES LIMITED,394655,"Health, Education, Care and Safeguarding",Children's & Education Services,103,Premises-Related Expenditure,502,"Repairs, alterations and maintenance of buildings",5005,Revenue,BUILD GEN
29-Sep-2017,7004028,215.40,AZTEC CHEMICALS LTD,327317,"Environment, Housing & Leisure",Cultural & Related Services,104,Supplies and Services,504,Equipment,5023,Revenue,05.CLEANING MATERIALS
29-Sep-2017,7004029,133.66,TRAVEL.CLOUD,394406,Commissioning & Investment,Children's & Education Services,103,Supplies and Services,504,Expenses,5030,Revenue,18.TRAVEL
29-Sep-2017,7004029,138.58,TRAVEL.CLOUD,394406,"Health, Education, Care and Safeguarding",Children's & Education Services,103,Supplies and Services,504,Expenses,5030,Revenue,18.TRAVEL
29-Sep-2017,7004029,135.82,TRAVEL.CLOUD,394406,Commissioning & Investment,Children's & Education Services,103,Supplies and Services,504,Expenses,5030,Revenue,18.TRAVEL
29-Sep-2017,7004029,131.64,TRAVEL.CLOUD,394406,"Health, Education, Care and Safeguarding",Children's & Education Services,103,Supplies and Services,504,Expenses,5030,Revenue,18.TRAVEL
29-Sep-2017,7004029,101.54,TRAVEL.CLOUD,394406,Commissioning & Investment,Children's & Education Services,103,Supplies and Services,504,Expenses,5030,Revenue,18.TRAVEL
29-Sep-2017,7004029,72.70,TRAVEL.CLOUD,394406,"Health, Education, Care and Safeguarding",Children's & Education Services,103,Supplies and Services,504,Expenses,5030,Revenue,18.TRAVEL
29-Sep-2017,7004030,164.64,PALGRAVE LTD,393477,"Environment, Housing & Leisure",Cultural & Related Services,104,Supplies and Services,504,Equipment,5023,Revenue,06.ART & CRAFT
29-Sep-2017,7004030,172.60,PALGRAVE LTD,393477,"Environment, Housing & Leisure",Cultural & Related Services,104,Supplies and Services,504,Equipment,5023,Revenue,06.ART & CRAFT
29-Sep-2017,7004031,5.00,FACEBOOK,393228,"Environment, Housing & Leisure",Cultural & Related Services,104,Supplies and Services,504,"Printing, Stationery and General Office Expenses",5026,Revenue,16.ADVERTISING
29-Sep-2017,7004031,1.86,FACEBOOK,393228,"Environment, Housing & Leisure",Cultural & Related Services,104,Supplies and Services,504,"Printing, Stationery and General Office Expenses",5026,Revenue,16.ADVERTISING
29-Sep-2017,7004031,51.52,FACEBOOK,393228,"Environment, Housing & Leisure",Cultural & Related Services,104,Supplies and Services,504,"Printing, Stationery and General Office Expenses",5026,Revenue,16.ADVERTISING
29-Sep-2017,7004031,16.21,FACEBOOK,393228,"Environment, Housing & Leisure",Cultural & Related Services,104,Supplies and Services,504,"Printing, Stationery and General Office Expenses",5026,Revenue,16.ADVERTISING
29-Sep-2017,7004032,21.67,TK MAXX,392657,"Health, Education, Care and Safeguarding",Children's & Education Services,103,Supplies and Services,504,"Clothing, Uniforms and Laundry",5025,Revenue,10.HOUSEHOLD
29-Sep-2017,7004032,18.36,TK MAXX,392657,"Health, Education, Care and Safeguarding",Children's & Education Services,103,Supplies and Services,504,Miscellaneous Expenses,5034,Revenue,10.HOUSEHOLD
29-Sep-2017,7004033,212.73,KENDAL YARD,392417,"Health, Education, Care and Safeguarding",Children's & Education Services,103,Premises-Related Expenditure,502,"Repairs, alterations and maintenance of buildings",5005,Revenue,BUILD GEN
29-Sep-2017,7004034,464.16,AO RETAIL LIMITED,392123,"Health, Education, Care and Safeguarding",Children's & Education Services,103,Third Party Payments,505,Other Establishments,5041,Revenue,03.CROCKERY
29-Sep-2017,7004035,164.28,ON A ROLL SANDWICH COMPANY,391893,Commissioning & Investment,Children's & Education Services,103,Supplies and Services,504,Equipment,5023,Revenue,03.GROCERIES & PROVISIONS
29-Sep-2017,7004035,212.80,ON A ROLL SANDWICH COMPANY,391893,Commissioning & Investment,Children's & Education Services,103,Supplies and Services,504,Equipment,5023,Revenue,03.GROCERIES & PROVISIONS
29-Sep-2017,7004035,269.68,ON A ROLL SANDWICH COMPANY,391893,Commissioning & Investment,Children's & Education Services,103,Supplies and Services,504,Equipment,5023,Revenue,03.GROCERIES & PROVISIONS
29-Sep-2017,7004035,515.51,ON A ROLL SANDWICH COMPANY,391893,Commissioning & Investment,Children's & Education Services,103,Supplies and Services,504,Equipment,5023,Revenue,03.GROCERIES & PROVISIONS
29-Sep-2017,7004035,93.86,ON A ROLL SANDWICH COMPANY,391893,Commissioning & Investment,Children's & Education Services,103,Supplies and Services,504,Equipment,5023,Revenue,03.GROCERIES & PROVISIONS
29-Sep-2017,7004035,389.04,ON A ROLL SANDWICH COMPANY,391893,Commissioning & Investment,Children's & Education Services,103,Supplies and Services,504,Equipment,5023,Revenue,03.GROCERIES & PROVISIONS
29-Sep-2017,7004035,268.17,ON A ROLL SANDWICH COMPANY,391893,Commissioning & Investment,Children's & Education Services,103,Supplies and Services,504,Equipment,5023,Revenue,03.GROCERIES & PROVISIONS
29-Sep-2017,7004035,478.74,ON A ROLL SANDWICH COMPANY,391893,Commissioning & Investment,Children's & Education Services,103,Supplies and Services,504,Equipment,5023,Revenue,03.GROCERIES & PROVISIONS
29-Sep-2017,7004035,301.78,ON A ROLL SANDWICH COMPANY,391893,Commissioning & Investment,Children's & Education Services,103,Supplies and Services,504,Equipment,5023,Revenue,03.GROCERIES & PROVISIONS
29-Sep-2017,7004035,276.53,ON A ROLL SANDWICH COMPANY,391893,Commissioning & Investment,Children's & Education Services,103,Supplies and Services,504,Equipment,5023,Revenue,03.GROCERIES & PROVISIONS
29-Sep-2017,7004035,502.05,ON A ROLL SANDWICH COMPANY,391893,Commissioning & Investment,Children's & Education Services,103,Supplies and Services,504,Equipment,5023,Revenue,03.GROCERIES & PROVISIONS
29-Sep-2017,7004035,122.83,ON A ROLL SANDWICH COMPANY,391893,Commissioning & Investment,Children's & Education Services,103,Supplies and Services,504,Equipment,5023,Revenue,03.GROCERIES & PROVISIONS
29-Sep-2017,7004035,276.53,ON A ROLL SANDWICH COMPANY,391893,Commissioning & Investment,Children's & Education Services,103,Supplies and Services,504,Equipment,5023,Revenue,03.GROCERIES & PROVISIONS
29-Sep-2017,7004035,640.52,ON A ROLL SANDWICH COMPANY,391893,Commissioning & Investment,Children's & Education Services,103,Supplies and Services,504,Equipment,5023,Revenue,03.GROCERIES & PROVISIONS
29-Sep-2017,7004035,455.26,ON A ROLL SANDWICH COMPANY,391893,Commissioning & Investment,Children's & Education Services,103,Supplies and Services,504,Equipment,5023,Revenue,03.GROCERIES & PROVISIONS
29-Sep-2017,7004035,211.20,ON A ROLL SANDWICH COMPANY,391893,Commissioning & Investment,Children's & Education Services,103,Supplies and Services,504,Equipment,5023,Revenue,03.GROCERIES & PROVISIONS
29-Sep-2017,7004035,419.05,ON A ROLL SANDWICH COMPANY,391893,Commissioning & Investment,Children's & Education Services,103,Supplies and Services,504,Equipment,5023,Revenue,03.GROCERIES & PROVISIONS
29-Sep-2017,7004035,301.78,ON A ROLL SANDWICH COMPANY,391893,Commissioning & Investment,Children's & Education Services,103,Supplies and Services,504,Equipment,5023,Revenue,03.GROCERIES & PROVISIONS
29-Sep-2017,7004035,143.27,ON A ROLL SANDWICH COMPANY,391893,Commissioning & Investment,Children's & Education Services,103,Supplies and Services,504,Equipment,5023,Revenue,03.GROCERIES & PROVISIONS
29-Sep-2017,7004035,399.79,ON A ROLL SANDWICH COMPANY,391893,Commissioning & Investment,Children's & Education Services,103,Supplies and Services,504,Equipment,5023,Revenue,03.GROCERIES & PROVISIONS
29-Sep-2017,7004035,489.52,ON A ROLL SANDWICH COMPANY,391893,Commissioning & Investment,Children's & Education Services,103,Supplies and Services,504,Equipment,5023,Revenue,03.GROCERIES & PROVISIONS
29-Sep-2017,7004035,301.78,ON A ROLL SANDWICH COMPANY,391893,Commissioning & Investment,Children's & Education Services,103,Supplies and Services,504,Equipment,5023,Revenue,03.GROCERIES & PROVISIONS
29-Sep-2017,7004035,256.64,ON A ROLL SANDWICH COMPANY,391893,Commissioning & Investment,Children's & Education Services,103,Supplies and Services,504,Equipment,5023,Revenue,03.GROCERIES & PROVISIONS
29-Sep-2017,7004035,362.18,ON A ROLL SANDWICH COMPANY,391893,Commissioning & Investment,Children's & Education Services,103,Supplies and Services,504,Equipment,5023,Revenue,03.GROCERIES & PROVISIONS
29-Sep-2017,7004035,377.52,ON A ROLL SANDWICH COMPANY,391893,Commissioning & Investment,Children's & Education Services,103,Supplies and Services,504,Equipment,5023,Revenue,03.GROCERIES & PROVISIONS
29-Sep-2017,7004035,362.18,ON A ROLL SANDWICH COMPANY,391893,Commissioning & Investment,Children's & Education Services,103,Supplies and Services,504,Equipment,5023,Revenue,03.GROCERIES & PROVISIONS
29-Sep-2017,7004035,52.24,ON A ROLL SANDWICH COMPANY,391893,Commissioning & Investment,Children's & Education Services,103,Supplies and Services,504,Equipment,5023,Revenue,03.GROCERIES & PROVISIONS
29-Sep-2017,7004035,315.71,ON A ROLL SANDWICH COMPANY,391893,Commissioning & Investment,Children's & Education Services,103,Supplies and Services,504,Equipment,5023,Revenue,03.GROCERIES & PROVISIONS
29-Sep-2017,7004035,200.47,ON A ROLL SANDWICH COMPANY,391893,Commissioning & Investment,Children's & Education Services,103,Supplies and Services,504,Equipment,5023,Revenue,03.GROCERIES & PROVISIONS
29-Sep-2017,7004035,606.09,ON A ROLL SANDWICH COMPANY,391893,Commissioning & Investment,Children's & Education Services,103,Supplies and Services,504,Equipment,5023,Revenue,03.GROCERIES & PROVISIONS
29-Sep-2017,7004035,52.24,ON A ROLL SANDWICH COMPANY,391893,Commissioning & Investment,Children's & Education Services,103,Supplies and Services,504,Equipment,5023,Revenue,03.GROCERIES & PROVISIONS
29-Sep-2017,7004035,88.50,ON A ROLL SANDWICH COMPANY,391893,Commissioning & Investment,Children's & Education Services,103,Supplies and Services,504,Equipment,5023,Revenue,03.GROCERIES & PROVISIONS
29-Sep-2017,7004035,606.09,ON A ROLL SANDWICH COMPANY,391893,Commissioning & Investment,Children's & Education Services,103,Supplies and Services,504,Equipment,5023,Revenue,03.GROCERIES & PROVISIONS
29-Sep-2017,7004035,397.88,ON A ROLL SANDWICH COMPANY,391893,Commissioning & Investment,Children's & Education Services,103,Supplies and Services,504,Equipment,5023,Revenue,03.GROCERIES & PROVISIONS
29-Sep-2017,7004035,49.11,ON A ROLL SANDWICH COMPANY,391893,Commissioning & Investment,Children's & Education Services,103,Supplies and Services,504,Equipment,5023,Revenue,03.GROCERIES & PROVISIONS
29-Sep-2017,7004035,516.92,ON A ROLL SANDWICH COMPANY,391893,Commissioning & Investment,Children's & Education Services,103,Supplies and Services,504,Equipment,5023,Revenue,03.GROCERIES & PROVISIONS
29-Sep-2017,7004035,447.26,ON A ROLL SANDWICH COMPANY,391893,Commissioning & Investment,Children's & Education Services,103,Supplies and Services,504,Equipment,5023,Revenue,03.GROCERIES & PROVISIONS
29-Sep-2017,7004035,431.31,ON A ROLL SANDWICH COMPANY,391893,Commissioning & Investment,Children's & Education Services,103,Supplies and Services,504,Equipment,5023,Revenue,03.GROCERIES & PROVISIONS
29-Sep-2017,7004035,516.92,ON A ROLL SANDWICH COMPANY,391893,Commissioning & Investment,Children's & Education Services,103,Supplies and Services,504,Equipment,5023,Revenue,03.GROCERIES & PROVISIONS
29-Sep-2017,7004035,52.24,ON A ROLL SANDWICH COMPANY,391893,Commissioning & Investment,Children's & Education Services,103,Supplies and Services,504,Equipment,5023,Revenue,03.GROCERIES & PROVISIONS
29-Sep-2017,7004035,606.09,ON A ROLL SANDWICH COMPANY,391893,Commissioning & Investment,Children's & Education Services,103,Supplies and Services,504,Equipment,5023,Revenue,03.GROCERIES & PROVISIONS
29-Sep-2017,7004035,272.11,ON A ROLL SANDWICH COMPANY,391893,Commissioning & Investment,Children's & Education Services,103,Supplies and Services,504,Equipment,5023,Revenue,03.GROCERIES & PROVISIONS
29-Sep-2017,7004035,212.80,ON A ROLL SANDWICH COMPANY,391893,Commissioning & Investment,Children's & Education Services,103,Supplies and Services,504,Equipment,5023,Revenue,03.GROCERIES & PROVISIONS
29-Sep-2017,7004035,301.78,ON A ROLL SANDWICH COMPANY,391893,Commissioning & Investment,Children's & Education Services,103,Supplies and Services,504,Equipment,5023,Revenue,03.GROCERIES & PROVISIONS
29-Sep-2017,7004035,377.52,ON A ROLL SANDWICH COMPANY,391893,Commissioning & Investment,Children's & Education Services,103,Supplies and Services,504,Equipment,5023,Revenue,03.GROCERIES & PROVISIONS
29-Sep-2017,7004035,185.57,ON A ROLL SANDWICH COMPANY,391893,Commissioning & Investment,Children's & Education Services,103,Supplies and Services,504,Equipment,5023,Revenue,03.GROCERIES & PROVISIONS
29-Sep-2017,7004035,276.53,ON A ROLL SANDWICH COMPANY,391893,Commissioning & Investment,Children's & Education Services,103,Supplies and Services,504,Equipment,5023,Revenue,03.GROCERIES & PROVISIONS
29-Sep-2017,7004035,212.80,ON A ROLL SANDWICH COMPANY,391893,Commissioning & Investment,Children's & Education Services,103,Supplies and Services,504,Equipment,5023,Revenue,03.GROCERIES & PROVISIONS
29-Sep-2017,7004035,52.24,ON A ROLL SANDWICH COMPANY,391893,Commissioning & Investment,Children's & Education Services,103,Supplies and Services,504,Equipment,5023,Revenue,03.GROCERIES & PROVISIONS
29-Sep-2017,7004035,316.15,ON A ROLL SANDWICH COMPANY,391893,Commissioning & Investment,Children's & Education Services,103,Supplies and Services,504,Equipment,5023,Revenue,03.GROCERIES & PROVISIONS
29-Sep-2017,7004035,93.86,ON A ROLL SANDWICH COMPANY,391893,Commissioning & Investment,Children's & Education Services,103,Supplies and Services,504,Equipment,5023,Revenue,03.GROCERIES & PROVISIONS
29-Sep-2017,7004035,50.05,ON A ROLL SANDWICH COMPANY,391893,Commissioning & Investment,Children's & Education Services,103,Supplies and Services,504,Equipment,5023,Revenue,03.GROCERIES & PROVISIONS
29-Sep-2017,7004035,88.50,ON A ROLL SANDWICH COMPANY,391893,Commissioning & Investment,Children's & Education Services,103,Supplies and Services,504,Equipment,5023,Revenue,03.GROCERIES & PROVISIONS
29-Sep-2017,7004035,211.20,ON A ROLL SANDWICH COMPANY,391893,Commissioning & Investment,Children's & Education Services,103,Supplies and Services,504,Equipment,5023,Revenue,03.GROCERIES & PROVISIONS
29-Sep-2017,7004035,315.61,ON A ROLL SANDWICH COMPANY,391893,Commissioning & Investment,Children's & Education Services,103,Supplies and Services,504,Equipment,5023,Revenue,03.GROCERIES & PROVISIONS
29-Sep-2017,7004035,487.54,ON A ROLL SANDWICH COMPANY,391893,Commissioning & Investment,Children's & Education Services,103,Supplies and Services,504,Equipment,5023,Revenue,03.GROCERIES & PROVISIONS
29-Sep-2017,7004035,609.22,ON A ROLL SANDWICH COMPANY,391893,Commissioning & Investment,Children's & Education Services,103,Supplies and Services,504,Equipment,5023,Revenue,03.GROCERIES & PROVISIONS
29-Sep-2017,7004035,606.09,ON A ROLL SANDWICH COMPANY,391893,Commissioning & Investment,Children's & Education Services,103,Supplies and Services,504,Equipment,5023,Revenue,03.GROCERIES & PROVISIONS
29-Sep-2017,7004035,606.09,ON A ROLL SANDWICH COMPANY,391893,Commissioning & Investment,Children's & Education Services,103,Supplies and Services,504,Equipment,5023,Revenue,03.GROCERIES & PROVISIONS
29-Sep-2017,7004035,52.24,ON A ROLL SANDWICH COMPANY,391893,Commissioning & Investment,Children's & Education Services,103,Supplies and Services,504,Equipment,5023,Revenue,03.GROCERIES & PROVISIONS
29-Sep-2017,7004035,52.24,ON A ROLL SANDWICH COMPANY,391893,Commissioning & Investment,Children's & Education Services,103,Supplies and Services,504,Equipment,5023,Revenue,03.GROCERIES & PROVISIONS
29-Sep-2017,7004035,95.53,ON A ROLL SANDWICH COMPANY,391893,Commissioning & Investment,Children's & Education Services,103,Supplies and Services,504,Equipment,5023,Revenue,03.GROCERIES & PROVISIONS
29-Sep-2017,7004035,402.61,ON A ROLL SANDWICH COMPANY,391893,Commissioning & Investment,Children's & Education Services,103,Supplies and Services,504,Equipment,5023,Revenue,03.GROCERIES & PROVISIONS
29-Sep-2017,7004035,95.53,ON A ROLL SANDWICH COMPANY,391893,Commissioning & Investment,Children's & Education Services,103,Supplies and Services,504,Equipment,5023,Revenue,03.GROCERIES & PROVISIONS
29-Sep-2017,7004035,151.74,ON A ROLL SANDWICH COMPANY,391893,Commissioning & Investment,Children's & Education Services,103,Supplies and Services,504,Equipment,5023,Revenue,03.GROCERIES & PROVISIONS
29-Sep-2017,7004035,123.20,ON A ROLL SANDWICH COMPANY,391893,Commissioning & Investment,Children's & Education Services,103,Supplies and Services,504,Equipment,5023,Revenue,03.GROCERIES & PROVISIONS
29-Sep-2017,7004035,115.50,ON A ROLL SANDWICH COMPANY,391893,Commissioning & Investment,Children's & Education Services,103,Supplies and Services,504,Equipment,5023,Revenue,03.GROCERIES & PROVISIONS
29-Sep-2017,7004035,452.60,ON A ROLL SANDWICH COMPANY,391893,Commissioning & Investment,Children's & Education Services,103,Supplies and Services,504,Equipment,5023,Revenue,03.GROCERIES & PROVISIONS
29-Sep-2017,7004035,269.68,ON A ROLL SANDWICH COMPANY,391893,Commissioning & Investment,Children's & Education Services,103,Supplies and Services,504,Equipment,5023,Revenue,03.GROCERIES & PROVISIONS
29-Sep-2017,7004035,269.68,ON A ROLL SANDWICH COMPANY,391893,Commissioning & Investment,Children's & Education Services,103,Supplies and Services,504,Equipment,5023,Revenue,03.GROCERIES & PROVISIONS
29-Sep-2017,7004035,389.04,ON A ROLL SANDWICH COMPANY,391893,Commissioning & Investment,Children's & Education Services,103,Supplies and Services,504,Equipment,5023,Revenue,03.GROCERIES & PROVISIONS
29-Sep-2017,7004035,123.20,ON A ROLL SANDWICH COMPANY,391893,Commissioning & Investment,Children's & Education Services,103,Supplies and Services,504,Equipment,5023,Revenue,03.GROCERIES & PROVISIONS
29-Sep-2017,7004035,257.51,ON A ROLL SANDWICH COMPANY,391893,Commissioning & Investment,Children's & Education Services,103,Supplies and Services,504,Equipment,5023,Revenue,03.GROCERIES & PROVISIONS
29-Sep-2017,7004035,163.80,ON A ROLL SANDWICH COMPANY,391893,Commissioning & Investment,Children's & Education Services,103,Supplies and Services,504,Equipment,5023,Revenue,03.GROCERIES & PROVISIONS
29-Sep-2017,7004035,467.42,ON A ROLL SANDWICH COMPANY,391893,Commissioning & Investment,Children's & Education Services,103,Supplies and Services,504,Equipment,5023,Revenue,03.GROCERIES & PROVISIONS
29-Sep-2017,7004035,52.24,ON A ROLL SANDWICH COMPANY,391893,Commissioning & Investment,Children's & Education Services,103,Supplies and Services,504,Equipment,5023,Revenue,03.GROCERIES & PROVISIONS
29-Sep-2017,7004035,399.79,ON A ROLL SANDWICH COMPANY,391893,Commissioning & Investment,Children's & Education Services,103,Supplies and Services,504,Equipment,5023,Revenue,03.GROCERIES & PROVISIONS
29-Sep-2017,7004035,95.53,ON A ROLL SANDWICH COMPANY,391893,Commissioning & Investment,Children's & Education Services,103,Supplies and Services,504,Equipment,5023,Revenue,03.GROCERIES & PROVISIONS
29-Sep-2017,7004035,142.01,ON A ROLL SANDWICH COMPANY,391893,Commissioning & Investment,Children's & Education Services,103,Supplies and Services,504,Equipment,5023,Revenue,03.GROCERIES & PROVISIONS
29-Sep-2017,7004035,146.80,ON A ROLL SANDWICH COMPANY,391893,Commissioning & Investment,Children's & Education Services,103,Supplies and Services,504,Equipment,5023,Revenue,03.GROCERIES & PROVISIONS
29-Sep-2017,7004035,52.24,ON A ROLL SANDWICH COMPANY,391893,Commissioning & Investment,Children's & Education Services,103,Supplies and Services,504,Equipment,5023,Revenue,03.GROCERIES & PROVISIONS
29-Sep-2017,7004035,276.53,ON A ROLL SANDWICH COMPANY,391893,Commissioning & Investment,Children's & Education Services,103,Supplies and Services,504,Equipment,5023,Revenue,03.GROCERIES & PROVISIONS
29-Sep-2017,7004035,488.28,ON A ROLL SANDWICH COMPANY,391893,Commissioning & Investment,Children's & Education Services,103,Supplies and Services,504,Equipment,5023,Revenue,03.GROCERIES & PROVISIONS
29-Sep-2017,7004035,93.86,ON A ROLL SANDWICH COMPANY,391893,Commissioning & Investment,Children's & Education Services,103,Supplies and Services,504,Equipment,5023,Revenue,03.GROCERIES & PROVISIONS
29-Sep-2017,7004035,276.53,ON A ROLL SANDWICH COMPANY,391893,Commissioning & Investment,Children's & Education Services,103,Supplies and Services,504,Equipment,5023,Revenue,03.GROCERIES & PROVISIONS
29-Sep-2017,7004035,52.24,ON A ROLL SANDWICH COMPANY,391893,Commissioning & Investment,Children's & Education Services,103,Supplies and Services,504,Equipment,5023,Revenue,03.GROCERIES & PROVISIONS
29-Sep-2017,7004035,52.24,ON A ROLL SANDWICH COMPANY,391893,Commissioning & Investment,Children's & Education Services,103,Supplies and Services,504,Equipment,5023,Revenue,03.GROCERIES & PROVISIONS
29-Sep-2017,7004035,87.38,ON A ROLL SANDWICH COMPANY,391893,Commissioning & Investment,Children's & Education Services,103,Supplies and Services,504,Equipment,5023,Revenue,03.GROCERIES & PROVISIONS
29-Sep-2017,7004036,5.42,PRODUCT SUPPORT AG,391921,"Health, Education, Care and Safeguarding",Children's & Education Services,103,Supplies and Services,504,Equipment,5023,Revenue,14.MAINT OF COMPUTER EQU
29-Sep-2017,7004037,25.86,BOOTS UK LTD,383616,"Health, Education, Care and Safeguarding",Children's & Education Services,103,Supplies and Services,504,Miscellaneous Expenses,5034,Revenue,00.DOCTORS/MEDICAL FEES
29-Sep-2017,7004038,55.22,DAA HALSGROVE LTD,391833,"Environment, Housing & Leisure",Cultural & Related Services,104,Supplies and Services,504,Equipment,5023,Revenue,18.BOOKS & PUBLICATIONS
29-Sep-2017,7004039,115.02,ASDA HOME SHOPPING CAR,391718,"Health, Education, Care and Safeguarding",Children's & Education Services,103,Supplies and Services,504,Equipment,5023,Revenue,03.GROCERIES & PROVISIONS
29-Sep-2017,7004039,-0.21,ASDA HOME SHOPPING CAR,391718,"Health, Education, Care and Safeguarding",Children's & Education Services,103,Supplies and Services,504,Equipment,5023,Revenue,03.GROCERIES & PROVISIONS
29-Sep-2017,7004039,146.22,ASDA HOME SHOPPING CAR,391718,"Health, Education, Care and Safeguarding",Children's & Education Services,103,Supplies and Services,504,Equipment,5023,Revenue,03.GROCERIES & PROVISIONS
29-Sep-2017,7004039,0.05,ASDA HOME SHOPPING CAR,391718,"Health, Education, Care and Safeguarding",Children's & Education Services,103,Supplies and Services,504,Equipment,5023,Revenue,03.GROCERIES & PROVISIONS
29-Sep-2017,7004039,102.92,ASDA HOME SHOPPING CAR,391718,"Health, Education, Care and Safeguarding",Children's & Education Services,103,Supplies and Services,504,Equipment,5023,Revenue,03.GROCERIES & PROVISIONS
29-Sep-2017,7004039,0.10,ASDA HOME SHOPPING CAR,391718,"Health, Education, Care and Safeguarding",Children's & Education Services,103,Supplies and Services,504,Equipment,5023,Revenue,03.GROCERIES & PROVISIONS
29-Sep-2017,7004040,5.13,ALDI,391717,Housing Revenue Account,Adult Social Care,101,Supplies and Services,504,Equipment,5023,Revenue,03.GROCERIES & PROVISIONS
29-Sep-2017,7004041,56.03,TELEPHONE PAYMENT,391672,"Health, Education, Care and Safeguarding",Children's & Education Services,103,Third Party Payments,505,Other Establishments,5041,Revenue,09.FINANCIAL SERVICES
29-Sep-2017,7004042,6.40,MARTIN MCCOLLS LTD 1291,391619,"Health, Education, Care and Safeguarding",Children's & Education Services,103,Third Party Payments,505,Other Establishments,5041,Revenue,18.BOOKS & PUBLICATIONS
29-Sep-2017,7004043,146.26,BOOKERECOMM,391464,"Environment, Housing & Leisure",Cultural & Related Services,104,Supplies and Services,504,Catering,5024,Revenue,00.NON INFLUENCIBLE
29-Sep-2017,7004043,145.25,BOOKERECOMM,391464,"Environment, Housing & Leisure",Cultural & Related Services,104,Supplies and Services,504,Catering,5024,Revenue,00.NON INFLUENCIBLE
29-Sep-2017,7004043,171.48,BOOKERECOMM,391464,"Environment, Housing & Leisure",Cultural & Related Services,104,Supplies and Services,504,Catering,5024,Revenue,00.NON INFLUENCIBLE
29-Sep-2017,7004043,128.56,BOOKERECOMM,391464,"Environment, Housing & Leisure",Cultural & Related Services,104,Supplies and Services,504,Catering,5024,Revenue,00.NON INFLUENCIBLE
29-Sep-2017,7004044,-14.99,H&M 816 SILVERLINK,391479,"Health, Education, Care and Safeguarding",Children's & Education Services,103,Third Party Payments,505,Other Establishments,5041,Revenue,00.NON INFLUENCIBLE
29-Sep-2017,7004044,20.82,H&M 816 SILVERLINK,391479,"Health, Education, Care and Safeguarding",Children's & Education Services,103,Third Party Payments,505,Other Establishments,5041,Revenue,00.NON INFLUENCIBLE
29-Sep-2017,7004045,92.18,ENDSLEIGH INSURANCE,391469,"Health, Education, Care and Safeguarding",Adult Social Care,101,Supplies and Services,504,Miscellaneous Expenses,5034,Revenue,FINANCE INSURANCE
29-Sep-2017,7004045,88.81,ENDSLEIGH INSURANCE,391469,"Health, Education, Care and Safeguarding",Adult Social Care,101,Supplies and Services,504,Miscellaneous Expenses,5034,Revenue,FINANCE INSURANCE
29-Sep-2017,7004046,54.00,ENGLISH HERITAGE,005033,"Health, Education, Care and Safeguarding",Children's & Education Services,103,Supplies and Services,504,Miscellaneous Expenses,5034,Revenue,16.EVENTS & PROMOTIONS
29-Sep-2017,7004047,175.00,BRITISH HEART FOUNDATION,276949,"Health, Education, Care and Safeguarding",Children's & Education Services,103,Third Party Payments,505,Other Establishments,5041,Revenue,00.NON INFLUENCIBLE
29-Sep-2017,7004048,-118.80,EDGE HILL ENTERPRISES LTD,380082,"Health, Education, Care and Safeguarding",Children's & Education Services,103,Supplies and Services,504,Expenses,5030,Revenue,18.CONFERENCING
29-Sep-2017,7004048,356.40,EDGE HILL ENTERPRISES LTD,380082,"Health, Education, Care and Safeguarding",Children's & Education Services,103,Supplies and Services,504,Expenses,5030,Revenue,18.CONFERENCING
29-Sep-2017,7004049,115.58,REDBRIDGE PRODUCE & FLOWERS LTD T/A TOTAL PRODUCE,390977,"Environment, Housing & Leisure",Cultural & Related Services,104,Supplies and Services,504,Equipment,5023,Revenue,03.GROCERIES & PROVISIONS
29-Sep-2017,7004049,105.47,REDBRIDGE PRODUCE & FLOWERS LTD T/A TOTAL PRODUCE,390977,Commissioning & Investment,Children's & Education Services,103,Supplies and Services,504,Equipment,5023,Revenue,03.GROCERIES & PROVISIONS
29-Sep-2017,7004049,2.40,REDBRIDGE PRODUCE & FLOWERS LTD T/A TOTAL PRODUCE,390977,"Environment, Housing & Leisure",Adult Social Care,101,Supplies and Services,504,Equipment,5023,Revenue,03.GROCERIES & PROVISIONS
29-Sep-2017,7004049,-7.61,REDBRIDGE PRODUCE & FLOWERS LTD T/A TOTAL PRODUCE,390977,Commissioning & Investment,Children's & Education Services,103,Supplies and Services,504,Equipment,5023,Revenue,03.GROCERIES & PROVISIONS
29-Sep-2017,7004049,2.30,REDBRIDGE PRODUCE & FLOWERS LTD T/A TOTAL PRODUCE,390977,"Environment, Housing & Leisure",Cultural & Related Services,104,Supplies and Services,504,Equipment,5023,Revenue,03.GROCERIES & PROVISIONS
29-Sep-2017,7004049,97.74,REDBRIDGE PRODUCE & FLOWERS LTD T/A TOTAL PRODUCE,390977,"Environment, Housing & Leisure",Cultural & Related Services,104,Supplies and Services,504,Equipment,5023,Revenue,03.GROCERIES & PROVISIONS
29-Sep-2017,7004049,8.97,REDBRIDGE PRODUCE & FLOWERS LTD T/A TOTAL PRODUCE,390977,"Environment, Housing & Leisure",Cultural & Related Services,104,Supplies and Services,504,Equipment,5023,Revenue,03.GROCERIES & PROVISIONS
29-Sep-2017,7004049,5.98,REDBRIDGE PRODUCE & FLOWERS LTD T/A TOTAL PRODUCE,390977,"Environment, Housing & Leisure",Cultural & Related Services,104,Supplies and Services,504,Equipment,5023,Revenue,03.GROCERIES & PROVISIONS
29-Sep-2017,7004049,26.84,REDBRIDGE PRODUCE & FLOWERS LTD T/A TOTAL PRODUCE,390977,"Environment, Housing & Leisure",Cultural & Related Services,104,Supplies and Services,504,Equipment,5023,Revenue,03.GROCERIES & PROVISIONS
29-Sep-2017,7004049,1.47,REDBRIDGE PRODUCE & FLOWERS LTD T/A TOTAL PRODUCE,390977,Commissioning & Investment,Children's & Education Services,103,Supplies and Services,504,Equipment,5023,Revenue,03.GROCERIES & PROVISIONS
29-Sep-2017,7004049,3.45,REDBRIDGE PRODUCE & FLOWERS LTD T/A TOTAL PRODUCE,390977,"Environment, Housing & Leisure",Cultural & Related Services,104,Supplies and Services,504,Equipment,5023,Revenue,03.GROCERIES & PROVISIONS
29-Sep-2017,7004049,2.40,REDBRIDGE PRODUCE & FLOWERS LTD T/A TOTAL PRODUCE,390977,Commissioning & Investment,Children's & Education Services,103,Supplies and Services,504,Equipment,5023,Revenue,03.GROCERIES & PROVISIONS
29-Sep-2017,7004049,386.85,REDBRIDGE PRODUCE & FLOWERS LTD T/A TOTAL PRODUCE,390977,Commissioning & Investment,Children's & Education Services,103,Supplies and Services,504,Equipment,5023,Revenue,03.GROCERIES & PROVISIONS
29-Sep-2017,7004049,326.67,REDBRIDGE PRODUCE & FLOWERS LTD T/A TOTAL PRODUCE,390977,Commissioning & Investment,Children's & Education Services,103,Supplies and Services,504,Equipment,5023,Revenue,03.GROCERIES & PROVISIONS
29-Sep-2017,7004049,63.18,REDBRIDGE PRODUCE & FLOWERS LTD T/A TOTAL PRODUCE,390977,"Environment, Housing & Leisure",Cultural & Related Services,104,Supplies and Services,504,Equipment,5023,Revenue,03.GROCERIES & PROVISIONS
29-Sep-2017,7004049,42.84,REDBRIDGE PRODUCE & FLOWERS LTD T/A TOTAL PRODUCE,390977,"Environment, Housing & Leisure",Adult Social Care,101,Supplies and Services,504,Equipment,5023,Revenue,03.GROCERIES & PROVISIONS
29-Sep-2017,7004049,1.70,REDBRIDGE PRODUCE & FLOWERS LTD T/A TOTAL PRODUCE,390977,Commissioning & Investment,Children's & Education Services,103,Supplies and Services,504,Equipment,5023,Revenue,03.GROCERIES & PROVISIONS
29-Sep-2017,7004049,2.00,REDBRIDGE PRODUCE & FLOWERS LTD T/A TOTAL PRODUCE,390977,"Environment, Housing & Leisure",Adult Social Care,101,Supplies and Services,504,Equipment,5023,Revenue,03.GROCERIES & PROVISIONS
29-Sep-2017,7004049,5.08,REDBRIDGE PRODUCE & FLOWERS LTD T/A TOTAL PRODUCE,390977,"Environment, Housing & Leisure",Cultural & Related Services,104,Supplies and Services,504,Equipment,5023,Revenue,03.GROCERIES & PROVISIONS
29-Sep-2017,7004049,42.67,REDBRIDGE PRODUCE & FLOWERS LTD T/A TOTAL PRODUCE,390977,"Environment, Housing & Leisure",Adult Social Care,101,Supplies and Services,504,Equipment,5023,Revenue,03.GROCERIES & PROVISIONS
29-Sep-2017,7004049,10.14,REDBRIDGE PRODUCE & FLOWERS LTD T/A TOTAL PRODUCE,390977,Commissioning & Investment,Children's & Education Services,103,Supplies and Services,504,Equipment,5023,Revenue,03.GROCERIES & PROVISIONS
29-Sep-2017,7004049,189.60,REDBRIDGE PRODUCE & FLOWERS LTD T/A TOTAL PRODUCE,390977,Commissioning & Investment,Children's & Education Services,103,Supplies and Services,504,Equipment,5023,Revenue,03.GROCERIES & PROVISIONS
29-Sep-2017,7004049,50.80,REDBRIDGE PRODUCE & FLOWERS LTD T/A TOTAL PRODUCE,390977,"Environment, Housing & Leisure",Cultural & Related Services,104,Supplies and Services,504,Equipment,5023,Revenue,03.GROCERIES & PROVISIONS
29-Sep-2017,7004049,1.55,REDBRIDGE PRODUCE & FLOWERS LTD T/A TOTAL PRODUCE,390977,Commissioning & Investment,Children's & Education Services,103,Supplies and Services,504,Equipment,5023,Revenue,03.GROCERIES & PROVISIONS
29-Sep-2017,7004049,227.72,REDBRIDGE PRODUCE & FLOWERS LTD T/A TOTAL PRODUCE,390977,Commissioning & Investment,Children's & Education Services,103,Supplies and Services,504,Equipment,5023,Revenue,03.GROCERIES & PROVISIONS
29-Sep-2017,7004049,5.98,REDBRIDGE PRODUCE & FLOWERS LTD T/A TOTAL PRODUCE,390977,"Environment, Housing & Leisure",Adult Social Care,101,Supplies and Services,504,Equipment,5023,Revenue,03.GROCERIES & PROVISIONS
29-Sep-2017,7004049,3.24,REDBRIDGE PRODUCE & FLOWERS LTD T/A TOTAL PRODUCE,390977,Commissioning & Investment,Children's & Education Services,103,Supplies and Services,504,Equipment,5023,Revenue,03.GROCERIES & PROVISIONS
29-Sep-2017,7004049,1.96,REDBRIDGE PRODUCE & FLOWERS LTD T/A TOTAL PRODUCE,390977,Commissioning & Investment,Children's & Education Services,103,Supplies and Services,504,Equipment,5023,Revenue,03.GROCERIES & PROVISIONS
29-Sep-2017,7004049,7.38,REDBRIDGE PRODUCE & FLOWERS LTD T/A TOTAL PRODUCE,390977,"Environment, Housing & Leisure",Cultural & Related Services,104,Supplies and Services,504,Equipment,5023,Revenue,03.GROCERIES & PROVISIONS
29-Sep-2017,7004049,36.73,REDBRIDGE PRODUCE & FLOWERS LTD T/A TOTAL PRODUCE,390977,"Environment, Housing & Leisure",Adult Social Care,101,Supplies and Services,504,Equipment,5023,Revenue,03.GROCERIES & PROVISIONS
29-Sep-2017,7004049,8.74,REDBRIDGE PRODUCE & FLOWERS LTD T/A TOTAL PRODUCE,390977,"Environment, Housing & Leisure",Adult Social Care,101,Supplies and Services,504,Equipment,5023,Revenue,03.GROCERIES & PROVISIONS
29-Sep-2017,7004049,2.90,REDBRIDGE PRODUCE & FLOWERS LTD T/A TOTAL PRODUCE,390977,Commissioning & Investment,Children's & Education Services,103,Supplies and Services,504,Equipment,5023,Revenue,03.GROCERIES & PROVISIONS
29-Sep-2017,7004049,19.50,REDBRIDGE PRODUCE & FLOWERS LTD T/A TOTAL PRODUCE,390977,Commissioning & Investment,Children's & Education Services,103,Supplies and Services,504,Equipment,5023,Revenue,03.GROCERIES & PROVISIONS
29-Sep-2017,7004049,1.23,REDBRIDGE PRODUCE & FLOWERS LTD T/A TOTAL PRODUCE,390977,"Environment, Housing & Leisure",Adult Social Care,101,Supplies and Services,504,Equipment,5023,Revenue,03.GROCERIES & PROVISIONS
29-Sep-2017,7004049,5.32,REDBRIDGE PRODUCE & FLOWERS LTD T/A TOTAL PRODUCE,390977,Commissioning & Investment,Children's & Education Services,103,Supplies and Services,504,Equipment,5023,Revenue,03.GROCERIES & PROVISIONS
29-Sep-2017,7004049,-1.28,REDBRIDGE PRODUCE & FLOWERS LTD T/A TOTAL PRODUCE,390977,Commissioning & Investment,Children's & Education Services,103,Supplies and Services,504,Equipment,5023,Revenue,03.GROCERIES & PROVISIONS
29-Sep-2017,7004049,98.92,REDBRIDGE PRODUCE & FLOWERS LTD T/A TOTAL PRODUCE,390977,"Environment, Housing & Leisure",Adult Social Care,101,Supplies and Services,504,Equipment,5023,Revenue,03.GROCERIES & PROVISIONS
29-Sep-2017,7004049,17.94,REDBRIDGE PRODUCE & FLOWERS LTD T/A TOTAL PRODUCE,390977,"Environment, Housing & Leisure",Cultural & Related Services,104,Supplies and Services,504,Equipment,5023,Revenue,03.GROCERIES & PROVISIONS
29-Sep-2017,7004049,74.57,REDBRIDGE PRODUCE & FLOWERS LTD T/A TOTAL PRODUCE,390977,"Environment, Housing & Leisure",Cultural & Related Services,104,Supplies and Services,504,Equipment,5023,Revenue,03.GROCERIES & PROVISIONS
29-Sep-2017,7004049,2.40,REDBRIDGE PRODUCE & FLOWERS LTD T/A TOTAL PRODUCE,390977,Commissioning & Investment,Children's & Education Services,103,Supplies and Services,504,Equipment,5023,Revenue,03.GROCERIES & PROVISIONS
29-Sep-2017,7004049,-5.32,REDBRIDGE PRODUCE & FLOWERS LTD T/A TOTAL PRODUCE,390977,Commissioning & Investment,Children's & Education Services,103,Supplies and Services,504,Equipment,5023,Revenue,03.GROCERIES & PROVISIONS
29-Sep-2017,7004049,19.62,REDBRIDGE PRODUCE & FLOWERS LTD T/A TOTAL PRODUCE,390977,"Environment, Housing & Leisure",Adult Social Care,101,Supplies and Services,504,Equipment,5023,Revenue,03.GROCERIES & PROVISIONS
29-Sep-2017,7004049,5.77,REDBRIDGE PRODUCE & FLOWERS LTD T/A TOTAL PRODUCE,390977,"Environment, Housing & Leisure",Cultural & Related Services,104,Supplies and Services,504,Equipment,5023,Revenue,03.GROCERIES & PROVISIONS
29-Sep-2017,7004049,10.14,REDBRIDGE PRODUCE & FLOWERS LTD T/A TOTAL PRODUCE,390977,Commissioning & Investment,Children's & Education Services,103,Supplies and Services,504,Equipment,5023,Revenue,03.GROCERIES & PROVISIONS
29-Sep-2017,7004049,3.00,REDBRIDGE PRODUCE & FLOWERS LTD T/A TOTAL PRODUCE,390977,Commissioning & Investment,Children's & Education Services,103,Supplies and Services,504,Equipment,5023,Revenue,03.GROCERIES & PROVISIONS
29-Sep-2017,7004049,120.88,REDBRIDGE PRODUCE & FLOWERS LTD T/A TOTAL PRODUCE,390977,Commissioning & Investment,Children's & Education Services,103,Supplies and Services,504,Equipment,5023,Revenue,03.GROCERIES & PROVISIONS
29-Sep-2017,7004049,199.36,REDBRIDGE PRODUCE & FLOWERS LTD T/A TOTAL PRODUCE,390977,Commissioning & Investment,Children's & Education Services,103,Supplies and Services,504,Equipment,5023,Revenue,03.GROCERIES & PROVISIONS
29-Sep-2017,7004049,26.20,REDBRIDGE PRODUCE & FLOWERS LTD T/A TOTAL PRODUCE,390977,"Environment, Housing & Leisure",Cultural & Related Services,104,Supplies and Services,504,Equipment,5023,Revenue,03.GROCERIES & PROVISIONS
29-Sep-2017,7004049,2.15,REDBRIDGE PRODUCE & FLOWERS LTD T/A TOTAL PRODUCE,390977,Commissioning & Investment,Children's & Education Services,103,Supplies and Services,504,Equipment,5023,Revenue,03.GROCERIES & PROVISIONS
29-Sep-2017,7004049,34.65,REDBRIDGE PRODUCE & FLOWERS LTD T/A TOTAL PRODUCE,390977,Commissioning & Investment,Children's & Education Services,103,Supplies and Services,504,Equipment,5023,Revenue,03.GROCERIES & PROVISIONS
29-Sep-2017,7004049,8.96,REDBRIDGE PRODUCE & FLOWERS LTD T/A TOTAL PRODUCE,390977,"Environment, Housing & Leisure",Cultural & Related Services,104,Supplies and Services,504,Equipment,5023,Revenue,03.GROCERIES & PROVISIONS
29-Sep-2017,7004049,67.70,REDBRIDGE PRODUCE & FLOWERS LTD T/A TOTAL PRODUCE,390977,"Environment, Housing & Leisure",Adult Social Care,101,Supplies and Services,504,Equipment,5023,Revenue,03.GROCERIES & PROVISIONS
29-Sep-2017,7004049,9.64,REDBRIDGE PRODUCE & FLOWERS LTD T/A TOTAL PRODUCE,390977,"Environment, Housing & Leisure",Cultural & Related Services,104,Supplies and Services,504,Equipment,5023,Revenue,03.GROCERIES & PROVISIONS
29-Sep-2017,7004049,5.98,REDBRIDGE PRODUCE & FLOWERS LTD T/A TOTAL PRODUCE,390977,"Environment, Housing & Leisure",Cultural & Related Services,104,Supplies and Services,504,Equipment,5023,Revenue,03.GROCERIES & PROVISIONS
29-Sep-2017,7004049,160.03,REDBRIDGE PRODUCE & FLOWERS LTD T/A TOTAL PRODUCE,390977,Commissioning & Investment,Children's & Education Services,103,Supplies and Services,504,Equipment,5023,Revenue,03.GROCERIES & PROVISIONS
29-Sep-2017,7004049,-1.15,REDBRIDGE PRODUCE & FLOWERS LTD T/A TOTAL PRODUCE,390977,Commissioning & Investment,Children's & Education Services,103,Supplies and Services,504,Equipment,5023,Revenue,03.GROCERIES & PROVISIONS
29-Sep-2017,7004049,1.07,REDBRIDGE PRODUCE & FLOWERS LTD T/A TOTAL PRODUCE,390977,Commissioning & Investment,Children's & Education Services,103,Supplies and Services,504,Equipment,5023,Revenue,03.GROCERIES & PROVISIONS
29-Sep-2017,7004049,5.98,REDBRIDGE PRODUCE & FLOWERS LTD T/A TOTAL PRODUCE,390977,"Environment, Housing & Leisure",Adult Social Care,101,Supplies and Services,504,Equipment,5023,Revenue,03.GROCERIES & PROVISIONS
29-Sep-2017,7004049,3.78,REDBRIDGE PRODUCE & FLOWERS LTD T/A TOTAL PRODUCE,390977,Commissioning & Investment,Children's & Education Services,103,Supplies and Services,504,Equipment,5023,Revenue,03.GROCERIES & PROVISIONS
29-Sep-2017,7004049,10.14,REDBRIDGE PRODUCE & FLOWERS LTD T/A TOTAL PRODUCE,390977,Commissioning & Investment,Children's & Education Services,103,Supplies and Services,504,Equipment,5023,Revenue,03.GROCERIES & PROVISIONS
29-Sep-2017,7004049,12.20,REDBRIDGE PRODUCE & FLOWERS LTD T/A TOTAL PRODUCE,390977,Commissioning & Investment,Children's & Education Services,103,Supplies and Services,504,Equipment,5023,Revenue,03.GROCERIES & PROVISIONS
29-Sep-2017,7004049,84.24,REDBRIDGE PRODUCE & FLOWERS LTD T/A TOTAL PRODUCE,390977,"Environment, Housing & Leisure",Cultural & Related Services,104,Supplies and Services,504,Equipment,5023,Revenue,03.GROCERIES & PROVISIONS
29-Sep-2017,7004049,24.82,REDBRIDGE PRODUCE & FLOWERS LTD T/A TOTAL PRODUCE,390977,"Environment, Housing & Leisure",Cultural & Related Services,104,Supplies and Services,504,Equipment,5023,Revenue,03.GROCERIES & PROVISIONS
29-Sep-2017,7004049,78.45,REDBRIDGE PRODUCE & FLOWERS LTD T/A TOTAL PRODUCE,390977,"Environment, Housing & Leisure",Cultural & Related Services,104,Supplies and Services,504,Equipment,5023,Revenue,03.GROCERIES & PROVISIONS
29-Sep-2017,7004049,30.24,REDBRIDGE PRODUCE & FLOWERS LTD T/A TOTAL PRODUCE,390977,Commissioning & Investment,Children's & Education Services,103,Supplies and Services,504,Equipment,5023,Revenue,03.GROCERIES & PROVISIONS
29-Sep-2017,7004049,50.00,REDBRIDGE PRODUCE & FLOWERS LTD T/A TOTAL PRODUCE,390977,Commissioning & Investment,Children's & Education Services,103,Supplies and Services,504,Equipment,5023,Revenue,03.GROCERIES & PROVISIONS
29-Sep-2017,7004049,5.77,REDBRIDGE PRODUCE & FLOWERS LTD T/A TOTAL PRODUCE,390977,"Environment, Housing & Leisure",Adult Social Care,101,Supplies and Services,504,Equipment,5023,Revenue,03.GROCERIES & PROVISIONS
29-Sep-2017,7004049,17.94,REDBRIDGE PRODUCE & FLOWERS LTD T/A TOTAL PRODUCE,390977,"Environment, Housing & Leisure",Cultural & Related Services,104,Supplies and Services,504,Equipment,5023,Revenue,03.GROCERIES & PROVISIONS
29-Sep-2017,7004049,1.64,REDBRIDGE PRODUCE & FLOWERS LTD T/A TOTAL PRODUCE,390977,"Environment, Housing & Leisure",Cultural & Related Services,104,Supplies and Services,504,Equipment,5023,Revenue,03.GROCERIES & PROVISIONS
29-Sep-2017,7004049,5.08,REDBRIDGE PRODUCE & FLOWERS LTD T/A TOTAL PRODUCE,390977,"Environment, Housing & Leisure",Cultural & Related Services,104,Supplies and Services,504,Equipment,5023,Revenue,03.GROCERIES & PROVISIONS
29-Sep-2017,7004049,39.40,REDBRIDGE PRODUCE & FLOWERS LTD T/A TOTAL PRODUCE,390977,"Environment, Housing & Leisure",Cultural & Related Services,104,Supplies and Services,504,Equipment,5023,Revenue,03.GROCERIES & PROVISIONS
29-Sep-2017,7004049,120.71,REDBRIDGE PRODUCE & FLOWERS LTD T/A TOTAL PRODUCE,390977,"Environment, Housing & Leisure",Cultural & Related Services,104,Supplies and Services,504,Equipment,5023,Revenue,03.GROCERIES & PROVISIONS
29-Sep-2017,7004049,127.32,REDBRIDGE PRODUCE & FLOWERS LTD T/A TOTAL PRODUCE,390977,"Environment, Housing & Leisure",Adult Social Care,101,Supplies and Services,504,Equipment,5023,Revenue,03.GROCERIES & PROVISIONS
29-Sep-2017,7004049,0.41,REDBRIDGE PRODUCE & FLOWERS LTD T/A TOTAL PRODUCE,390977,"Environment, Housing & Leisure",Cultural & Related Services,104,Supplies and Services,504,Equipment,5023,Revenue,03.GROCERIES & PROVISIONS
29-Sep-2017,7004049,19.49,REDBRIDGE PRODUCE & FLOWERS LTD T/A TOTAL PRODUCE,390977,"Environment, Housing & Leisure",Adult Social Care,101,Supplies and Services,504,Equipment,5023,Revenue,03.GROCERIES & PROVISIONS
29-Sep-2017,7004049,17.60,REDBRIDGE PRODUCE & FLOWERS LTD T/A TOTAL PRODUCE,390977,Commissioning & Investment,Children's & Education Services,103,Supplies and Services,504,Equipment,5023,Revenue,03.GROCERIES & PROVISIONS
29-Sep-2017,7004049,2.45,REDBRIDGE PRODUCE & FLOWERS LTD T/A TOTAL PRODUCE,390977,Commissioning & Investment,Children's & Education Services,103,Supplies and Services,504,Equipment,5023,Revenue,03.GROCERIES & PROVISIONS
29-Sep-2017,7004049,7.00,REDBRIDGE PRODUCE & FLOWERS LTD T/A TOTAL PRODUCE,390977,"Environment, Housing & Leisure",Adult Social Care,101,Supplies and Services,504,Equipment,5023,Revenue,03.GROCERIES & PROVISIONS
29-Sep-2017,7004049,9.32,REDBRIDGE PRODUCE & FLOWERS LTD T/A TOTAL PRODUCE,390977,"Environment, Housing & Leisure",Adult Social Care,101,Supplies and Services,504,Equipment,5023,Revenue,03.GROCERIES & PROVISIONS
29-Sep-2017,7004049,182.34,REDBRIDGE PRODUCE & FLOWERS LTD T/A TOTAL PRODUCE,390977,Commissioning & Investment,Children's & Education Services,103,Supplies and Services,504,Equipment,5023,Revenue,03.GROCERIES & PROVISIONS
29-Sep-2017,7004049,1.92,REDBRIDGE PRODUCE & FLOWERS LTD T/A TOTAL PRODUCE,390977,"Environment, Housing & Leisure",Cultural & Related Services,104,Supplies and Services,504,Equipment,5023,Revenue,03.GROCERIES & PROVISIONS
29-Sep-2017,7004049,-5.08,REDBRIDGE PRODUCE & FLOWERS LTD T/A TOTAL PRODUCE,390977,"Environment, Housing & Leisure",Adult Social Care,101,Supplies and Services,504,Equipment,5023,Revenue,03.GROCERIES & PROVISIONS
29-Sep-2017,7004049,5.98,REDBRIDGE PRODUCE & FLOWERS LTD T/A TOTAL PRODUCE,390977,"Environment, Housing & Leisure",Cultural & Related Services,104,Supplies and Services,504,Equipment,5023,Revenue,03.GROCERIES & PROVISIONS
29-Sep-2017,7004049,22.43,REDBRIDGE PRODUCE & FLOWERS LTD T/A TOTAL PRODUCE,390977,"Environment, Housing & Leisure",Adult Social Care,101,Supplies and Services,504,Equipment,5023,Revenue,03.GROCERIES & PROVISIONS
29-Sep-2017,7004049,-2.10,REDBRIDGE PRODUCE & FLOWERS LTD T/A TOTAL PRODUCE,390977,Commissioning & Investment,Children's & Education Services,103,Supplies and Services,504,Equipment,5023,Revenue,03.GROCERIES & PROVISIONS
29-Sep-2017,7004049,1.96,REDBRIDGE PRODUCE & FLOWERS LTD T/A TOTAL PRODUCE,390977,Commissioning & Investment,Children's & Education Services,103,Supplies and Services,504,Equipment,5023,Revenue,03.GROCERIES & PROVISIONS
29-Sep-2017,7004049,11.96,REDBRIDGE PRODUCE & FLOWERS LTD T/A TOTAL PRODUCE,390977,"Environment, Housing & Leisure",Cultural & Related Services,104,Supplies and Services,504,Equipment,5023,Revenue,03.GROCERIES & PROVISIONS
29-Sep-2017,7004049,23.92,REDBRIDGE PRODUCE & FLOWERS LTD T/A TOTAL PRODUCE,390977,"Environment, Housing & Leisure",Adult Social Care,101,Supplies and Services,504,Equipment,5023,Revenue,03.GROCERIES & PROVISIONS
29-Sep-2017,7004049,5.98,REDBRIDGE PRODUCE & FLOWERS LTD T/A TOTAL PRODUCE,390977,"Environment, Housing & Leisure",Cultural & Related Services,104,Supplies and Services,504,Equipment,5023,Revenue,03.GROCERIES & PROVISIONS
29-Sep-2017,7004049,41.54,REDBRIDGE PRODUCE & FLOWERS LTD T/A TOTAL PRODUCE,390977,Commissioning & Investment,Children's & Education Services,103,Supplies and Services,504,Equipment,5023,Revenue,03.GROCERIES & PROVISIONS
29-Sep-2017,7004049,4.32,REDBRIDGE PRODUCE & FLOWERS LTD T/A TOTAL PRODUCE,390977,Commissioning & Investment,Children's & Education Services,103,Supplies and Services,504,Equipment,5023,Revenue,03.GROCERIES & PROVISIONS
29-Sep-2017,7004049,21.42,REDBRIDGE PRODUCE & FLOWERS LTD T/A TOTAL PRODUCE,390977,Commissioning & Investment,Children's & Education Services,103,Supplies and Services,504,Equipment,5023,Revenue,03.GROCERIES & PROVISIONS
29-Sep-2017,7004049,1.47,REDBRIDGE PRODUCE & FLOWERS LTD T/A TOTAL PRODUCE,390977,Commissioning & Investment,Children's & Education Services,103,Supplies and Services,504,Equipment,5023,Revenue,03.GROCERIES & PROVISIONS
29-Sep-2017,7004049,8.29,REDBRIDGE PRODUCE & FLOWERS LTD T/A TOTAL PRODUCE,390977,"Environment, Housing & Leisure",Cultural & Related Services,104,Supplies and Services,504,Equipment,5023,Revenue,03.GROCERIES & PROVISIONS
29-Sep-2017,7004049,141.97,REDBRIDGE PRODUCE & FLOWERS LTD T/A TOTAL PRODUCE,390977,Commissioning & Investment,Children's & Education Services,103,Supplies and Services,504,Equipment,5023,Revenue,03.GROCERIES & PROVISIONS
29-Sep-2017,7004049,69.41,REDBRIDGE PRODUCE & FLOWERS LTD T/A TOTAL PRODUCE,390977,"Environment, Housing & Leisure",Cultural & Related Services,104,Supplies and Services,504,Equipment,5023,Revenue,03.GROCERIES & PROVISIONS
29-Sep-2017,7004049,9.32,REDBRIDGE PRODUCE & FLOWERS LTD T/A TOTAL PRODUCE,390977,"Environment, Housing & Leisure",Adult Social Care,101,Supplies and Services,504,Equipment,5023,Revenue,03.GROCERIES & PROVISIONS
29-Sep-2017,7004049,0.80,REDBRIDGE PRODUCE & FLOWERS LTD T/A TOTAL PRODUCE,390977,"Environment, Housing & Leisure",Adult Social Care,101,Supplies and Services,504,Equipment,5023,Revenue,03.GROCERIES & PROVISIONS
29-Sep-2017,7004049,149.87,REDBRIDGE PRODUCE & FLOWERS LTD T/A TOTAL PRODUCE,390977,Commissioning & Investment,Children's & Education Services,103,Supplies and Services,504,Equipment,5023,Revenue,03.GROCERIES & PROVISIONS
29-Sep-2017,7004049,2.16,REDBRIDGE PRODUCE & FLOWERS LTD T/A TOTAL PRODUCE,390977,Commissioning & Investment,Children's & Education Services,103,Supplies and Services,504,Equipment,5023,Revenue,03.GROCERIES & PROVISIONS
29-Sep-2017,7004049,161.06,REDBRIDGE PRODUCE & FLOWERS LTD T/A TOTAL PRODUCE,390977,Commissioning & Investment,Children's & Education Services,103,Supplies and Services,504,Equipment,5023,Revenue,03.GROCERIES & PROVISIONS
29-Sep-2017,7004049,11.99,REDBRIDGE PRODUCE & FLOWERS LTD T/A TOTAL PRODUCE,390977,Commissioning & Investment,Children's & Education Services,103,Supplies and Services,504,Equipment,5023,Revenue,03.GROCERIES & PROVISIONS
29-Sep-2017,7004049,81.44,REDBRIDGE PRODUCE & FLOWERS LTD T/A TOTAL PRODUCE,390977,"Environment, Housing & Leisure",Cultural & Related Services,104,Supplies and Services,504,Equipment,5023,Revenue,03.GROCERIES & PROVISIONS
29-Sep-2017,7004049,29.97,REDBRIDGE PRODUCE & FLOWERS LTD T/A TOTAL PRODUCE,390977,"Environment, Housing & Leisure",Adult Social Care,101,Supplies and Services,504,Equipment,5023,Revenue,03.GROCERIES & PROVISIONS
29-Sep-2017,7004049,27.38,REDBRIDGE PRODUCE & FLOWERS LTD T/A TOTAL PRODUCE,390977,"Environment, Housing & Leisure",Adult Social Care,101,Supplies and Services,504,Equipment,5023,Revenue,03.GROCERIES & PROVISIONS
29-Sep-2017,7004049,2.45,REDBRIDGE PRODUCE & FLOWERS LTD T/A TOTAL PRODUCE,390977,Commissioning & Investment,Children's & Education Services,103,Supplies and Services,504,Equipment,5023,Revenue,03.GROCERIES & PROVISIONS
29-Sep-2017,7004049,2.58,REDBRIDGE PRODUCE & FLOWERS LTD T/A TOTAL PRODUCE,390977,Commissioning & Investment,Children's & Education Services,103,Supplies and Services,504,Equipment,5023,Revenue,03.GROCERIES & PROVISIONS
29-Sep-2017,7004049,1.21,REDBRIDGE PRODUCE & FLOWERS LTD T/A TOTAL PRODUCE,390977,"Environment, Housing & Leisure",Cultural & Related Services,104,Supplies and Services,504,Equipment,5023,Revenue,03.GROCERIES & PROVISIONS
29-Sep-2017,7004049,13.08,REDBRIDGE PRODUCE & FLOWERS LTD T/A TOTAL PRODUCE,390977,"Environment, Housing & Leisure",Cultural & Related Services,104,Supplies and Services,504,Equipment,5023,Revenue,03.GROCERIES & PROVISIONS
29-Sep-2017,7004049,2.10,REDBRIDGE PRODUCE & FLOWERS LTD T/A TOTAL PRODUCE,390977,Commissioning & Investment,Children's & Education Services,103,Supplies and Services,504,Equipment,5023,Revenue,03.GROCERIES & PROVISIONS
29-Sep-2017,7004049,114.01,REDBRIDGE PRODUCE & FLOWERS LTD T/A TOTAL PRODUCE,390977,"Environment, Housing & Leisure",Adult Social Care,101,Supplies and Services,504,Equipment,5023,Revenue,03.GROCERIES & PROVISIONS
29-Sep-2017,7004049,244.86,REDBRIDGE PRODUCE & FLOWERS LTD T/A TOTAL PRODUCE,390977,Commissioning & Investment,Children's & Education Services,103,Supplies and Services,504,Equipment,5023,Revenue,03.GROCERIES & PROVISIONS
29-Sep-2017,7004049,157.03,REDBRIDGE PRODUCE & FLOWERS LTD T/A TOTAL PRODUCE,390977,Commissioning & Investment,Children's & Education Services,103,Supplies and Services,504,Equipment,5023,Revenue,03.GROCERIES & PROVISIONS
29-Sep-2017,7004049,-10.53,REDBRIDGE PRODUCE & FLOWERS LTD T/A TOTAL PRODUCE,390977,"Environment, Housing & Leisure",Cultural & Related Services,104,Supplies and Services,504,Equipment,5023,Revenue,03.GROCERIES & PROVISIONS
29-Sep-2017,7004049,-22.00,REDBRIDGE PRODUCE & FLOWERS LTD T/A TOTAL PRODUCE,390977,"Environment, Housing & Leisure",Cultural & Related Services,104,Supplies and Services,504,Equipment,5023,Revenue,03.GROCERIES & PROVISIONS
29-Sep-2017,7004049,19.16,REDBRIDGE PRODUCE & FLOWERS LTD T/A TOTAL PRODUCE,390977,Commissioning & Investment,Children's & Education Services,103,Supplies and Services,504,Equipment,5023,Revenue,03.GROCERIES & PROVISIONS
29-Sep-2017,7004049,0.88,REDBRIDGE PRODUCE & FLOWERS LTD T/A TOTAL PRODUCE,390977,"Environment, Housing & Leisure",Adult Social Care,101,Supplies and Services,504,Equipment,5023,Revenue,03.GROCERIES & PROVISIONS
29-Sep-2017,7004049,67.70,REDBRIDGE PRODUCE & FLOWERS LTD T/A TOTAL PRODUCE,390977,"Environment, Housing & Leisure",Adult Social Care,101,Supplies and Services,504,Equipment,5023,Revenue,03.GROCERIES & PROVISIONS
29-Sep-2017,7004049,-5.08,REDBRIDGE PRODUCE & FLOWERS LTD T/A TOTAL PRODUCE,390977,"Environment, Housing & Leisure",Adult Social Care,101,Supplies and Services,504,Equipment,5023,Revenue,03.GROCERIES & PROVISIONS
29-Sep-2017,7004049,47.03,REDBRIDGE PRODUCE & FLOWERS LTD T/A TOTAL PRODUCE,390977,"Environment, Housing & Leisure",Adult Social Care,101,Supplies and Services,504,Equipment,5023,Revenue,03.GROCERIES & PROVISIONS
29-Sep-2017,7004049,56.68,REDBRIDGE PRODUCE & FLOWERS LTD T/A TOTAL PRODUCE,390977,"Environment, Housing & Leisure",Adult Social Care,101,Supplies and Services,504,Equipment,5023,Revenue,03.GROCERIES & PROVISIONS
29-Sep-2017,7004049,97.52,REDBRIDGE PRODUCE & FLOWERS LTD T/A TOTAL PRODUCE,390977,Commissioning & Investment,Children's & Education Services,103,Supplies and Services,504,Equipment,5023,Revenue,03.GROCERIES & PROVISIONS
29-Sep-2017,7004049,9.32,REDBRIDGE PRODUCE & FLOWERS LTD T/A TOTAL PRODUCE,390977,"Environment, Housing & Leisure",Adult Social Care,101,Supplies and Services,504,Equipment,5023,Revenue,03.GROCERIES & PROVISIONS
29-Sep-2017,7004049,1.02,REDBRIDGE PRODUCE & FLOWERS LTD T/A TOTAL PRODUCE,390977,Commissioning & Investment,Children's & Education Services,103,Supplies and Services,504,Equipment,5023,Revenue,03.GROCERIES & PROVISIONS
29-Sep-2017,7004049,164.36,REDBRIDGE PRODUCE & FLOWERS LTD T/A TOTAL PRODUCE,390977,Commissioning & Investment,Children's & Education Services,103,Supplies and Services,504,Equipment,5023,Revenue,03.GROCERIES & PROVISIONS
29-Sep-2017,7004049,8.74,REDBRIDGE PRODUCE & FLOWERS LTD T/A TOTAL PRODUCE,390977,"Environment, Housing & Leisure",Cultural & Related Services,104,Supplies and Services,504,Equipment,5023,Revenue,03.GROCERIES & PROVISIONS
29-Sep-2017,7004049,6.20,REDBRIDGE PRODUCE & FLOWERS LTD T/A TOTAL PRODUCE,390977,"Environment, Housing & Leisure",Adult Social Care,101,Supplies and Services,504,Equipment,5023,Revenue,03.GROCERIES & PROVISIONS
29-Sep-2017,7004049,156.57,REDBRIDGE PRODUCE & FLOWERS LTD T/A TOTAL PRODUCE,390977,Commissioning & Investment,Children's & Education Services,103,Supplies and Services,504,Equipment,5023,Revenue,03.GROCERIES & PROVISIONS
29-Sep-2017,7004049,83.40,REDBRIDGE PRODUCE & FLOWERS LTD T/A TOTAL PRODUCE,390977,"Environment, Housing & Leisure",Cultural & Related Services,104,Supplies and Services,504,Equipment,5023,Revenue,03.GROCERIES & PROVISIONS
29-Sep-2017,7004049,1.47,REDBRIDGE PRODUCE & FLOWERS LTD T/A TOTAL PRODUCE,390977,Commissioning & Investment,Children's & Education Services,103,Supplies and Services,504,Equipment,5023,Revenue,03.GROCERIES & PROVISIONS
29-Sep-2017,7004049,1.04,REDBRIDGE PRODUCE & FLOWERS LTD T/A TOTAL PRODUCE,390977,Commissioning & Investment,Children's & Education Services,103,Supplies and Services,504,Equipment,5023,Revenue,03.GROCERIES & PROVISIONS
29-Sep-2017,7004049,129.83,REDBRIDGE PRODUCE & FLOWERS LTD T/A TOTAL PRODUCE,390977,Commissioning & Investment,Children's & Education Services,103,Supplies and Services,504,Equipment,5023,Revenue,03.GROCERIES & PROVISIONS
29-Sep-2017,7004049,245.52,REDBRIDGE PRODUCE & FLOWERS LTD T/A TOTAL PRODUCE,390977,Commissioning & Investment,Children's & Education Services,103,Supplies and Services,504,Equipment,5023,Revenue,03.GROCERIES & PROVISIONS
29-Sep-2017,7004049,135.25,REDBRIDGE PRODUCE & FLOWERS LTD T/A TOTAL PRODUCE,390977,Commissioning & Investment,Children's & Education Services,103,Supplies and Services,504,Equipment,5023,Revenue,03.GROCERIES & PROVISIONS
29-Sep-2017,7004049,1.54,REDBRIDGE PRODUCE & FLOWERS LTD T/A TOTAL PRODUCE,390977,"Environment, Housing & Leisure",Cultural & Related Services,104,Supplies and Services,504,Equipment,5023,Revenue,03.GROCERIES & PROVISIONS
29-Sep-2017,7004049,13.81,REDBRIDGE PRODUCE & FLOWERS LTD T/A TOTAL PRODUCE,390977,Commissioning & Investment,Children's & Education Services,103,Supplies and Services,504,Equipment,5023,Revenue,03.GROCERIES & PROVISIONS
29-Sep-2017,7004049,5.08,REDBRIDGE PRODUCE & FLOWERS LTD T/A TOTAL PRODUCE,390977,"Environment, Housing & Leisure",Adult Social Care,101,Supplies and Services,504,Equipment,5023,Revenue,03.GROCERIES & PROVISIONS
29-Sep-2017,7004049,1.07,REDBRIDGE PRODUCE & FLOWERS LTD T/A TOTAL PRODUCE,390977,Commissioning & Investment,Children's & Education Services,103,Supplies and Services,504,Equipment,5023,Revenue,03.GROCERIES & PROVISIONS
29-Sep-2017,7004049,1.47,REDBRIDGE PRODUCE & FLOWERS LTD T/A TOTAL PRODUCE,390977,Commissioning & Investment,Children's & Education Services,103,Supplies and Services,504,Equipment,5023,Revenue,03.GROCERIES & PROVISIONS
29-Sep-2017,7004049,14.95,REDBRIDGE PRODUCE & FLOWERS LTD T/A TOTAL PRODUCE,390977,"Environment, Housing & Leisure",Cultural & Related Services,104,Supplies and Services,504,Equipment,5023,Revenue,03.GROCERIES & PROVISIONS
29-Sep-2017,7004049,16.99,REDBRIDGE PRODUCE & FLOWERS LTD T/A TOTAL PRODUCE,390977,"Environment, Housing & Leisure",Cultural & Related Services,104,Supplies and Services,504,Equipment,5023,Revenue,03.GROCERIES & PROVISIONS
29-Sep-2017,7004049,0.78,REDBRIDGE PRODUCE & FLOWERS LTD T/A TOTAL PRODUCE,390977,Commissioning & Investment,Children's & Education Services,103,Supplies and Services,504,Equipment,5023,Revenue,03.GROCERIES & PROVISIONS
29-Sep-2017,7004049,78.56,REDBRIDGE PRODUCE & FLOWERS LTD T/A TOTAL PRODUCE,390977,"Environment, Housing & Leisure",Cultural & Related Services,104,Supplies and Services,504,Equipment,5023,Revenue,03.GROCERIES & PROVISIONS
29-Sep-2017,7004049,0.82,REDBRIDGE PRODUCE & FLOWERS LTD T/A TOTAL PRODUCE,390977,"Environment, Housing & Leisure",Cultural & Related Services,104,Supplies and Services,504,Equipment,5023,Revenue,03.GROCERIES & PROVISIONS
29-Sep-2017,7004049,1.54,REDBRIDGE PRODUCE & FLOWERS LTD T/A TOTAL PRODUCE,390977,"Environment, Housing & Leisure",Adult Social Care,101,Supplies and Services,504,Equipment,5023,Revenue,03.GROCERIES & PROVISIONS
29-Sep-2017,7004049,1.25,REDBRIDGE PRODUCE & FLOWERS LTD T/A TOTAL PRODUCE,390977,Commissioning & Investment,Children's & Education Services,103,Supplies and Services,504,Equipment,5023,Revenue,03.GROCERIES & PROVISIONS
29-Sep-2017,7004049,27.98,REDBRIDGE PRODUCE & FLOWERS LTD T/A TOTAL PRODUCE,390977,"Environment, Housing & Leisure",Cultural & Related Services,104,Supplies and Services,504,Equipment,5023,Revenue,03.GROCERIES & PROVISIONS
29-Sep-2017,7004049,348.58,REDBRIDGE PRODUCE & FLOWERS LTD T/A TOTAL PRODUCE,390977,Commissioning & Investment,Children's & Education Services,103,Supplies and Services,504,Equipment,5023,Revenue,03.GROCERIES & PROVISIONS
29-Sep-2017,7004049,1.15,REDBRIDGE PRODUCE & FLOWERS LTD T/A TOTAL PRODUCE,390977,Commissioning & Investment,Children's & Education Services,103,Supplies and Services,504,Equipment,5023,Revenue,03.GROCERIES & PROVISIONS
29-Sep-2017,7004049,4.40,REDBRIDGE PRODUCE & FLOWERS LTD T/A TOTAL PRODUCE,390977,Commissioning & Investment,Children's & Education Services,103,Supplies and Services,504,Equipment,5023,Revenue,03.GROCERIES & PROVISIONS
29-Sep-2017,7004049,41.69,REDBRIDGE PRODUCE & FLOWERS LTD T/A TOTAL PRODUCE,390977,"Environment, Housing & Leisure",Adult Social Care,101,Supplies and Services,504,Equipment,5023,Revenue,03.GROCERIES & PROVISIONS
29-Sep-2017,7004049,1.49,REDBRIDGE PRODUCE & FLOWERS LTD T/A TOTAL PRODUCE,390977,"Environment, Housing & Leisure",Cultural & Related Services,104,Supplies and Services,504,Equipment,5023,Revenue,03.GROCERIES & PROVISIONS
29-Sep-2017,7004049,3.24,REDBRIDGE PRODUCE & FLOWERS LTD T/A TOTAL PRODUCE,390977,Commissioning & Investment,Children's & Education Services,103,Supplies and Services,504,Equipment,5023,Revenue,03.GROCERIES & PROVISIONS
29-Sep-2017,7004049,9.99,REDBRIDGE PRODUCE & FLOWERS LTD T/A TOTAL PRODUCE,390977,"Environment, Housing & Leisure",Cultural & Related Services,104,Supplies and Services,504,Equipment,5023,Revenue,03.GROCERIES & PROVISIONS
29-Sep-2017,7004049,1.28,REDBRIDGE PRODUCE & FLOWERS LTD T/A TOTAL PRODUCE,390977,Commissioning & Investment,Children's & Education Services,103,Supplies and Services,504,Equipment,5023,Revenue,03.GROCERIES & PROVISIONS
29-Sep-2017,7004049,18.26,REDBRIDGE PRODUCE & FLOWERS LTD T/A TOTAL PRODUCE,390977,Commissioning & Investment,Children's & Education Services,103,Supplies and Services,504,Equipment,5023,Revenue,03.GROCERIES & PROVISIONS
29-Sep-2017,7004049,1.64,REDBRIDGE PRODUCE & FLOWERS LTD T/A TOTAL PRODUCE,390977,"Environment, Housing & Leisure",Cultural & Related Services,104,Supplies and Services,504,Equipment,5023,Revenue,03.GROCERIES & PROVISIONS
29-Sep-2017,7004049,28.86,REDBRIDGE PRODUCE & FLOWERS LTD T/A TOTAL PRODUCE,390977,"Environment, Housing & Leisure",Adult Social Care,101,Supplies and Services,504,Equipment,5023,Revenue,03.GROCERIES & PROVISIONS
29-Sep-2017,7004049,32.66,REDBRIDGE PRODUCE & FLOWERS LTD T/A TOTAL PRODUCE,390977,"Environment, Housing & Leisure",Cultural & Related Services,104,Supplies and Services,504,Equipment,5023,Revenue,03.GROCERIES & PROVISIONS
29-Sep-2017,7004049,16.50,REDBRIDGE PRODUCE & FLOWERS LTD T/A TOTAL PRODUCE,390977,"Environment, Housing & Leisure",Adult Social Care,101,Supplies and Services,504,Equipment,5023,Revenue,03.GROCERIES & PROVISIONS
29-Sep-2017,7004049,45.83,REDBRIDGE PRODUCE & FLOWERS LTD T/A TOTAL PRODUCE,390977,"Environment, Housing & Leisure",Cultural & Related Services,104,Supplies and Services,504,Equipment,5023,Revenue,03.GROCERIES & PROVISIONS
29-Sep-2017,7004049,3.65,REDBRIDGE PRODUCE & FLOWERS LTD T/A TOTAL PRODUCE,390977,"Environment, Housing & Leisure",Cultural & Related Services,104,Supplies and Services,504,Equipment,5023,Revenue,03.GROCERIES & PROVISIONS
29-Sep-2017,7004049,4.80,REDBRIDGE PRODUCE & FLOWERS LTD T/A TOTAL PRODUCE,390977,Commissioning & Investment,Children's & Education Services,103,Supplies and Services,504,Equipment,5023,Revenue,03.GROCERIES & PROVISIONS
29-Sep-2017,7004049,4.90,REDBRIDGE PRODUCE & FLOWERS LTD T/A TOTAL PRODUCE,390977,"Environment, Housing & Leisure",Cultural & Related Services,104,Supplies and Services,504,Equipment,5023,Revenue,03.GROCERIES & PROVISIONS
29-Sep-2017,7004049,2.32,REDBRIDGE PRODUCE & FLOWERS LTD T/A TOTAL PRODUCE,390977,"Environment, Housing & Leisure",Adult Social Care,101,Supplies and Services,504,Equipment,5023,Revenue,03.GROCERIES & PROVISIONS
29-Sep-2017,7004049,1.59,REDBRIDGE PRODUCE & FLOWERS LTD T/A TOTAL PRODUCE,390977,Commissioning & Investment,Children's & Education Services,103,Supplies and Services,504,Equipment,5023,Revenue,03.GROCERIES & PROVISIONS
29-Sep-2017,7004049,70.86,REDBRIDGE PRODUCE & FLOWERS LTD T/A TOTAL PRODUCE,390977,"Environment, Housing & Leisure",Adult Social Care,101,Supplies and Services,504,Equipment,5023,Revenue,03.GROCERIES & PROVISIONS
29-Sep-2017,7004049,8.68,REDBRIDGE PRODUCE & FLOWERS LTD T/A TOTAL PRODUCE,390977,Commissioning & Investment,Children's & Education Services,103,Supplies and Services,504,Equipment,5023,Revenue,03.GROCERIES & PROVISIONS
29-Sep-2017,7004049,-1.02,REDBRIDGE PRODUCE & FLOWERS LTD T/A TOTAL PRODUCE,390977,Commissioning & Investment,Children's & Education Services,103,Supplies and Services,504,Equipment,5023,Revenue,03.GROCERIES & PROVISIONS
29-Sep-2017,7004049,21.30,REDBRIDGE PRODUCE & FLOWERS LTD T/A TOTAL PRODUCE,390977,"Environment, Housing & Leisure",Adult Social Care,101,Supplies and Services,504,Equipment,5023,Revenue,03.GROCERIES & PROVISIONS
29-Sep-2017,7004049,77.41,REDBRIDGE PRODUCE & FLOWERS LTD T/A TOTAL PRODUCE,390977,"Environment, Housing & Leisure",Cultural & Related Services,104,Supplies and Services,504,Equipment,5023,Revenue,03.GROCERIES & PROVISIONS
29-Sep-2017,7004049,323.18,REDBRIDGE PRODUCE & FLOWERS LTD T/A TOTAL PRODUCE,390977,Commissioning & Investment,Children's & Education Services,103,Supplies and Services,504,Equipment,5023,Revenue,03.GROCERIES & PROVISIONS
29-Sep-2017,7004049,2.32,REDBRIDGE PRODUCE & FLOWERS LTD T/A TOTAL PRODUCE,390977,"Environment, Housing & Leisure",Cultural & Related Services,104,Supplies and Services,504,Equipment,5023,Revenue,03.GROCERIES & PROVISIONS
29-Sep-2017,7004049,12.20,REDBRIDGE PRODUCE & FLOWERS LTD T/A TOTAL PRODUCE,390977,"Environment, Housing & Leisure",Cultural & Related Services,104,Supplies and Services,504,Equipment,5023,Revenue,03.GROCERIES & PROVISIONS
29-Sep-2017,7004049,9.64,REDBRIDGE PRODUCE & FLOWERS LTD T/A TOTAL PRODUCE,390977,"Environment, Housing & Leisure",Adult Social Care,101,Supplies and Services,504,Equipment,5023,Revenue,03.GROCERIES & PROVISIONS
29-Sep-2017,7004049,1.44,REDBRIDGE PRODUCE & FLOWERS LTD T/A TOTAL PRODUCE,390977,"Environment, Housing & Leisure",Adult Social Care,101,Supplies and Services,504,Equipment,5023,Revenue,03.GROCERIES & PROVISIONS
29-Sep-2017,7004049,14.42,REDBRIDGE PRODUCE & FLOWERS LTD T/A TOTAL PRODUCE,390977,Commissioning & Investment,Children's & Education Services,103,Supplies and Services,504,Equipment,5023,Revenue,03.GROCERIES & PROVISIONS
29-Sep-2017,7004049,1.56,REDBRIDGE PRODUCE & FLOWERS LTD T/A TOTAL PRODUCE,390977,Commissioning & Investment,Children's & Education Services,103,Supplies and Services,504,Equipment,5023,Revenue,03.GROCERIES & PROVISIONS
29-Sep-2017,7004049,8.74,REDBRIDGE PRODUCE & FLOWERS LTD T/A TOTAL PRODUCE,390977,"Environment, Housing & Leisure",Adult Social Care,101,Supplies and Services,504,Equipment,5023,Revenue,03.GROCERIES & PROVISIONS
29-Sep-2017,7004049,22.00,REDBRIDGE PRODUCE & FLOWERS LTD T/A TOTAL PRODUCE,390977,"Environment, Housing & Leisure",Cultural & Related Services,104,Supplies and Services,504,Equipment,5023,Revenue,03.GROCERIES & PROVISIONS
29-Sep-2017,7004049,1.02,REDBRIDGE PRODUCE & FLOWERS LTD T/A TOTAL PRODUCE,390977,Commissioning & Investment,Children's & Education Services,103,Supplies and Services,504,Equipment,5023,Revenue,03.GROCERIES & PROVISIONS
29-Sep-2017,7004049,8.29,REDBRIDGE PRODUCE & FLOWERS LTD T/A TOTAL PRODUCE,390977,"Environment, Housing & Leisure",Cultural & Related Services,104,Supplies and Services,504,Equipment,5023,Revenue,03.GROCERIES & PROVISIONS
29-Sep-2017,7004049,12.11,REDBRIDGE PRODUCE & FLOWERS LTD T/A TOTAL PRODUCE,390977,Commissioning & Investment,Children's & Education Services,103,Supplies and Services,504,Equipment,5023,Revenue,03.GROCERIES & PROVISIONS
29-Sep-2017,7004049,11.96,REDBRIDGE PRODUCE & FLOWERS LTD T/A TOTAL PRODUCE,390977,"Environment, Housing & Leisure",Adult Social Care,101,Supplies and Services,504,Equipment,5023,Revenue,03.GROCERIES & PROVISIONS
29-Sep-2017,7004049,2.32,REDBRIDGE PRODUCE & FLOWERS LTD T/A TOTAL PRODUCE,390977,"Environment, Housing & Leisure",Adult Social Care,101,Supplies and Services,504,Equipment,5023,Revenue,03.GROCERIES & PROVISIONS
29-Sep-2017,7004049,187.78,REDBRIDGE PRODUCE & FLOWERS LTD T/A TOTAL PRODUCE,390977,Commissioning & Investment,Children's & Education Services,103,Supplies and Services,504,Equipment,5023,Revenue,03.GROCERIES & PROVISIONS
29-Sep-2017,7004049,2.04,REDBRIDGE PRODUCE & FLOWERS LTD T/A TOTAL PRODUCE,390977,Commissioning & Investment,Children's & Education Services,103,Supplies and Services,504,Equipment,5023,Revenue,03.GROCERIES & PROVISIONS
29-Sep-2017,7004049,17.94,REDBRIDGE PRODUCE & FLOWERS LTD T/A TOTAL PRODUCE,390977,"Environment, Housing & Leisure",Cultural & Related Services,104,Supplies and Services,504,Equipment,5023,Revenue,03.GROCERIES & PROVISIONS
29-Sep-2017,7004049,8.97,REDBRIDGE PRODUCE & FLOWERS LTD T/A TOTAL PRODUCE,390977,"Environment, Housing & Leisure",Cultural & Related Services,104,Supplies and Services,504,Equipment,5023,Revenue,03.GROCERIES & PROVISIONS
29-Sep-2017,7004049,159.45,REDBRIDGE PRODUCE & FLOWERS LTD T/A TOTAL PRODUCE,390977,Commissioning & Investment,Children's & Education Services,103,Supplies and Services,504,Equipment,5023,Revenue,03.GROCERIES & PROVISIONS
29-Sep-2017,7004049,1.25,REDBRIDGE PRODUCE & FLOWERS LTD T/A TOTAL PRODUCE,390977,Commissioning & Investment,Children's & Education Services,103,Supplies and Services,504,Equipment,5023,Revenue,03.GROCERIES & PROVISIONS
29-Sep-2017,7004049,14.97,REDBRIDGE PRODUCE & FLOWERS LTD T/A TOTAL PRODUCE,390977,Commissioning & Investment,Children's & Education Services,103,Supplies and Services,504,Equipment,5023,Revenue,03.GROCERIES & PROVISIONS
29-Sep-2017,7004049,-3.06,REDBRIDGE PRODUCE & FLOWERS LTD T/A TOTAL PRODUCE,390977,Commissioning & Investment,Children's & Education Services,103,Supplies and Services,504,Equipment,5023,Revenue,03.GROCERIES & PROVISIONS
29-Sep-2017,7004049,23.28,REDBRIDGE PRODUCE & FLOWERS LTD T/A TOTAL PRODUCE,390977,"Environment, Housing & Leisure",Adult Social Care,101,Supplies and Services,504,Equipment,5023,Revenue,03.GROCERIES & PROVISIONS
29-Sep-2017,7004049,37.37,REDBRIDGE PRODUCE & FLOWERS LTD T/A TOTAL PRODUCE,390977,"Environment, Housing & Leisure",Cultural & Related Services,104,Supplies and Services,504,Equipment,5023,Revenue,03.GROCERIES & PROVISIONS
29-Sep-2017,7004049,71.69,REDBRIDGE PRODUCE & FLOWERS LTD T/A TOTAL PRODUCE,390977,"Environment, Housing & Leisure",Cultural & Related Services,104,Supplies and Services,504,Equipment,5023,Revenue,03.GROCERIES & PROVISIONS
29-Sep-2017,7004049,45.59,REDBRIDGE PRODUCE & FLOWERS LTD T/A TOTAL PRODUCE,390977,"Environment, Housing & Leisure",Cultural & Related Services,104,Supplies and Services,504,Equipment,5023,Revenue,03.GROCERIES & PROVISIONS
29-Sep-2017,7004049,89.19,REDBRIDGE PRODUCE & FLOWERS LTD T/A TOTAL PRODUCE,390977,"Environment, Housing & Leisure",Cultural & Related Services,104,Supplies and Services,504,Equipment,5023,Revenue,03.GROCERIES & PROVISIONS
29-Sep-2017,7004049,113.09,REDBRIDGE PRODUCE & FLOWERS LTD T/A TOTAL PRODUCE,390977,Commissioning & Investment,Children's & Education Services,103,Supplies and Services,504,Equipment,5023,Revenue,03.GROCERIES & PROVISIONS
29-Sep-2017,7004049,5.98,REDBRIDGE PRODUCE & FLOWERS LTD T/A TOTAL PRODUCE,390977,"Environment, Housing & Leisure",Adult Social Care,101,Supplies and Services,504,Equipment,5023,Revenue,03.GROCERIES & PROVISIONS
29-Sep-2017,7004049,39.84,REDBRIDGE PRODUCE & FLOWERS LTD T/A TOTAL PRODUCE,390977,"Environment, Housing & Leisure",Adult Social Care,101,Supplies and Services,504,Equipment,5023,Revenue,03.GROCERIES & PROVISIONS
29-Sep-2017,7004049,-1.07,REDBRIDGE PRODUCE & FLOWERS LTD T/A TOTAL PRODUCE,390977,Commissioning & Investment,Children's & Education Services,103,Supplies and Services,504,Equipment,5023,Revenue,03.GROCERIES & PROVISIONS
29-Sep-2017,7004049,20.00,REDBRIDGE PRODUCE & FLOWERS LTD T/A TOTAL PRODUCE,390977,Commissioning & Investment,Children's & Education Services,103,Supplies and Services,504,Equipment,5023,Revenue,03.GROCERIES & PROVISIONS
29-Sep-2017,7004049,-1.28,REDBRIDGE PRODUCE & FLOWERS LTD T/A TOTAL PRODUCE,390977,Commissioning & Investment,Children's & Education Services,103,Supplies and Services,504,Equipment,5023,Revenue,03.GROCERIES & PROVISIONS
29-Sep-2017,7004049,54.42,REDBRIDGE PRODUCE & FLOWERS LTD T/A TOTAL PRODUCE,390977,Commissioning & Investment,Children's & Education Services,103,Supplies and Services,504,Equipment,5023,Revenue,03.GROCERIES & PROVISIONS
29-Sep-2017,7004049,-5.70,REDBRIDGE PRODUCE & FLOWERS LTD T/A TOTAL PRODUCE,390977,Commissioning & Investment,Children's & Education Services,103,Supplies and Services,504,Equipment,5023,Revenue,03.GROCERIES & PROVISIONS
29-Sep-2017,7004049,7.64,REDBRIDGE PRODUCE & FLOWERS LTD T/A TOTAL PRODUCE,390977,Commissioning & Investment,Children's & Education Services,103,Supplies and Services,504,Equipment,5023,Revenue,03.GROCERIES & PROVISIONS
29-Sep-2017,7004049,27.55,REDBRIDGE PRODUCE & FLOWERS LTD T/A TOTAL PRODUCE,390977,"Environment, Housing & Leisure",Cultural & Related Services,104,Supplies and Services,504,Equipment,5023,Revenue,03.GROCERIES & PROVISIONS
29-Sep-2017,7004049,112.57,REDBRIDGE PRODUCE & FLOWERS LTD T/A TOTAL PRODUCE,390977,Commissioning & Investment,Children's & Education Services,103,Supplies and Services,504,Equipment,5023,Revenue,03.GROCERIES & PROVISIONS
29-Sep-2017,7004049,-0.51,REDBRIDGE PRODUCE & FLOWERS LTD T/A TOTAL PRODUCE,390977,Commissioning & Investment,Children's & Education Services,103,Supplies and Services,504,Equipment,5023,Revenue,03.GROCERIES & PROVISIONS
29-Sep-2017,7004049,65.13,REDBRIDGE PRODUCE & FLOWERS LTD T/A TOTAL PRODUCE,390977,"Environment, Housing & Leisure",Adult Social Care,101,Supplies and Services,504,Equipment,5023,Revenue,03.GROCERIES & PROVISIONS
29-Sep-2017,7004049,-2.40,REDBRIDGE PRODUCE & FLOWERS LTD T/A TOTAL PRODUCE,390977,Commissioning & Investment,Children's & Education Services,103,Supplies and Services,504,Equipment,5023,Revenue,03.GROCERIES & PROVISIONS
29-Sep-2017,7004049,-18.26,REDBRIDGE PRODUCE & FLOWERS LTD T/A TOTAL PRODUCE,390977,Commissioning & Investment,Children's & Education Services,103,Supplies and Services,504,Equipment,5023,Revenue,03.GROCERIES & PROVISIONS
29-Sep-2017,7004049,5.32,REDBRIDGE PRODUCE & FLOWERS LTD T/A TOTAL PRODUCE,390977,Commissioning & Investment,Children's & Education Services,103,Supplies and Services,504,Equipment,5023,Revenue,03.GROCERIES & PROVISIONS
29-Sep-2017,7004049,-5.32,REDBRIDGE PRODUCE & FLOWERS LTD T/A TOTAL PRODUCE,390977,Commissioning & Investment,Children's & Education Services,103,Supplies and Services,504,Equipment,5023,Revenue,03.GROCERIES & PROVISIONS
29-Sep-2017,7004049,7.32,REDBRIDGE PRODUCE & FLOWERS LTD T/A TOTAL PRODUCE,390977,"Environment, Housing & Leisure",Cultural & Related Services,104,Supplies and Services,504,Equipment,5023,Revenue,03.GROCERIES & PROVISIONS
29-Sep-2017,7004049,11.96,REDBRIDGE PRODUCE & FLOWERS LTD T/A TOTAL PRODUCE,390977,"Environment, Housing & Leisure",Adult Social Care,101,Supplies and Services,504,Equipment,5023,Revenue,03.GROCERIES & PROVISIONS
29-Sep-2017,7004049,2.08,REDBRIDGE PRODUCE & FLOWERS LTD T/A TOTAL PRODUCE,390977,Commissioning & Investment,Children's & Education Services,103,Supplies and Services,504,Equipment,5023,Revenue,03.GROCERIES & PROVISIONS
29-Sep-2017,7004049,12.03,REDBRIDGE PRODUCE & FLOWERS LTD T/A TOTAL PRODUCE,390977,Commissioning & Investment,Children's & Education Services,103,Supplies and Services,504,Equipment,5023,Revenue,03.GROCERIES & PROVISIONS
29-Sep-2017,7004049,60.05,REDBRIDGE PRODUCE & FLOWERS LTD T/A TOTAL PRODUCE,390977,"Environment, Housing & Leisure",Cultural & Related Services,104,Supplies and Services,504,Equipment,5023,Revenue,03.GROCERIES & PROVISIONS
29-Sep-2017,7004049,117.52,REDBRIDGE PRODUCE & FLOWERS LTD T/A TOTAL PRODUCE,390977,Commissioning & Investment,Children's & Education Services,103,Supplies and Services,504,Equipment,5023,Revenue,03.GROCERIES & PROVISIONS
29-Sep-2017,7004049,-1.15,REDBRIDGE PRODUCE & FLOWERS LTD T/A TOTAL PRODUCE,390977,Commissioning & Investment,Children's & Education Services,103,Supplies and Services,504,Equipment,5023,Revenue,03.GROCERIES & PROVISIONS
29-Sep-2017,7004049,-4.67,REDBRIDGE PRODUCE & FLOWERS LTD T/A TOTAL PRODUCE,390977,Commissioning & Investment,Children's & Education Services,103,Supplies and Services,504,Equipment,5023,Revenue,03.GROCERIES & PROVISIONS
29-Sep-2017,7004049,-0.49,REDBRIDGE PRODUCE & FLOWERS LTD T/A TOTAL PRODUCE,390977,Commissioning & Investment,Children's & Education Services,103,Supplies and Services,504,Equipment,5023,Revenue,03.GROCERIES & PROVISIONS
29-Sep-2017,7004049,25.50,REDBRIDGE PRODUCE & FLOWERS LTD T/A TOTAL PRODUCE,390977,Commissioning & Investment,Children's & Education Services,103,Supplies and Services,504,Equipment,5023,Revenue,03.GROCERIES & PROVISIONS
29-Sep-2017,7004049,189.99,REDBRIDGE PRODUCE & FLOWERS LTD T/A TOTAL PRODUCE,390977,Commissioning & Investment,Children's & Education Services,103,Supplies and Services,504,Equipment,5023,Revenue,03.GROCERIES & PROVISIONS
29-Sep-2017,7004049,4.40,REDBRIDGE PRODUCE & FLOWERS LTD T/A TOTAL PRODUCE,390977,Commissioning & Investment,Children's & Education Services,103,Supplies and Services,504,Equipment,5023,Revenue,03.GROCERIES & PROVISIONS
29-Sep-2017,7004049,3.08,REDBRIDGE PRODUCE & FLOWERS LTD T/A TOTAL PRODUCE,390977,"Environment, Housing & Leisure",Adult Social Care,101,Supplies and Services,504,Equipment,5023,Revenue,03.GROCERIES & PROVISIONS
29-Sep-2017,7004049,8.29,REDBRIDGE PRODUCE & FLOWERS LTD T/A TOTAL PRODUCE,390977,"Environment, Housing & Leisure",Adult Social Care,101,Supplies and Services,504,Equipment,5023,Revenue,03.GROCERIES & PROVISIONS
29-Sep-2017,7004049,-1.25,REDBRIDGE PRODUCE & FLOWERS LTD T/A TOTAL PRODUCE,390977,Commissioning & Investment,Children's & Education Services,103,Supplies and Services,504,Equipment,5023,Revenue,03.GROCERIES & PROVISIONS
29-Sep-2017,7004049,11.54,REDBRIDGE PRODUCE & FLOWERS LTD T/A TOTAL PRODUCE,390977,"Environment, Housing & Leisure",Cultural & Related Services,104,Supplies and Services,504,Equipment,5023,Revenue,03.GROCERIES & PROVISIONS
29-Sep-2017,7004049,4.80,REDBRIDGE PRODUCE & FLOWERS LTD T/A TOTAL PRODUCE,390977,"Environment, Housing & Leisure",Cultural & Related Services,104,Supplies and Services,504,Equipment,5023,Revenue,03.GROCERIES & PROVISIONS
29-Sep-2017,7004049,0.42,REDBRIDGE PRODUCE & FLOWERS LTD T/A TOTAL PRODUCE,390977,"Environment, Housing & Leisure",Cultural & Related Services,104,Supplies and Services,504,Equipment,5023,Revenue,03.GROCERIES & PROVISIONS
29-Sep-2017,7004049,42.77,REDBRIDGE PRODUCE & FLOWERS LTD T/A TOTAL PRODUCE,390977,"Environment, Housing & Leisure",Adult Social Care,101,Supplies and Services,504,Equipment,5023,Revenue,03.GROCERIES & PROVISIONS
29-Sep-2017,7004049,0.94,REDBRIDGE PRODUCE & FLOWERS LTD T/A TOTAL PRODUCE,390977,Commissioning & Investment,Children's & Education Services,103,Supplies and Services,504,Equipment,5023,Revenue,03.GROCERIES & PROVISIONS
29-Sep-2017,7004049,2.30,REDBRIDGE PRODUCE & FLOWERS LTD T/A TOTAL PRODUCE,390977,Commissioning & Investment,Children's & Education Services,103,Supplies and Services,504,Equipment,5023,Revenue,03.GROCERIES & PROVISIONS
29-Sep-2017,7004049,-8.48,REDBRIDGE PRODUCE & FLOWERS LTD T/A TOTAL PRODUCE,390977,Commissioning & Investment,Children's & Education Services,103,Supplies and Services,504,Equipment,5023,Revenue,03.GROCERIES & PROVISIONS
29-Sep-2017,7004049,13.08,REDBRIDGE PRODUCE & FLOWERS LTD T/A TOTAL PRODUCE,390977,"Environment, Housing & Leisure",Cultural & Related Services,104,Supplies and Services,504,Equipment,5023,Revenue,03.GROCERIES & PROVISIONS
29-Sep-2017,7004049,52.91,REDBRIDGE PRODUCE & FLOWERS LTD T/A TOTAL PRODUCE,390977,Commissioning & Investment,Children's & Education Services,103,Supplies and Services,504,Equipment,5023,Revenue,03.GROCERIES & PROVISIONS
29-Sep-2017,7004049,119.35,REDBRIDGE PRODUCE & FLOWERS LTD T/A TOTAL PRODUCE,390977,Commissioning & Investment,Children's & Education Services,103,Supplies and Services,504,Equipment,5023,Revenue,03.GROCERIES & PROVISIONS
29-Sep-2017,7004049,5.45,REDBRIDGE PRODUCE & FLOWERS LTD T/A TOTAL PRODUCE,390977,Commissioning & Investment,Children's & Education Services,103,Supplies and Services,504,Equipment,5023,Revenue,03.GROCERIES & PROVISIONS
29-Sep-2017,7004049,6.61,REDBRIDGE PRODUCE & FLOWERS LTD T/A TOTAL PRODUCE,390977,Commissioning & Investment,Children's & Education Services,103,Supplies and Services,504,Equipment,5023,Revenue,03.GROCERIES & PROVISIONS
29-Sep-2017,7004049,6.24,REDBRIDGE PRODUCE & FLOWERS LTD T/A TOTAL PRODUCE,390977,Commissioning & Investment,Children's & Education Services,103,Supplies and Services,504,Equipment,5023,Revenue,03.GROCERIES & PROVISIONS
29-Sep-2017,7004049,8.97,REDBRIDGE PRODUCE & FLOWERS LTD T/A TOTAL PRODUCE,390977,"Environment, Housing & Leisure",Cultural & Related Services,104,Supplies and Services,504,Equipment,5023,Revenue,03.GROCERIES & PROVISIONS
29-Sep-2017,7004049,162.42,REDBRIDGE PRODUCE & FLOWERS LTD T/A TOTAL PRODUCE,390977,Commissioning & Investment,Children's & Education Services,103,Supplies and Services,504,Equipment,5023,Revenue,03.GROCERIES & PROVISIONS
29-Sep-2017,7004049,9.32,REDBRIDGE PRODUCE & FLOWERS LTD T/A TOTAL PRODUCE,390977,"Environment, Housing & Leisure",Cultural & Related Services,104,Supplies and Services,504,Equipment,5023,Revenue,03.GROCERIES & PROVISIONS
29-Sep-2017,7004049,8.97,REDBRIDGE PRODUCE & FLOWERS LTD T/A TOTAL PRODUCE,390977,"Environment, Housing & Leisure",Adult Social Care,101,Supplies and Services,504,Equipment,5023,Revenue,03.GROCERIES & PROVISIONS
29-Sep-2017,7004049,9.64,REDBRIDGE PRODUCE & FLOWERS LTD T/A TOTAL PRODUCE,390977,"Environment, Housing & Leisure",Adult Social Care,101,Supplies and Services,504,Equipment,5023,Revenue,03.GROCERIES & PROVISIONS
29-Sep-2017,7004049,8.74,REDBRIDGE PRODUCE & FLOWERS LTD T/A TOTAL PRODUCE,390977,"Environment, Housing & Leisure",Adult Social Care,101,Supplies and Services,504,Equipment,5023,Revenue,03.GROCERIES & PROVISIONS
29-Sep-2017,7004049,25.52,REDBRIDGE PRODUCE & FLOWERS LTD T/A TOTAL PRODUCE,390977,"Environment, Housing & Leisure",Cultural & Related Services,104,Supplies and Services,504,Equipment,5023,Revenue,03.GROCERIES & PROVISIONS
29-Sep-2017,7004049,26.56,REDBRIDGE PRODUCE & FLOWERS LTD T/A TOTAL PRODUCE,390977,"Environment, Housing & Leisure",Adult Social Care,101,Supplies and Services,504,Equipment,5023,Revenue,03.GROCERIES & PROVISIONS
29-Sep-2017,7004050,21.91,ADOBE SYSTEMS DIRECT LIMITED,300531,"Health, Education, Care and Safeguarding",Children's & Education Services,103,Supplies and Services,504,Communications & Computing,5028,Revenue,15.SOFTWARE
29-Sep-2017,7004051,99.99,BPS ACCESS SOLUTIONS LTD,390616,"Health, Education, Care and Safeguarding",Children's & Education Services,103,Supplies and Services,504,Miscellaneous Expenses,5034,Revenue,BUILD GEN
29-Sep-2017,7004052,19.98,SOUND DYNAMICS LTD,367354,"Environment, Housing & Leisure",Cultural & Related Services,104,Supplies and Services,504,Equipment,5023,Revenue,17.OFFICE EQUIPMENT
29-Sep-2017,7004053,393.55,MACLINGROUP.CO.UK,390459,"Environment, Housing & Leisure",Cultural & Related Services,104,Premises-Related Expenditure,502,Cleaning and Domestic Supplies,5012,Revenue,05.EQUIPMENT
29-Sep-2017,7004053,379.80,MACLINGROUP.CO.UK,390459,"Environment, Housing & Leisure",Cultural & Related Services,104,Supplies and Services,504,Equipment,5023,Revenue,05.EQUIPMENT
29-Sep-2017,7004054,27.57,BUILDASIGN,390043,"Environment, Housing & Leisure",Cultural & Related Services,104,Supplies and Services,504,Equipment,5023,Revenue,17.OFFICE EQUIPMENT
29-Sep-2017,7004055,86.00,SUNDERLAND CITY COUNCIL,019534,"Environment, Housing & Leisure",Cultural & Related Services,104,Third Party Payments,505,Private Contractors,5042,Revenue,00.PUBLIC SECTOR
29-Sep-2017,7004056,72.32,R MANNERS & SONS LTD,013498,Commissioning & Investment,Children's & Education Services,103,Supplies and Services,504,Equipment,5023,Revenue,03.GROCERIES & PROVISIONS
29-Sep-2017,7004056,36.16,R MANNERS & SONS LTD,013498,"Environment, Housing & Leisure",Adult Social Care,101,Supplies and Services,504,Equipment,5023,Revenue,03.GROCERIES & PROVISIONS
29-Sep-2017,7004056,47.60,R MANNERS & SONS LTD,013498,"Environment, Housing & Leisure",Cultural & Related Services,104,Supplies and Services,504,Equipment,5023,Revenue,03.GROCERIES & PROVISIONS
29-Sep-2017,7004056,54.24,R MANNERS & SONS LTD,013498,"Environment, Housing & Leisure",Adult Social Care,101,Supplies and Services,504,Equipment,5023,Revenue,03.GROCERIES & PROVISIONS
29-Sep-2017,7004056,19.21,R MANNERS & SONS LTD,013498,Commissioning & Investment,Children's & Education Services,103,Supplies and Services,504,Equipment,5023,Revenue,03.GROCERIES & PROVISIONS
29-Sep-2017,7004056,14.95,R MANNERS & SONS LTD,013498,"Environment, Housing & Leisure",Cultural & Related Services,104,Supplies and Services,504,Equipment,5023,Revenue,03.GROCERIES & PROVISIONS
29-Sep-2017,7004056,2.94,R MANNERS & SONS LTD,013498,"Environment, Housing & Leisure",Adult Social Care,101,Supplies and Services,504,Equipment,5023,Revenue,03.GROCERIES & PROVISIONS
29-Sep-2017,7004056,16.16,R MANNERS & SONS LTD,013498,"Environment, Housing & Leisure",Cultural & Related Services,104,Supplies and Services,504,Equipment,5023,Revenue,03.GROCERIES & PROVISIONS
29-Sep-2017,7004056,22.72,R MANNERS & SONS LTD,013498,"Environment, Housing & Leisure",Adult Social Care,101,Supplies and Services,504,Equipment,5023,Revenue,03.GROCERIES & PROVISIONS
29-Sep-2017,7004056,47.61,R MANNERS & SONS LTD,013498,Commissioning & Investment,Children's & Education Services,103,Supplies and Services,504,Equipment,5023,Revenue,03.GROCERIES & PROVISIONS
29-Sep-2017,7004056,16.50,R MANNERS & SONS LTD,013498,Commissioning & Investment,Children's & Education Services,103,Supplies and Services,504,Equipment,5023,Revenue,03.GROCERIES & PROVISIONS
29-Sep-2017,7004056,12.12,R MANNERS & SONS LTD,013498,"Environment, Housing & Leisure",Cultural & Related Services,104,Supplies and Services,504,Equipment,5023,Revenue,03.GROCERIES & PROVISIONS
29-Sep-2017,7004056,54.24,R MANNERS & SONS LTD,013498,"Environment, Housing & Leisure",Adult Social Care,101,Supplies and Services,504,Equipment,5023,Revenue,03.GROCERIES & PROVISIONS
29-Sep-2017,7004056,17.16,R MANNERS & SONS LTD,013498,Commissioning & Investment,Children's & Education Services,103,Supplies and Services,504,Equipment,5023,Revenue,03.GROCERIES & PROVISIONS
29-Sep-2017,7004056,58.34,R MANNERS & SONS LTD,013498,Commissioning & Investment,Children's & Education Services,103,Supplies and Services,504,Equipment,5023,Revenue,03.GROCERIES & PROVISIONS
29-Sep-2017,7004056,11.33,R MANNERS & SONS LTD,013498,Commissioning & Investment,Children's & Education Services,103,Supplies and Services,504,Equipment,5023,Revenue,03.GROCERIES & PROVISIONS
29-Sep-2017,7004056,28.28,R MANNERS & SONS LTD,013498,"Environment, Housing & Leisure",Cultural & Related Services,104,Supplies and Services,504,Equipment,5023,Revenue,03.GROCERIES & PROVISIONS
29-Sep-2017,7004056,40.45,R MANNERS & SONS LTD,013498,Commissioning & Investment,Children's & Education Services,103,Supplies and Services,504,Equipment,5023,Revenue,03.GROCERIES & PROVISIONS
29-Sep-2017,7004056,12.12,R MANNERS & SONS LTD,013498,"Environment, Housing & Leisure",Adult Social Care,101,Supplies and Services,504,Equipment,5023,Revenue,03.GROCERIES & PROVISIONS
29-Sep-2017,7004056,15.59,R MANNERS & SONS LTD,013498,"Environment, Housing & Leisure",Adult Social Care,101,Supplies and Services,504,Equipment,5023,Revenue,03.GROCERIES & PROVISIONS
29-Sep-2017,7004056,16.16,R MANNERS & SONS LTD,013498,"Environment, Housing & Leisure",Adult Social Care,101,Supplies and Services,504,Equipment,5023,Revenue,03.GROCERIES & PROVISIONS
29-Sep-2017,7004056,35.64,R MANNERS & SONS LTD,013498,"Environment, Housing & Leisure",Adult Social Care,101,Supplies and Services,504,Equipment,5023,Revenue,03.GROCERIES & PROVISIONS
29-Sep-2017,7004056,71.64,R MANNERS & SONS LTD,013498,Commissioning & Investment,Children's & Education Services,103,Supplies and Services,504,Equipment,5023,Revenue,03.GROCERIES & PROVISIONS
29-Sep-2017,7004056,30.28,R MANNERS & SONS LTD,013498,Commissioning & Investment,Children's & Education Services,103,Supplies and Services,504,Equipment,5023,Revenue,03.GROCERIES & PROVISIONS
29-Sep-2017,7004056,40.34,R MANNERS & SONS LTD,013498,Commissioning & Investment,Children's & Education Services,103,Supplies and Services,504,Equipment,5023,Revenue,03.GROCERIES & PROVISIONS
29-Sep-2017,7004056,81.18,R MANNERS & SONS LTD,013498,Commissioning & Investment,Children's & Education Services,103,Supplies and Services,504,Equipment,5023,Revenue,03.GROCERIES & PROVISIONS
29-Sep-2017,7004056,18.56,R MANNERS & SONS LTD,013498,Commissioning & Investment,Children's & Education Services,103,Supplies and Services,504,Equipment,5023,Revenue,03.GROCERIES & PROVISIONS
29-Sep-2017,7004056,9.50,R MANNERS & SONS LTD,013498,"Environment, Housing & Leisure",Cultural & Related Services,104,Supplies and Services,504,Equipment,5023,Revenue,03.GROCERIES & PROVISIONS
29-Sep-2017,7004056,16.83,R MANNERS & SONS LTD,013498,Commissioning & Investment,Children's & Education Services,103,Supplies and Services,504,Equipment,5023,Revenue,03.GROCERIES & PROVISIONS
29-Sep-2017,7004056,128.84,R MANNERS & SONS LTD,013498,Commissioning & Investment,Children's & Education Services,103,Supplies and Services,504,Equipment,5023,Revenue,03.GROCERIES & PROVISIONS
29-Sep-2017,7004056,29.39,R MANNERS & SONS LTD,013498,Commissioning & Investment,Children's & Education Services,103,Supplies and Services,504,Equipment,5023,Revenue,03.GROCERIES & PROVISIONS
29-Sep-2017,7004056,47.60,R MANNERS & SONS LTD,013498,"Environment, Housing & Leisure",Cultural & Related Services,104,Supplies and Services,504,Equipment,5023,Revenue,03.GROCERIES & PROVISIONS
29-Sep-2017,7004056,20.93,R MANNERS & SONS LTD,013498,"Environment, Housing & Leisure",Cultural & Related Services,104,Supplies and Services,504,Equipment,5023,Revenue,03.GROCERIES & PROVISIONS
29-Sep-2017,7004056,28.40,R MANNERS & SONS LTD,013498,"Environment, Housing & Leisure",Adult Social Care,101,Supplies and Services,504,Equipment,5023,Revenue,03.GROCERIES & PROVISIONS
29-Sep-2017,7004056,16.70,R MANNERS & SONS LTD,013498,Commissioning & Investment,Children's & Education Services,103,Supplies and Services,504,Equipment,5023,Revenue,03.GROCERIES & PROVISIONS
29-Sep-2017,7004056,36.16,R MANNERS & SONS LTD,013498,Commissioning & Investment,Children's & Education Services,103,Supplies and Services,504,Equipment,5023,Revenue,03.GROCERIES & PROVISIONS
29-Sep-2017,7004056,75.95,R MANNERS & SONS LTD,013498,Commissioning & Investment,Children's & Education Services,103,Supplies and Services,504,Equipment,5023,Revenue,03.GROCERIES & PROVISIONS
29-Sep-2017,7004056,11.96,R MANNERS & SONS LTD,013498,"Environment, Housing & Leisure",Cultural & Related Services,104,Supplies and Services,504,Equipment,5023,Revenue,03.GROCERIES & PROVISIONS
29-Sep-2017,7004056,28.56,R MANNERS & SONS LTD,013498,"Environment, Housing & Leisure",Cultural & Related Services,104,Supplies and Services,504,Equipment,5023,Revenue,03.GROCERIES & PROVISIONS
29-Sep-2017,7004056,76.96,R MANNERS & SONS LTD,013498,Commissioning & Investment,Children's & Education Services,103,Supplies and Services,504,Equipment,5023,Revenue,03.GROCERIES & PROVISIONS
29-Sep-2017,7004056,29.39,R MANNERS & SONS LTD,013498,Commissioning & Investment,Children's & Education Services,103,Supplies and Services,504,Equipment,5023,Revenue,03.GROCERIES & PROVISIONS
29-Sep-2017,7004056,24.24,R MANNERS & SONS LTD,013498,"Environment, Housing & Leisure",Cultural & Related Services,104,Supplies and Services,504,Equipment,5023,Revenue,03.GROCERIES & PROVISIONS
29-Sep-2017,7004056,18.08,R MANNERS & SONS LTD,013498,Commissioning & Investment,Children's & Education Services,103,Supplies and Services,504,Equipment,5023,Revenue,03.GROCERIES & PROVISIONS
29-Sep-2017,7004056,40.40,R MANNERS & SONS LTD,013498,"Environment, Housing & Leisure",Adult Social Care,101,Supplies and Services,504,Equipment,5023,Revenue,03.GROCERIES & PROVISIONS
29-Sep-2017,7004056,16.57,R MANNERS & SONS LTD,013498,Commissioning & Investment,Children's & Education Services,103,Supplies and Services,504,Equipment,5023,Revenue,03.GROCERIES & PROVISIONS
29-Sep-2017,7004056,17.82,R MANNERS & SONS LTD,013498,"Environment, Housing & Leisure",Cultural & Related Services,104,Supplies and Services,504,Equipment,5023,Revenue,03.GROCERIES & PROVISIONS
29-Sep-2017,7004056,9.74,R MANNERS & SONS LTD,013498,Commissioning & Investment,Children's & Education Services,103,Supplies and Services,504,Equipment,5023,Revenue,03.GROCERIES & PROVISIONS
29-Sep-2017,7004056,6.73,R MANNERS & SONS LTD,013498,Commissioning & Investment,Children's & Education Services,103,Supplies and Services,504,Equipment,5023,Revenue,03.GROCERIES & PROVISIONS
29-Sep-2017,7004056,3.09,R MANNERS & SONS LTD,013498,"Environment, Housing & Leisure",Cultural & Related Services,104,Supplies and Services,504,Equipment,5023,Revenue,03.GROCERIES & PROVISIONS
29-Sep-2017,7004056,16.00,R MANNERS & SONS LTD,013498,Commissioning & Investment,Children's & Education Services,103,Supplies and Services,504,Equipment,5023,Revenue,03.GROCERIES & PROVISIONS
29-Sep-2017,7004056,19.26,R MANNERS & SONS LTD,013498,Commissioning & Investment,Children's & Education Services,103,Supplies and Services,504,Equipment,5023,Revenue,03.GROCERIES & PROVISIONS
29-Sep-2017,7004056,23.76,R MANNERS & SONS LTD,013498,"Environment, Housing & Leisure",Cultural & Related Services,104,Supplies and Services,504,Equipment,5023,Revenue,03.GROCERIES & PROVISIONS
29-Sep-2017,7004056,14.66,R MANNERS & SONS LTD,013498,Commissioning & Investment,Children's & Education Services,103,Supplies and Services,504,Equipment,5023,Revenue,03.GROCERIES & PROVISIONS
29-Sep-2017,7004056,14.25,R MANNERS & SONS LTD,013498,"Environment, Housing & Leisure",Cultural & Related Services,104,Supplies and Services,504,Equipment,5023,Revenue,03.GROCERIES & PROVISIONS
29-Sep-2017,7004056,28.56,R MANNERS & SONS LTD,013498,"Environment, Housing & Leisure",Cultural & Related Services,104,Supplies and Services,504,Equipment,5023,Revenue,03.GROCERIES & PROVISIONS
29-Sep-2017,7004056,29.17,R MANNERS & SONS LTD,013498,Commissioning & Investment,Children's & Education Services,103,Supplies and Services,504,Equipment,5023,Revenue,03.GROCERIES & PROVISIONS
29-Sep-2017,7004056,93.45,R MANNERS & SONS LTD,013498,Commissioning & Investment,Children's & Education Services,103,Supplies and Services,504,Equipment,5023,Revenue,03.GROCERIES & PROVISIONS
29-Sep-2017,7004056,10.56,R MANNERS & SONS LTD,013498,Commissioning & Investment,Children's & Education Services,103,Supplies and Services,504,Equipment,5023,Revenue,03.GROCERIES & PROVISIONS
29-Sep-2017,7004056,18.08,R MANNERS & SONS LTD,013498,Commissioning & Investment,Children's & Education Services,103,Supplies and Services,504,Equipment,5023,Revenue,03.GROCERIES & PROVISIONS
29-Sep-2017,7004056,10.11,R MANNERS & SONS LTD,013498,Commissioning & Investment,Children's & Education Services,103,Supplies and Services,504,Equipment,5023,Revenue,03.GROCERIES & PROVISIONS
29-Sep-2017,7004056,10.86,R MANNERS & SONS LTD,013498,Commissioning & Investment,Children's & Education Services,103,Supplies and Services,504,Equipment,5023,Revenue,03.GROCERIES & PROVISIONS
29-Sep-2017,7004056,14.25,R MANNERS & SONS LTD,013498,"Environment, Housing & Leisure",Cultural & Related Services,104,Supplies and Services,504,Equipment,5023,Revenue,03.GROCERIES & PROVISIONS
29-Sep-2017,7004056,16.24,R MANNERS & SONS LTD,013498,Commissioning & Investment,Children's & Education Services,103,Supplies and Services,504,Equipment,5023,Revenue,03.GROCERIES & PROVISIONS
29-Sep-2017,7004056,19.01,R MANNERS & SONS LTD,013498,Commissioning & Investment,Children's & Education Services,103,Supplies and Services,504,Equipment,5023,Revenue,03.GROCERIES & PROVISIONS
29-Sep-2017,7004056,19.86,R MANNERS & SONS LTD,013498,Commissioning & Investment,Children's & Education Services,103,Supplies and Services,504,Equipment,5023,Revenue,03.GROCERIES & PROVISIONS
29-Sep-2017,7004056,11.96,R MANNERS & SONS LTD,013498,"Environment, Housing & Leisure",Cultural & Related Services,104,Supplies and Services,504,Equipment,5023,Revenue,03.GROCERIES & PROVISIONS
29-Sep-2017,7004056,24.87,R MANNERS & SONS LTD,013498,"Environment, Housing & Leisure",Adult Social Care,101,Supplies and Services,504,Equipment,5023,Revenue,03.GROCERIES & PROVISIONS
29-Sep-2017,7004056,16.80,R MANNERS & SONS LTD,013498,Commissioning & Investment,Children's & Education Services,103,Supplies and Services,504,Equipment,5023,Revenue,03.GROCERIES & PROVISIONS
29-Sep-2017,7004056,36.16,R MANNERS & SONS LTD,013498,Commissioning & Investment,Children's & Education Services,103,Supplies and Services,504,Equipment,5023,Revenue,03.GROCERIES & PROVISIONS
29-Sep-2017,7004056,27.43,R MANNERS & SONS LTD,013498,Commissioning & Investment,Children's & Education Services,103,Supplies and Services,504,Equipment,5023,Revenue,03.GROCERIES & PROVISIONS
29-Sep-2017,7004056,38.08,R MANNERS & SONS LTD,013498,"Environment, Housing & Leisure",Cultural & Related Services,104,Supplies and Services,504,Equipment,5023,Revenue,03.GROCERIES & PROVISIONS
29-Sep-2017,7004056,15.69,R MANNERS & SONS LTD,013498,Commissioning & Investment,Children's & Education Services,103,Supplies and Services,504,Equipment,5023,Revenue,03.GROCERIES & PROVISIONS
29-Sep-2017,7004056,3.37,R MANNERS & SONS LTD,013498,Commissioning & Investment,Children's & Education Services,103,Supplies and Services,504,Equipment,5023,Revenue,03.GROCERIES & PROVISIONS
29-Sep-2017,7004056,12.12,R MANNERS & SONS LTD,013498,"Environment, Housing & Leisure",Cultural & Related Services,104,Supplies and Services,504,Equipment,5023,Revenue,03.GROCERIES & PROVISIONS
29-Sep-2017,7004056,20.62,R MANNERS & SONS LTD,013498,Commissioning & Investment,Children's & Education Services,103,Supplies and Services,504,Equipment,5023,Revenue,03.GROCERIES & PROVISIONS
29-Sep-2017,7004056,10.18,R MANNERS & SONS LTD,013498,Commissioning & Investment,Children's & Education Services,103,Supplies and Services,504,Equipment,5023,Revenue,03.GROCERIES & PROVISIONS
29-Sep-2017,7004056,11.88,R MANNERS & SONS LTD,013498,"Environment, Housing & Leisure",Cultural & Related Services,104,Supplies and Services,504,Equipment,5023,Revenue,03.GROCERIES & PROVISIONS
29-Sep-2017,7004056,11.97,R MANNERS & SONS LTD,013498,Commissioning & Investment,Children's & Education Services,103,Supplies and Services,504,Equipment,5023,Revenue,03.GROCERIES & PROVISIONS
29-Sep-2017,7004056,2.96,R MANNERS & SONS LTD,013498,"Environment, Housing & Leisure",Cultural & Related Services,104,Supplies and Services,504,Equipment,5023,Revenue,03.GROCERIES & PROVISIONS
29-Sep-2017,7004056,10.83,R MANNERS & SONS LTD,013498,Commissioning & Investment,Children's & Education Services,103,Supplies and Services,504,Equipment,5023,Revenue,03.GROCERIES & PROVISIONS
29-Sep-2017,7004056,9.04,R MANNERS & SONS LTD,013498,Commissioning & Investment,Children's & Education Services,103,Supplies and Services,504,Equipment,5023,Revenue,03.GROCERIES & PROVISIONS
29-Sep-2017,7004056,10.97,R MANNERS & SONS LTD,013498,Commissioning & Investment,Children's & Education Services,103,Supplies and Services,504,Equipment,5023,Revenue,03.GROCERIES & PROVISIONS
29-Sep-2017,7004056,14.25,R MANNERS & SONS LTD,013498,"Environment, Housing & Leisure",Cultural & Related Services,104,Supplies and Services,504,Equipment,5023,Revenue,03.GROCERIES & PROVISIONS
29-Sep-2017,7004056,24.24,R MANNERS & SONS LTD,013498,"Environment, Housing & Leisure",Cultural & Related Services,104,Supplies and Services,504,Equipment,5023,Revenue,03.GROCERIES & PROVISIONS
29-Sep-2017,7004056,2.94,R MANNERS & SONS LTD,013498,"Environment, Housing & Leisure",Adult Social Care,101,Supplies and Services,504,Equipment,5023,Revenue,03.GROCERIES & PROVISIONS
29-Sep-2017,7004056,28.40,R MANNERS & SONS LTD,013498,"Environment, Housing & Leisure",Adult Social Care,101,Supplies and Services,504,Equipment,5023,Revenue,03.GROCERIES & PROVISIONS
29-Sep-2017,7004056,23.76,R MANNERS & SONS LTD,013498,"Environment, Housing & Leisure",Adult Social Care,101,Supplies and Services,504,Equipment,5023,Revenue,03.GROCERIES & PROVISIONS
29-Sep-2017,7004056,2.98,R MANNERS & SONS LTD,013498,"Environment, Housing & Leisure",Adult Social Care,101,Supplies and Services,504,Equipment,5023,Revenue,03.GROCERIES & PROVISIONS
29-Sep-2017,7004056,72.32,R MANNERS & SONS LTD,013498,Commissioning & Investment,Children's & Education Services,103,Supplies and Services,504,Equipment,5023,Revenue,03.GROCERIES & PROVISIONS
29-Sep-2017,7004056,27.23,R MANNERS & SONS LTD,013498,Commissioning & Investment,Children's & Education Services,103,Supplies and Services,504,Equipment,5023,Revenue,03.GROCERIES & PROVISIONS
29-Sep-2017,7004056,14.95,R MANNERS & SONS LTD,013498,"Environment, Housing & Leisure",Cultural & Related Services,104,Supplies and Services,504,Equipment,5023,Revenue,03.GROCERIES & PROVISIONS
29-Sep-2017,7004056,47.60,R MANNERS & SONS LTD,013498,"Environment, Housing & Leisure",Cultural & Related Services,104,Supplies and Services,504,Equipment,5023,Revenue,03.GROCERIES & PROVISIONS
29-Sep-2017,7004056,36.16,R MANNERS & SONS LTD,013498,Commissioning & Investment,Children's & Education Services,103,Supplies and Services,504,Equipment,5023,Revenue,03.GROCERIES & PROVISIONS
29-Sep-2017,7004056,53.92,R MANNERS & SONS LTD,013498,Commissioning & Investment,Children's & Education Services,103,Supplies and Services,504,Equipment,5023,Revenue,03.GROCERIES & PROVISIONS
29-Sep-2017,7004056,16.50,R MANNERS & SONS LTD,013498,Commissioning & Investment,Children's & Education Services,103,Supplies and Services,504,Equipment,5023,Revenue,03.GROCERIES & PROVISIONS
29-Sep-2017,7004056,15.29,R MANNERS & SONS LTD,013498,Commissioning & Investment,Children's & Education Services,103,Supplies and Services,504,Equipment,5023,Revenue,03.GROCERIES & PROVISIONS
29-Sep-2017,7004056,26.96,R MANNERS & SONS LTD,013498,Commissioning & Investment,Children's & Education Services,103,Supplies and Services,504,Equipment,5023,Revenue,03.GROCERIES & PROVISIONS
29-Sep-2017,7004056,36.32,R MANNERS & SONS LTD,013498,Commissioning & Investment,Children's & Education Services,103,Supplies and Services,504,Equipment,5023,Revenue,03.GROCERIES & PROVISIONS
29-Sep-2017,7004056,9.65,R MANNERS & SONS LTD,013498,Commissioning & Investment,Children's & Education Services,103,Supplies and Services,504,Equipment,5023,Revenue,03.GROCERIES & PROVISIONS
29-Sep-2017,7004056,27.43,R MANNERS & SONS LTD,013498,Commissioning & Investment,Children's & Education Services,103,Supplies and Services,504,Equipment,5023,Revenue,03.GROCERIES & PROVISIONS
29-Sep-2017,7004056,14.95,R MANNERS & SONS LTD,013498,"Environment, Housing & Leisure",Cultural & Related Services,104,Supplies and Services,504,Equipment,5023,Revenue,03.GROCERIES & PROVISIONS
29-Sep-2017,7004056,16.76,R MANNERS & SONS LTD,013498,Commissioning & Investment,Children's & Education Services,103,Supplies and Services,504,Equipment,5023,Revenue,03.GROCERIES & PROVISIONS
29-Sep-2017,7004056,36.16,R MANNERS & SONS LTD,013498,Commissioning & Investment,Children's & Education Services,103,Supplies and Services,504,Equipment,5023,Revenue,03.GROCERIES & PROVISIONS
29-Sep-2017,7004056,7.22,R MANNERS & SONS LTD,013498,Commissioning & Investment,Children's & Education Services,103,Supplies and Services,504,Equipment,5023,Revenue,03.GROCERIES & PROVISIONS
29-Sep-2017,7004056,16.24,R MANNERS & SONS LTD,013498,Commissioning & Investment,Children's & Education Services,103,Supplies and Services,504,Equipment,5023,Revenue,03.GROCERIES & PROVISIONS
29-Sep-2017,7004056,12.12,R MANNERS & SONS LTD,013498,"Environment, Housing & Leisure",Cultural & Related Services,104,Supplies and Services,504,Equipment,5023,Revenue,03.GROCERIES & PROVISIONS
29-Sep-2017,7004056,16.83,R MANNERS & SONS LTD,013498,Commissioning & Investment,Children's & Education Services,103,Supplies and Services,504,Equipment,5023,Revenue,03.GROCERIES & PROVISIONS
29-Sep-2017,7004056,36.16,R MANNERS & SONS LTD,013498,Commissioning & Investment,Children's & Education Services,103,Supplies and Services,504,Equipment,5023,Revenue,03.GROCERIES & PROVISIONS
29-Sep-2017,7004056,10.38,R MANNERS & SONS LTD,013498,Commissioning & Investment,Children's & Education Services,103,Supplies and Services,504,Equipment,5023,Revenue,03.GROCERIES & PROVISIONS
29-Sep-2017,7004056,105.63,R MANNERS & SONS LTD,013498,Commissioning & Investment,Children's & Education Services,103,Supplies and Services,504,Equipment,5023,Revenue,03.GROCERIES & PROVISIONS
29-Sep-2017,7004056,23.76,R MANNERS & SONS LTD,013498,"Environment, Housing & Leisure",Adult Social Care,101,Supplies and Services,504,Equipment,5023,Revenue,03.GROCERIES & PROVISIONS
29-Sep-2017,7004056,9.50,R MANNERS & SONS LTD,013498,"Environment, Housing & Leisure",Adult Social Care,101,Supplies and Services,504,Equipment,5023,Revenue,03.GROCERIES & PROVISIONS
29-Sep-2017,7004056,21.88,R MANNERS & SONS LTD,013498,Commissioning & Investment,Children's & Education Services,103,Supplies and Services,504,Equipment,5023,Revenue,03.GROCERIES & PROVISIONS
29-Sep-2017,7004056,28.88,R MANNERS & SONS LTD,013498,Commissioning & Investment,Children's & Education Services,103,Supplies and Services,504,Equipment,5023,Revenue,03.GROCERIES & PROVISIONS
29-Sep-2017,7004056,16.50,R MANNERS & SONS LTD,013498,Commissioning & Investment,Children's & Education Services,103,Supplies and Services,504,Equipment,5023,Revenue,03.GROCERIES & PROVISIONS
29-Sep-2017,7004056,17.94,R MANNERS & SONS LTD,013498,"Environment, Housing & Leisure",Cultural & Related Services,104,Supplies and Services,504,Equipment,5023,Revenue,03.GROCERIES & PROVISIONS
29-Sep-2017,7004056,16.83,R MANNERS & SONS LTD,013498,Commissioning & Investment,Children's & Education Services,103,Supplies and Services,504,Equipment,5023,Revenue,03.GROCERIES & PROVISIONS
29-Sep-2017,7004056,19.40,R MANNERS & SONS LTD,013498,Commissioning & Investment,Children's & Education Services,103,Supplies and Services,504,Equipment,5023,Revenue,03.GROCERIES & PROVISIONS
29-Sep-2017,7004056,36.16,R MANNERS & SONS LTD,013498,"Environment, Housing & Leisure",Adult Social Care,101,Supplies and Services,504,Equipment,5023,Revenue,03.GROCERIES & PROVISIONS
29-Sep-2017,7004056,98.54,R MANNERS & SONS LTD,013498,Commissioning & Investment,Children's & Education Services,103,Supplies and Services,504,Equipment,5023,Revenue,03.GROCERIES & PROVISIONS
29-Sep-2017,7004056,16.70,R MANNERS & SONS LTD,013498,Commissioning & Investment,Children's & Education Services,103,Supplies and Services,504,Equipment,5023,Revenue,03.GROCERIES & PROVISIONS
29-Sep-2017,7004056,13.40,R MANNERS & SONS LTD,013498,Commissioning & Investment,Children's & Education Services,103,Supplies and Services,504,Equipment,5023,Revenue,03.GROCERIES & PROVISIONS
29-Sep-2017,7004056,17.94,R MANNERS & SONS LTD,013498,"Environment, Housing & Leisure",Cultural & Related Services,104,Supplies and Services,504,Equipment,5023,Revenue,03.GROCERIES & PROVISIONS
29-Sep-2017,7004056,36.16,R MANNERS & SONS LTD,013498,Commissioning & Investment,Children's & Education Services,103,Supplies and Services,504,Equipment,5023,Revenue,03.GROCERIES & PROVISIONS
29-Sep-2017,7004056,23.85,R MANNERS & SONS LTD,013498,Commissioning & Investment,Children's & Education Services,103,Supplies and Services,504,Equipment,5023,Revenue,03.GROCERIES & PROVISIONS
29-Sep-2017,7004056,8.08,R MANNERS & SONS LTD,013498,"Environment, Housing & Leisure",Cultural & Related Services,104,Supplies and Services,504,Equipment,5023,Revenue,03.GROCERIES & PROVISIONS
29-Sep-2017,7004056,37.94,R MANNERS & SONS LTD,013498,Commissioning & Investment,Children's & Education Services,103,Supplies and Services,504,Equipment,5023,Revenue,03.GROCERIES & PROVISIONS
29-Sep-2017,7004056,10.37,R MANNERS & SONS LTD,013498,Commissioning & Investment,Children's & Education Services,103,Supplies and Services,504,Equipment,5023,Revenue,03.GROCERIES & PROVISIONS
29-Sep-2017,7004056,23.75,R MANNERS & SONS LTD,013498,"Environment, Housing & Leisure",Adult Social Care,101,Supplies and Services,504,Equipment,5023,Revenue,03.GROCERIES & PROVISIONS
29-Sep-2017,7004056,47.60,R MANNERS & SONS LTD,013498,"Environment, Housing & Leisure",Cultural & Related Services,104,Supplies and Services,504,Equipment,5023,Revenue,03.GROCERIES & PROVISIONS
29-Sep-2017,7004056,17.94,R MANNERS & SONS LTD,013498,"Environment, Housing & Leisure",Cultural & Related Services,104,Supplies and Services,504,Equipment,5023,Revenue,03.GROCERIES & PROVISIONS
29-Sep-2017,7004056,88.06,R MANNERS & SONS LTD,013498,Commissioning & Investment,Children's & Education Services,103,Supplies and Services,504,Equipment,5023,Revenue,03.GROCERIES & PROVISIONS
29-Sep-2017,7004056,11.07,R MANNERS & SONS LTD,013498,Commissioning & Investment,Children's & Education Services,103,Supplies and Services,504,Equipment,5023,Revenue,03.GROCERIES & PROVISIONS
29-Sep-2017,7004056,6.73,R MANNERS & SONS LTD,013498,Commissioning & Investment,Children's & Education Services,103,Supplies and Services,504,Equipment,5023,Revenue,03.GROCERIES & PROVISIONS
29-Sep-2017,7004056,18.05,R MANNERS & SONS LTD,013498,Commissioning & Investment,Children's & Education Services,103,Supplies and Services,504,Equipment,5023,Revenue,03.GROCERIES & PROVISIONS
29-Sep-2017,7004056,20.20,R MANNERS & SONS LTD,013498,"Environment, Housing & Leisure",Cultural & Related Services,104,Supplies and Services,504,Equipment,5023,Revenue,03.GROCERIES & PROVISIONS
29-Sep-2017,7004056,11.17,R MANNERS & SONS LTD,013498,Commissioning & Investment,Children's & Education Services,103,Supplies and Services,504,Equipment,5023,Revenue,03.GROCERIES & PROVISIONS
29-Sep-2017,7004056,5.98,R MANNERS & SONS LTD,013498,"Environment, Housing & Leisure",Cultural & Related Services,104,Supplies and Services,504,Equipment,5023,Revenue,03.GROCERIES & PROVISIONS
29-Sep-2017,7004056,19.00,R MANNERS & SONS LTD,013498,"Environment, Housing & Leisure",Cultural & Related Services,104,Supplies and Services,504,Equipment,5023,Revenue,03.GROCERIES & PROVISIONS
29-Sep-2017,7004056,9.50,R MANNERS & SONS LTD,013498,"Environment, Housing & Leisure",Adult Social Care,101,Supplies and Services,504,Equipment,5023,Revenue,03.GROCERIES & PROVISIONS
29-Sep-2017,7004056,15.69,R MANNERS & SONS LTD,013498,Commissioning & Investment,Children's & Education Services,103,Supplies and Services,504,Equipment,5023,Revenue,03.GROCERIES & PROVISIONS
29-Sep-2017,7004056,74.66,R MANNERS & SONS LTD,013498,Commissioning & Investment,Children's & Education Services,103,Supplies and Services,504,Equipment,5023,Revenue,03.GROCERIES & PROVISIONS
29-Sep-2017,7004056,24.24,R MANNERS & SONS LTD,013498,"Environment, Housing & Leisure",Cultural & Related Services,104,Supplies and Services,504,Equipment,5023,Revenue,03.GROCERIES & PROVISIONS
29-Sep-2017,7004056,9.50,R MANNERS & SONS LTD,013498,"Environment, Housing & Leisure",Adult Social Care,101,Supplies and Services,504,Equipment,5023,Revenue,03.GROCERIES & PROVISIONS
29-Sep-2017,7004056,10.82,R MANNERS & SONS LTD,013498,Commissioning & Investment,Children's & Education Services,103,Supplies and Services,504,Equipment,5023,Revenue,03.GROCERIES & PROVISIONS
29-Sep-2017,7004056,16.30,R MANNERS & SONS LTD,013498,Commissioning & Investment,Children's & Education Services,103,Supplies and Services,504,Equipment,5023,Revenue,03.GROCERIES & PROVISIONS
29-Sep-2017,7004056,20.23,R MANNERS & SONS LTD,013498,Commissioning & Investment,Children's & Education Services,103,Supplies and Services,504,Equipment,5023,Revenue,03.GROCERIES & PROVISIONS
29-Sep-2017,7004056,20.54,R MANNERS & SONS LTD,013498,Commissioning & Investment,Children's & Education Services,103,Supplies and Services,504,Equipment,5023,Revenue,03.GROCERIES & PROVISIONS
29-Sep-2017,7004056,33.46,R MANNERS & SONS LTD,013498,Commissioning & Investment,Children's & Education Services,103,Supplies and Services,504,Equipment,5023,Revenue,03.GROCERIES & PROVISIONS
29-Sep-2017,7004056,55.27,R MANNERS & SONS LTD,013498,Commissioning & Investment,Children's & Education Services,103,Supplies and Services,504,Equipment,5023,Revenue,03.GROCERIES & PROVISIONS
29-Sep-2017,7004056,27.43,R MANNERS & SONS LTD,013498,Commissioning & Investment,Children's & Education Services,103,Supplies and Services,504,Equipment,5023,Revenue,03.GROCERIES & PROVISIONS
29-Sep-2017,7004056,24.24,R MANNERS & SONS LTD,013498,"Environment, Housing & Leisure",Adult Social Care,101,Supplies and Services,504,Equipment,5023,Revenue,03.GROCERIES & PROVISIONS
29-Sep-2017,7004056,9.02,R MANNERS & SONS LTD,013498,Commissioning & Investment,Children's & Education Services,103,Supplies and Services,504,Equipment,5023,Revenue,03.GROCERIES & PROVISIONS
29-Sep-2017,7004057,7.20,INITIAL WASHROOM SOLUTIONS,009073,"Health, Education, Care and Safeguarding",Adult Social Care,101,Supplies and Services,504,Equipment,5023,Revenue,CLEANING WASHROOM
29-Sep-2017,7004058,47.30,MIELE COMPANY LTD,013604,Commissioning & Investment,Children's & Education Services,103,Supplies and Services,504,Miscellaneous Expenses,5034,Revenue,10.HOUSEHOLD
29-Sep-2017,7004059,203.00,NRS-UK,388124,"Health, Education, Care and Safeguarding",Adult Social Care,101,Supplies and Services,504,Equipment,5023,Revenue,SOCIAL SUPP
29-Sep-2017,7004060,24.57,B&M RETAIL LTD,388117,"Health, Education, Care and Safeguarding",Children's & Education Services,103,Supplies and Services,504,Equipment,5023,Revenue,10.HOUSEHOLD
29-Sep-2017,7004060,34.23,B&M RETAIL LTD,388117,"Environment, Housing & Leisure",Environmental & Regulatory Services,105,Supplies and Services,504,Equipment,5023,Revenue,10.HOUSEHOLD
29-Sep-2017,7004060,34.22,B&M RETAIL LTD,388117,"Health, Education, Care and Safeguarding",Children's & Education Services,103,Third Party Payments,505,Other Establishments,5041,Revenue,10.HOUSEHOLD
29-Sep-2017,7004060,252.86,B&M RETAIL LTD,388117,"Health, Education, Care and Safeguarding",Children's & Education Services,103,Third Party Payments,505,Other Establishments,5041,Revenue,10.HOUSEHOLD
29-Sep-2017,7004060,-19.15,B&M RETAIL LTD,388117,"Health, Education, Care and Safeguarding",Children's & Education Services,103,Third Party Payments,505,Other Establishments,5041,Revenue,10.HOUSEHOLD
29-Sep-2017,7004060,25.30,B&M RETAIL LTD,388117,"Health, Education, Care and Safeguarding",Children's & Education Services,103,Supplies and Services,504,Equipment,5023,Revenue,10.HOUSEHOLD
29-Sep-2017,7004060,10.82,B&M RETAIL LTD,388117,"Health, Education, Care and Safeguarding",Children's & Education Services,103,Supplies and Services,504,Equipment,5023,Revenue,10.HOUSEHOLD
29-Sep-2017,7004060,37.47,B&M RETAIL LTD,388117,"Environment, Housing & Leisure",Environmental & Regulatory Services,105,Supplies and Services,504,Equipment,5023,Revenue,10.HOUSEHOLD
29-Sep-2017,7004061,83.33,ROYAL MAIL GROUP LTD,350981,"Health, Education, Care and Safeguarding",Adult Social Care,101,Supplies and Services,504,Communications & Computing,5028,Revenue,18.POSTAGE
29-Sep-2017,7004062,203.33,HESLOP APPLIANCES,387960,"Health, Education, Care and Safeguarding",Children's & Education Services,103,Third Party Payments,505,Other Establishments,5041,Revenue,03.CROCKERY
29-Sep-2017,7004063,26.50,EAST COAST MAIN LINE PARKING,387959,"Health, Education, Care and Safeguarding",Children's & Education Services,103,Supplies and Services,504,Expenses,5030,Revenue,18.TRAVEL
29-Sep-2017,7004064,22.00,METRO INNS (NEWCASTLE),387911,"Health, Education, Care and Safeguarding",Children's & Education Services,103,Third Party Payments,505,Other Establishments,5041,Revenue,CHILDCARE
29-Sep-2017,7004064,112.83,METRO INNS (NEWCASTLE),387911,"Health, Education, Care and Safeguarding",Children's & Education Services,103,Third Party Payments,505,Other Establishments,5041,Revenue,CHILDCARE
29-Sep-2017,7004064,36.67,METRO INNS (NEWCASTLE),387911,"Health, Education, Care and Safeguarding",Children's & Education Services,103,Third Party Payments,505,Other Establishments,5041,Revenue,CHILDCARE
29-Sep-2017,7004064,175.00,METRO INNS (NEWCASTLE),387911,"Health, Education, Care and Safeguarding",Children's & Education Services,103,Third Party Payments,505,Other Establishments,5041,Revenue,CHILDCARE
29-Sep-2017,7004064,18.33,METRO INNS (NEWCASTLE),387911,"Health, Education, Care and Safeguarding",Children's & Education Services,103,Third Party Payments,505,Other Establishments,5041,Revenue,CHILDCARE
29-Sep-2017,7004065,45.62,CARTRIDGE SAVE LIMITED,383899,"Health, Education, Care and Safeguarding",Children's & Education Services,103,Supplies and Services,504,"Printing, Stationery and General Office Expenses",5026,Revenue,15.CONSUMABLES
29-Sep-2017,7004066,0.01,SIGN-MAKER.CO.UK,395518,Law & Governance,Central Services,102,Supplies and Services,504,Expenses,5030,Revenue,BUILD SIGN
29-Sep-2017,7004066,49.62,SIGN-MAKER.CO.UK,395518,Law & Governance,Central Services,102,Supplies and Services,504,Expenses,5030,Revenue,BUILD SIGN
29-Sep-2017,7004067,37.50,NORTHUMBRIA UNIVERSITY,347400,"Health, Education, Care and Safeguarding",Children's & Education Services,103,Third Party Payments,505,Other Establishments,5041,Revenue,00.EXT SCHOOLS
29-Sep-2017,7004068,12.24,GREEN STATIONERY,395517,"Health, Education, Care and Safeguarding",Children's & Education Services,103,Supplies and Services,504,"Printing, Stationery and General Office Expenses",5026,Revenue,23.STATIONERY
29-Sep-2017,7004069,30.20,DHL INTERNATIONAL,300372,Business & Economic Development,Planning Services ,110,Supplies and Services,504,"Printing, Stationery and General Office Expenses",5026,Revenue,MAIL COURIERS
29-Sep-2017,7004070,8.90,WELL,395516,Housing Revenue Account,Adult Social Care,101,Supplies and Services,504,Equipment,5023,Revenue,NULL
29-Sep-2017,7004071,46.67,WATERSIDE PREMIER TRAVEL,395515,"Health, Education, Care and Safeguarding",Children's & Education Services,103,Supplies and Services,504,Miscellaneous Expenses,5034,Revenue,18.TRAVEL
29-Sep-2017,7004072,10.10,UTILITA ENERGY LIMITED,395514,"Health, Education, Care and Safeguarding",Children's & Education Services,103,Third Party Payments,505,Other Establishments,5041,Revenue,27.GAS
29-Sep-2017,7004072,10.10,UTILITA ENERGY LIMITED,395514,"Health, Education, Care and Safeguarding",Children's & Education Services,103,Third Party Payments,505,Other Establishments,5041,Revenue,27.GAS
29-Sep-2017,7004073,51.25,UK PARKING PATROL OFFICE,395513,"Environment, Housing & Leisure",Cultural & Related Services,104,Third Party Payments,505,Private Contractors,5042,Revenue,TRAFFIC PARKING
29-Sep-2017,7004074,287.39,TANTON LTD,395512,"Environment, Housing & Leisure",Environmental & Regulatory Services,105,Third Party Payments,505,Private Contractors,5042,Revenue,BUILD GEN
29-Sep-2017,7004075,23.30,SOUTHWAITE N/E BK,395511,"Health, Education, Care and Safeguarding",Children's & Education Services,103,Supplies and Services,504,Equipment,5023,Revenue,18.TRAVEL
29-Sep-2017,7004076,30.83,P. MCGAFFIGAN AND SONS,395482,"Health, Education, Care and Safeguarding",Children's & Education Services,103,Premises-Related Expenditure,502,"Repairs, alterations and maintenance of buildings",5005,Revenue,BUILD GEN
29-Sep-2017,7004077,179.97,NORWEGIAN,395481,"Health, Education, Care and Safeguarding",Children's & Education Services,103,Supplies and Services,504,Expenses,5030,Revenue,18.TRAVEL
29-Sep-2017,7004078,7.50,LOOKING 4 PARKING,395479,"Health, Education, Care and Safeguarding",Children's & Education Services,103,Supplies and Services,504,Expenses,5030,Revenue,18.TRAVEL
29-Sep-2017,7004079,23.00,LLOYD WORRALL (NEWCASTLE) LTD,201495,"Environment, Housing & Leisure",Cultural & Related Services,104,Supplies and Services,504,Equipment,5023,Revenue,FIRE ACCESS
29-Sep-2017,7004080,100.00,ECONOMY ENERGY,395476,Housing Revenue Account,Housing Services,108,Supplies and Services,504,"Printing, Stationery and General Office Expenses",5026,Revenue,27.GAS
29-Sep-2017,7004081,16.67,CUMBRIA ZOO COMPANY,395475,"Health, Education, Care and Safeguarding",Children's & Education Services,103,Supplies and Services,504,Miscellaneous Expenses,5034,Revenue,ENVIRO ANIMAL
29-Sep-2017,7004082,0.01,CLARKS FACTORY SHOP,395474,"Health, Education, Care and Safeguarding",Children's & Education Services,103,Supplies and Services,504,"Clothing, Uniforms and Laundry",5025,Revenue,CLOTHING FOOT
29-Sep-2017,7004082,8.37,CLARKS FACTORY SHOP,395474,"Health, Education, Care and Safeguarding",Children's & Education Services,103,Supplies and Services,504,"Clothing, Uniforms and Laundry",5025,Revenue,CLOTHING FOOT
29-Sep-2017,7004083,60.64,RINGTONS LTD (387786),387786,"Environment, Housing & Leisure",Cultural & Related Services,104,Supplies and Services,504,Equipment,5023,Revenue,03.GROCERIES & PROVISIONS
29-Sep-2017,7004083,227.03,RINGTONS LTD (387786),387786,"Environment, Housing & Leisure",Cultural & Related Services,104,Supplies and Services,504,Equipment,5023,Revenue,03.GROCERIES & PROVISIONS
29-Sep-2017,7004083,26.15,RINGTONS LTD (387786),387786,Commissioning & Investment,Children's & Education Services,103,Supplies and Services,504,Equipment,5023,Revenue,03.GROCERIES & PROVISIONS
29-Sep-2017,7004083,242.66,RINGTONS LTD (387786),387786,"Environment, Housing & Leisure",Adult Social Care,101,Supplies and Services,504,Equipment,5023,Revenue,03.GROCERIES & PROVISIONS
29-Sep-2017,7004083,158.42,RINGTONS LTD (387786),387786,"Environment, Housing & Leisure",Adult Social Care,101,Supplies and Services,504,Equipment,5023,Revenue,03.GROCERIES & PROVISIONS
29-Sep-2017,7004083,33.08,RINGTONS LTD (387786),387786,"Environment, Housing & Leisure",Cultural & Related Services,104,Supplies and Services,504,Equipment,5023,Revenue,03.GROCERIES & PROVISIONS
29-Sep-2017,7004083,33.08,RINGTONS LTD (387786),387786,"Environment, Housing & Leisure",Adult Social Care,101,Supplies and Services,504,Equipment,5023,Revenue,03.GROCERIES & PROVISIONS
29-Sep-2017,7004083,386.81,RINGTONS LTD (387786),387786,Commissioning & Investment,Children's & Education Services,103,Supplies and Services,504,Equipment,5023,Revenue,03.GROCERIES & PROVISIONS
29-Sep-2017,7004083,230.74,RINGTONS LTD (387786),387786,"Environment, Housing & Leisure",Adult Social Care,101,Supplies and Services,504,Equipment,5023,Revenue,03.GROCERIES & PROVISIONS
29-Sep-2017,7004083,90.70,RINGTONS LTD (387786),387786,Commissioning & Investment,Children's & Education Services,103,Supplies and Services,504,Equipment,5023,Revenue,03.GROCERIES & PROVISIONS
29-Sep-2017,7004083,210.97,RINGTONS LTD (387786),387786,Commissioning & Investment,Children's & Education Services,103,Supplies and Services,504,Equipment,5023,Revenue,03.GROCERIES & PROVISIONS
29-Sep-2017,7004083,99.00,RINGTONS LTD (387786),387786,"Environment, Housing & Leisure",Cultural & Related Services,104,Supplies and Services,504,Equipment,5023,Revenue,03.GROCERIES & PROVISIONS
29-Sep-2017,7004083,33.08,RINGTONS LTD (387786),387786,"Environment, Housing & Leisure",Cultural & Related Services,104,Supplies and Services,504,Equipment,5023,Revenue,03.GROCERIES & PROVISIONS
29-Sep-2017,7004083,33.08,RINGTONS LTD (387786),387786,"Environment, Housing & Leisure",Cultural & Related Services,104,Supplies and Services,504,Equipment,5023,Revenue,03.GROCERIES & PROVISIONS
29-Sep-2017,7004083,67.87,RINGTONS LTD (387786),387786,"Environment, Housing & Leisure",Cultural & Related Services,104,Supplies and Services,504,Equipment,5023,Revenue,03.GROCERIES & PROVISIONS
29-Sep-2017,7004083,66.16,RINGTONS LTD (387786),387786,"Environment, Housing & Leisure",Cultural & Related Services,104,Supplies and Services,504,Equipment,5023,Revenue,03.GROCERIES & PROVISIONS
29-Sep-2017,7004083,500.00,RINGTONS LTD (387786),387786,Commissioning & Investment,Children's & Education Services,103,Supplies and Services,504,Equipment,5023,Revenue,03.GROCERIES & PROVISIONS
29-Sep-2017,7004083,90.21,RINGTONS LTD (387786),387786,"Environment, Housing & Leisure",Cultural & Related Services,104,Supplies and Services,504,Equipment,5023,Revenue,03.GROCERIES & PROVISIONS
29-Sep-2017,7004083,148.69,RINGTONS LTD (387786),387786,"Environment, Housing & Leisure",Adult Social Care,101,Supplies and Services,504,Equipment,5023,Revenue,03.GROCERIES & PROVISIONS
29-Sep-2017,7004083,167.01,RINGTONS LTD (387786),387786,"Environment, Housing & Leisure",Cultural & Related Services,104,Supplies and Services,504,Equipment,5023,Revenue,03.GROCERIES & PROVISIONS
29-Sep-2017,7004083,198.58,RINGTONS LTD (387786),387786,"Environment, Housing & Leisure",Cultural & Related Services,104,Supplies and Services,504,Equipment,5023,Revenue,03.GROCERIES & PROVISIONS
29-Sep-2017,7004084,12.24,NEWCASTLE CITY COUNCIL,014331,"Health, Education, Care and Safeguarding",Children's & Education Services,103,Third Party Payments,505,Other Establishments,5041,Revenue,PUB HEALTH.PUBLIC HEALTH
29-Sep-2017,7004084,213.28,NEWCASTLE CITY COUNCIL,014331,"Health, Education, Care and Safeguarding",Children's & Education Services,103,Third Party Payments,505,Other Establishments,5041,Revenue,PUB HEALTH.PUBLIC HEALTH
29-Sep-2017,7004085,9.58,GREGGS PLC,340206,"Health, Education, Care and Safeguarding",Children's & Education Services,103,Supplies and Services,504,Equipment,5023,Revenue,03.GROCERIES & PROVISIONS
29-Sep-2017,7004085,7.96,GREGGS PLC,340206,"Health, Education, Care and Safeguarding",Children's & Education Services,103,Supplies and Services,504,Equipment,5023,Revenue,03.GROCERIES & PROVISIONS
29-Sep-2017,7004086,54.78,THOMAS GRAHAM & SONS LTD,380297,"Health, Education, Care and Safeguarding",Children's & Education Services,103,Premises-Related Expenditure,502,"Repairs, alterations and maintenance of buildings",5005,Revenue,02.BUILDING SERVICES
29-Sep-2017,7004086,46.33,THOMAS GRAHAM & SONS LTD,380297,"Health, Education, Care and Safeguarding",Children's & Education Services,103,Premises-Related Expenditure,502,"Repairs, alterations and maintenance of buildings",5005,Revenue,02.BUILDING SERVICES
29-Sep-2017,7004087,36.36,E K MOTOR FACTORS,386983,"Health, Education, Care and Safeguarding",Children's & Education Services,103,Premises-Related Expenditure,502,"Repairs, alterations and maintenance of buildings",5005,Revenue,28.VEHICLE PARTS
29-Sep-2017,7004088,98.13,GAFFERTAPE.COM,386734,"Environment, Housing & Leisure",Cultural & Related Services,104,Supplies and Services,504,"Printing, Stationery and General Office Expenses",5026,Revenue,BUILD GEN
29-Sep-2017,7004089,83.78,BRITISH GAS TRADING LIMITED,002200,"Health, Education, Care and Safeguarding",Children's & Education Services,103,Third Party Payments,505,Other Establishments,5041,Revenue,27.GAS
29-Sep-2017,7004089,110.70,BRITISH GAS TRADING LIMITED,002200,"Health, Education, Care and Safeguarding",Children's & Education Services,103,Third Party Payments,505,Other Establishments,5041,Revenue,27.GAS
29-Sep-2017,7004090,-219.99,CURRYS,310317,Housing Revenue Account,Adult Social Care,101,Supplies and Services,504,Equipment,5023,Revenue,10.HOUSEHOLD
29-Sep-2017,7004090,24.99,CURRYS,310317,"Environment, Housing & Leisure",Cultural & Related Services,104,Supplies and Services,504,Equipment,5023,Revenue,10.HOUSEHOLD
29-Sep-2017,7004090,202.50,CURRYS,310317,"Environment, Housing & Leisure",Cultural & Related Services,104,Supplies and Services,504,Equipment,5023,Revenue,10.HOUSEHOLD
29-Sep-2017,7004090,219.99,CURRYS,310317,Housing Revenue Account,Adult Social Care,101,Supplies and Services,504,Equipment,5023,Revenue,10.HOUSEHOLD
29-Sep-2017,7004090,66.66,CURRYS,310317,"Environment, Housing & Leisure",Environmental & Regulatory Services,105,Supplies and Services,504,Equipment,5023,Revenue,10.HOUSEHOLD
29-Sep-2017,7004090,23.99,CURRYS,310317,"Environment, Housing & Leisure",Environmental & Regulatory Services,105,Supplies and Services,504,Equipment,5023,Revenue,10.HOUSEHOLD
29-Sep-2017,7004090,133.32,CURRYS,310317,"Health, Education, Care and Safeguarding",Children's & Education Services,103,Third Party Payments,505,Other Establishments,5041,Revenue,10.HOUSEHOLD
29-Sep-2017,7004091,30.83,NATIONAL EXPRESS,326193,"Health, Education, Care and Safeguarding",Children's & Education Services,103,Supplies and Services,504,Expenses,5030,Revenue,26.TAXIS
29-Sep-2017,7004091,63.50,NATIONAL EXPRESS,326193,"Health, Education, Care and Safeguarding",Children's & Education Services,103,Supplies and Services,504,Miscellaneous Expenses,5034,Revenue,26.TAXIS
29-Sep-2017,7004091,21.17,NATIONAL EXPRESS,326193,"Health, Education, Care and Safeguarding",Children's & Education Services,103,Supplies and Services,504,Expenses,5030,Revenue,26.TAXIS
29-Sep-2017,7004092,14.17,HOME BARGAINS,381011,Housing Revenue Account,Adult Social Care,101,Supplies and Services,504,Equipment,5023,Revenue,10.BLINDS CARPETS CURTAIN
29-Sep-2017,7004092,4.72,HOME BARGAINS,381011,"Health, Education, Care and Safeguarding",Children's & Education Services,103,Third Party Payments,505,Other Establishments,5041,Revenue,10.BLINDS CARPETS CURTAIN
29-Sep-2017,7004093,64.00,CROSS COUNTRY,383127,Commissioning & Investment,Adult Social Care,101,Supplies and Services,504,Expenses,5030,Revenue,18.TRAVEL
29-Sep-2017,7004094,2.83,HOBBY CRAFT,375881,"Health, Education, Care and Safeguarding",Children's & Education Services,103,Supplies and Services,504,Equipment,5023,Revenue,06.ART & CRAFT
29-Sep-2017,7004095,30.00,TT2 LTD,377653,"Health, Education, Care and Safeguarding",Children's & Education Services,103,Supplies and Services,504,Expenses,5030,Revenue,00.NON INFLUENCIBLE
29-Sep-2017,7004095,100.00,TT2 LTD,377653,Law & Governance,Central Services,102,Supplies and Services,504,Expenses,5030,Revenue,00.NON INFLUENCIBLE
29-Sep-2017,7004096,50.00,AMAZON SVCS EU-UK,375398,"Health, Education, Care and Safeguarding",Children's & Education Services,103,Premises-Related Expenditure,502,"Repairs, alterations and maintenance of buildings",5005,Revenue,EDUC SUPP
29-Sep-2017,7004096,4.99,AMAZON SVCS EU-UK,375398,"Environment, Housing & Leisure",Cultural & Related Services,104,Supplies and Services,504,Equipment,5023,Revenue,EDUC SUPP
29-Sep-2017,7004096,51.56,AMAZON SVCS EU-UK,375398,Housing Revenue Account,Adult Social Care,101,Supplies and Services,504,Equipment,5023,Revenue,EDUC SUPP
29-Sep-2017,7004096,27.98,AMAZON SVCS EU-UK,375398,"Health, Education, Care and Safeguarding",Children's & Education Services,103,Supplies and Services,504,Equipment,5023,Revenue,EDUC SUPP
29-Sep-2017,7004096,17.82,AMAZON SVCS EU-UK,375398,"Health, Education, Care and Safeguarding",Adult Social Care,101,Supplies and Services,504,Equipment,5023,Revenue,EDUC SUPP
29-Sep-2017,7004096,1.97,AMAZON SVCS EU-UK,375398,"Health, Education, Care and Safeguarding",Children's & Education Services,103,Supplies and Services,504,Miscellaneous Expenses,5034,Revenue,EDUC SUPP
29-Sep-2017,7004096,47.72,AMAZON SVCS EU-UK,375398,"Environment, Housing & Leisure",Cultural & Related Services,104,Supplies and Services,504,Equipment,5023,Revenue,EDUC SUPP
29-Sep-2017,7004096,34.98,AMAZON SVCS EU-UK,375398,"Health, Education, Care and Safeguarding",Children's & Education Services,103,Supplies and Services,504,Miscellaneous Expenses,5034,Revenue,EDUC SUPP
29-Sep-2017,7004096,29.77,AMAZON SVCS EU-UK,375398,"Health, Education, Care and Safeguarding",Children's & Education Services,103,Supplies and Services,504,Miscellaneous Expenses,5034,Revenue,EDUC SUPP
29-Sep-2017,7004096,6.66,AMAZON SVCS EU-UK,375398,"Health, Education, Care and Safeguarding",Children's & Education Services,103,Supplies and Services,504,Equipment,5023,Revenue,EDUC SUPP
29-Sep-2017,7004096,22.14,AMAZON SVCS EU-UK,375398,"Health, Education, Care and Safeguarding",Children's & Education Services,103,Supplies and Services,504,Equipment,5023,Revenue,EDUC SUPP
29-Sep-2017,7004096,5.82,AMAZON SVCS EU-UK,375398,"Health, Education, Care and Safeguarding",Children's & Education Services,103,Supplies and Services,504,Miscellaneous Expenses,5034,Revenue,EDUC SUPP
29-Sep-2017,7004096,51.56,AMAZON SVCS EU-UK,375398,Housing Revenue Account,Adult Social Care,101,Supplies and Services,504,Equipment,5023,Revenue,EDUC SUPP
29-Sep-2017,7004096,21.65,AMAZON SVCS EU-UK,375398,"Health, Education, Care and Safeguarding",Children's & Education Services,103,Supplies and Services,504,Equipment,5023,Revenue,EDUC SUPP
29-Sep-2017,7004096,10.82,AMAZON SVCS EU-UK,375398,"Environment, Housing & Leisure",Cultural & Related Services,104,Supplies and Services,504,Equipment,5023,Revenue,EDUC SUPP
29-Sep-2017,7004096,19.00,AMAZON SVCS EU-UK,375398,"Health, Education, Care and Safeguarding",Adult Social Care,101,Supplies and Services,504,Equipment,5023,Revenue,EDUC SUPP
29-Sep-2017,7004096,23.29,AMAZON SVCS EU-UK,375398,"Environment, Housing & Leisure",Cultural & Related Services,104,Supplies and Services,504,Equipment,5023,Revenue,EDUC SUPP
29-Sep-2017,7004096,7.79,AMAZON SVCS EU-UK,375398,"Environment, Housing & Leisure",Cultural & Related Services,104,Supplies and Services,504,Equipment,5023,Revenue,EDUC SUPP
29-Sep-2017,7004096,35.37,AMAZON SVCS EU-UK,375398,"Environment, Housing & Leisure",Cultural & Related Services,104,Supplies and Services,504,Equipment,5023,Revenue,EDUC SUPP
29-Sep-2017,7004096,36.65,AMAZON SVCS EU-UK,375398,"Health, Education, Care and Safeguarding",Children's & Education Services,103,Premises-Related Expenditure,502,"Repairs, alterations and maintenance of buildings",5005,Revenue,EDUC SUPP
29-Sep-2017,7004096,24.88,AMAZON SVCS EU-UK,375398,"Health, Education, Care and Safeguarding",Children's & Education Services,103,Supplies and Services,504,Equipment,5023,Revenue,EDUC SUPP
29-Sep-2017,7004096,4.99,AMAZON SVCS EU-UK,375398,"Environment, Housing & Leisure",Cultural & Related Services,104,Supplies and Services,504,Equipment,5023,Revenue,EDUC SUPP
29-Sep-2017,7004096,38.29,AMAZON SVCS EU-UK,375398,"Health, Education, Care and Safeguarding",Children's & Education Services,103,Supplies and Services,504,Equipment,5023,Revenue,EDUC SUPP
29-Sep-2017,7004096,18.67,AMAZON SVCS EU-UK,375398,"Health, Education, Care and Safeguarding",Adult Social Care,101,Supplies and Services,504,Equipment,5023,Revenue,EDUC SUPP
29-Sep-2017,7004096,4.99,AMAZON SVCS EU-UK,375398,"Environment, Housing & Leisure",Cultural & Related Services,104,Supplies and Services,504,Equipment,5023,Revenue,EDUC SUPP
29-Sep-2017,7004096,80.97,AMAZON SVCS EU-UK,375398,"Health, Education, Care and Safeguarding",Adult Social Care,101,Supplies and Services,504,Equipment,5023,Revenue,EDUC SUPP
29-Sep-2017,7004096,159.34,AMAZON SVCS EU-UK,375398,"Environment, Housing & Leisure",Cultural & Related Services,104,Supplies and Services,504,Equipment,5023,Revenue,EDUC SUPP
29-Sep-2017,7004096,7.50,AMAZON SVCS EU-UK,375398,"Health, Education, Care and Safeguarding",Children's & Education Services,103,Supplies and Services,504,Miscellaneous Expenses,5034,Revenue,EDUC SUPP
29-Sep-2017,7004096,169.91,AMAZON SVCS EU-UK,375398,"Health, Education, Care and Safeguarding",Adult Social Care,101,Supplies and Services,504,Equipment,5023,Revenue,EDUC SUPP
29-Sep-2017,7004096,51.56,AMAZON SVCS EU-UK,375398,Housing Revenue Account,Adult Social Care,101,Supplies and Services,504,Equipment,5023,Revenue,EDUC SUPP
29-Sep-2017,7004096,6.50,AMAZON SVCS EU-UK,375398,"Environment, Housing & Leisure",Cultural & Related Services,104,Supplies and Services,504,Equipment,5023,Revenue,EDUC SUPP
29-Sep-2017,7004096,19.15,AMAZON SVCS EU-UK,375398,Corporate Strategy,Central Services,102,Supplies and Services,504,Expenses,5030,Revenue,EDUC SUPP
29-Sep-2017,7004096,2.36,AMAZON SVCS EU-UK,375398,"Environment, Housing & Leisure",Cultural & Related Services,104,Supplies and Services,504,Equipment,5023,Revenue,EDUC SUPP
29-Sep-2017,7004096,32.08,AMAZON SVCS EU-UK,375398,"Environment, Housing & Leisure",Cultural & Related Services,104,Supplies and Services,504,Equipment,5023,Revenue,EDUC SUPP
29-Sep-2017,7004096,-23.32,AMAZON SVCS EU-UK,375398,"Health, Education, Care and Safeguarding",Children's & Education Services,103,Supplies and Services,504,Equipment,5023,Revenue,EDUC SUPP
29-Sep-2017,7004096,2.99,AMAZON SVCS EU-UK,375398,"Health, Education, Care and Safeguarding",Children's & Education Services,103,Supplies and Services,504,Miscellaneous Expenses,5034,Revenue,EDUC SUPP
29-Sep-2017,7004096,50.94,AMAZON SVCS EU-UK,375398,"Environment, Housing & Leisure",Cultural & Related Services,104,Supplies and Services,504,Equipment,5023,Revenue,EDUC SUPP
29-Sep-2017,7004096,25.02,AMAZON SVCS EU-UK,375398,"Environment, Housing & Leisure",Cultural & Related Services,104,Supplies and Services,504,Equipment,5023,Revenue,EDUC SUPP
29-Sep-2017,7004096,11.22,AMAZON SVCS EU-UK,375398,"Environment, Housing & Leisure",Cultural & Related Services,104,Supplies and Services,504,Equipment,5023,Revenue,EDUC SUPP
29-Sep-2017,7004096,57.48,AMAZON SVCS EU-UK,375398,"Environment, Housing & Leisure",Cultural & Related Services,104,Supplies and Services,504,Equipment,5023,Revenue,EDUC SUPP
29-Sep-2017,7004096,241.66,AMAZON SVCS EU-UK,375398,"Environment, Housing & Leisure",Cultural & Related Services,104,Supplies and Services,504,Equipment,5023,Revenue,EDUC SUPP
29-Sep-2017,7004096,45.01,AMAZON SVCS EU-UK,375398,"Environment, Housing & Leisure",Cultural & Related Services,104,Supplies and Services,504,Equipment,5023,Revenue,EDUC SUPP
29-Sep-2017,7004096,312.47,AMAZON SVCS EU-UK,375398,"Health, Education, Care and Safeguarding",Children's & Education Services,103,Supplies and Services,504,Equipment,5023,Revenue,EDUC SUPP
29-Sep-2017,7004096,5.67,AMAZON SVCS EU-UK,375398,"Environment, Housing & Leisure",Cultural & Related Services,104,Supplies and Services,504,Equipment,5023,Revenue,EDUC SUPP
29-Sep-2017,7004097,99.99,ARGOS,253446,"Health, Education, Care and Safeguarding",Children's & Education Services,103,Third Party Payments,505,Other Establishments,5041,Revenue,10.HOUSEHOLD
29-Sep-2017,7004097,133.32,ARGOS,253446,Commissioning & Investment,Children's & Education Services,103,Supplies and Services,504,Equipment,5023,Revenue,10.HOUSEHOLD
29-Sep-2017,7004097,84.95,ARGOS,253446,"Health, Education, Care and Safeguarding",Children's & Education Services,103,Third Party Payments,505,Other Establishments,5041,Revenue,10.HOUSEHOLD
29-Sep-2017,7004098,47.37,ASDA F/STN 04807,382198,"Environment, Housing & Leisure",Cultural & Related Services,104,Supplies and Services,504,Equipment,5023,Revenue,28.FUEL
29-Sep-2017,7004098,75.80,ASDA F/STN 04807,382198,"Environment, Housing & Leisure",Cultural & Related Services,104,Premises-Related Expenditure,502,Energy Costs,5006,Revenue,28.FUEL
29-Sep-2017,7004099,11.98,WICKES LTD,366831,"Environment, Housing & Leisure",Environmental & Regulatory Services,105,Supplies and Services,504,Equipment,5023,Revenue,10.HOUSEHOLD
29-Sep-2017,7004100,33.33,BOUNDARY MILL STORE,380590,"Health, Education, Care and Safeguarding",Children's & Education Services,103,Supplies and Services,504,Equipment,5023,Revenue,10.HOUSEHOLD
29-Sep-2017,7004100,44.75,BOUNDARY MILL STORE,380590,"Environment, Housing & Leisure",Cultural & Related Services,104,Supplies and Services,504,Equipment,5023,Revenue,10.HOUSEHOLD
29-Sep-2017,7004101,262.55,TRAINLINE.COM LTD,378856,"Health, Education, Care and Safeguarding",Children's & Education Services,103,Supplies and Services,504,Expenses,5030,Revenue,18.TRAVEL
29-Sep-2017,7004101,247.73,TRAINLINE.COM LTD,378856,Business & Economic Development,Planning Services ,110,Supplies and Services,504,"Printing, Stationery and General Office Expenses",5026,Revenue,18.TRAVEL
29-Sep-2017,7004101,198.47,TRAINLINE.COM LTD,378856,Business & Economic Development,Planning Services ,110,Supplies and Services,504,"Printing, Stationery and General Office Expenses",5026,Revenue,18.TRAVEL
29-Sep-2017,7004102,60.25,TRAVELODGE,345558,"Environment, Housing & Leisure",Housing Services,108,Supplies and Services,504,Equipment,5023,Revenue,16.EVENTS & PROMOTIONS
29-Sep-2017,7004103,29.25,ARCO LIMITED,322667,"Health, Education, Care and Safeguarding",Adult Social Care,101,Supplies and Services,504,"Clothing, Uniforms and Laundry",5025,Revenue,11.WORKWEAR
29-Sep-2017,7004103,52.96,ARCO LIMITED,322667,"Health, Education, Care and Safeguarding",Adult Social Care,101,Supplies and Services,504,"Clothing, Uniforms and Laundry",5025,Revenue,11.WORKWEAR
29-Sep-2017,7004103,178.13,ARCO LIMITED,322667,Housing Revenue Account,Housing Revenue Account,N/A,Supplies and Services,504,Equipment,5023,Revenue,11.WORKWEAR
29-Sep-2017,7004104,2.49,POST OFFICE LTD,342852,"Health, Education, Care and Safeguarding",Children's & Education Services,103,Supplies and Services,504,Communications & Computing,5028,Revenue,18.POSTAGE
29-Sep-2017,7004104,195.00,POST OFFICE LTD,342852,"Health, Education, Care and Safeguarding",Children's & Education Services,103,Supplies and Services,504,Communications & Computing,5028,Revenue,18.POSTAGE
29-Sep-2017,7004105,14.98,TRADE UK T/A SCREWFIX DIRECT,316725,"Environment, Housing & Leisure",Environmental & Regulatory Services,105,Supplies and Services,504,Equipment,5023,Revenue,BUILD GEN
29-Sep-2017,7004105,6.65,TRADE UK T/A SCREWFIX DIRECT,316725,"Health, Education, Care and Safeguarding",Children's & Education Services,103,Supplies and Services,504,Equipment,5023,Revenue,BUILD GEN
29-Sep-2017,7004105,79.65,TRADE UK T/A SCREWFIX DIRECT,316725,"Health, Education, Care and Safeguarding",Children's & Education Services,103,Supplies and Services,504,Equipment,5023,Revenue,BUILD GEN
29-Sep-2017,7004105,43.35,TRADE UK T/A SCREWFIX DIRECT,316725,"Environment, Housing & Leisure",Cultural & Related Services,104,Supplies and Services,504,Equipment,5023,Revenue,BUILD GEN
29-Sep-2017,7004105,70.77,TRADE UK T/A SCREWFIX DIRECT,316725,"Environment, Housing & Leisure",Environmental & Regulatory Services,105,Supplies and Services,504,Equipment,5023,Revenue,BUILD GEN
29-Sep-2017,7004105,59.56,TRADE UK T/A SCREWFIX DIRECT,316725,"Health, Education, Care and Safeguarding",Children's & Education Services,103,Supplies and Services,504,Equipment,5023,Revenue,BUILD GEN
29-Sep-2017,7004105,59.07,TRADE UK T/A SCREWFIX DIRECT,316725,"Environment, Housing & Leisure",Cultural & Related Services,104,Supplies and Services,504,Equipment,5023,Revenue,BUILD GEN
29-Sep-2017,7004105,14.82,TRADE UK T/A SCREWFIX DIRECT,316725,"Environment, Housing & Leisure",Cultural & Related Services,104,Supplies and Services,504,Equipment,5023,Revenue,BUILD GEN
29-Sep-2017,7004105,16.86,TRADE UK T/A SCREWFIX DIRECT,316725,"Environment, Housing & Leisure",Environmental & Regulatory Services,105,Supplies and Services,504,Equipment,5023,Revenue,BUILD GEN
29-Sep-2017,7004105,34.97,TRADE UK T/A SCREWFIX DIRECT,316725,"Environment, Housing & Leisure",Cultural & Related Services,104,Supplies and Services,504,Equipment,5023,Revenue,BUILD GEN
29-Sep-2017,7004105,39.83,TRADE UK T/A SCREWFIX DIRECT,316725,"Health, Education, Care and Safeguarding",Children's & Education Services,103,Supplies and Services,504,Equipment,5023,Revenue,BUILD GEN
29-Sep-2017,7004105,48.31,TRADE UK T/A SCREWFIX DIRECT,316725,"Environment, Housing & Leisure",Environmental & Regulatory Services,105,Supplies and Services,504,Equipment,5023,Revenue,BUILD GEN
29-Sep-2017,7004106,2.50,ASDA STORES LIMITED,306530,"Environment, Housing & Leisure",Adult Social Care,101,Supplies and Services,504,Equipment,5023,Revenue,03.GROCERIES & PROVISIONS
29-Sep-2017,7004106,2.47,ASDA STORES LIMITED,306530,"Environment, Housing & Leisure",Adult Social Care,101,Supplies and Services,504,Equipment,5023,Revenue,03.GROCERIES & PROVISIONS
29-Sep-2017,7004106,6.37,ASDA STORES LIMITED,306530,"Environment, Housing & Leisure",Cultural & Related Services,104,Supplies and Services,504,Equipment,5023,Revenue,03.GROCERIES & PROVISIONS
29-Sep-2017,7004106,1.98,ASDA STORES LIMITED,306530,"Environment, Housing & Leisure",Adult Social Care,101,Supplies and Services,504,Equipment,5023,Revenue,03.GROCERIES & PROVISIONS
29-Sep-2017,7004106,1.83,ASDA STORES LIMITED,306530,"Environment, Housing & Leisure",Cultural & Related Services,104,Supplies and Services,504,Equipment,5023,Revenue,03.GROCERIES & PROVISIONS
29-Sep-2017,7004106,10.04,ASDA STORES LIMITED,306530,"Environment, Housing & Leisure",Cultural & Related Services,104,Supplies and Services,504,Equipment,5023,Revenue,03.GROCERIES & PROVISIONS
29-Sep-2017,7004106,24.92,ASDA STORES LIMITED,306530,"Environment, Housing & Leisure",Cultural & Related Services,104,Supplies and Services,504,Equipment,5023,Revenue,03.GROCERIES & PROVISIONS
29-Sep-2017,7004106,4.06,ASDA STORES LIMITED,306530,"Environment, Housing & Leisure",Adult Social Care,101,Supplies and Services,504,Equipment,5023,Revenue,03.GROCERIES & PROVISIONS
29-Sep-2017,7004106,4.54,ASDA STORES LIMITED,306530,"Environment, Housing & Leisure",Adult Social Care,101,Supplies and Services,504,Equipment,5023,Revenue,03.GROCERIES & PROVISIONS
29-Sep-2017,7004106,7.69,ASDA STORES LIMITED,306530,"Environment, Housing & Leisure",Adult Social Care,101,Supplies and Services,504,Equipment,5023,Revenue,03.GROCERIES & PROVISIONS
29-Sep-2017,7004106,4.36,ASDA STORES LIMITED,306530,"Environment, Housing & Leisure",Cultural & Related Services,104,Supplies and Services,504,Equipment,5023,Revenue,03.GROCERIES & PROVISIONS
29-Sep-2017,7004106,4.58,ASDA STORES LIMITED,306530,"Environment, Housing & Leisure",Adult Social Care,101,Supplies and Services,504,Equipment,5023,Revenue,03.GROCERIES & PROVISIONS
29-Sep-2017,7004106,5.62,ASDA STORES LIMITED,306530,"Environment, Housing & Leisure",Cultural & Related Services,104,Supplies and Services,504,Equipment,5023,Revenue,03.GROCERIES & PROVISIONS
29-Sep-2017,7004106,3.36,ASDA STORES LIMITED,306530,"Environment, Housing & Leisure",Adult Social Care,101,Supplies and Services,504,Equipment,5023,Revenue,03.GROCERIES & PROVISIONS
29-Sep-2017,7004106,5.00,ASDA STORES LIMITED,306530,"Environment, Housing & Leisure",Cultural & Related Services,104,Premises-Related Expenditure,502,Cleaning and Domestic Supplies,5012,Revenue,03.GROCERIES & PROVISIONS
29-Sep-2017,7004106,8.33,ASDA STORES LIMITED,306530,"Environment, Housing & Leisure",Cultural & Related Services,104,Supplies and Services,504,Equipment,5023,Revenue,03.GROCERIES & PROVISIONS
29-Sep-2017,7004106,9.00,ASDA STORES LIMITED,306530,"Environment, Housing & Leisure",Adult Social Care,101,Supplies and Services,504,Equipment,5023,Revenue,03.GROCERIES & PROVISIONS
29-Sep-2017,7004106,14.64,ASDA STORES LIMITED,306530,"Environment, Housing & Leisure",Adult Social Care,101,Supplies and Services,504,Equipment,5023,Revenue,03.GROCERIES & PROVISIONS
29-Sep-2017,7004106,32.32,ASDA STORES LIMITED,306530,"Health, Education, Care and Safeguarding",Children's & Education Services,103,Third Party Payments,505,Other Establishments,5041,Revenue,03.GROCERIES & PROVISIONS
29-Sep-2017,7004106,10.00,ASDA STORES LIMITED,306530,"Environment, Housing & Leisure",Cultural & Related Services,104,Supplies and Services,504,Equipment,5023,Revenue,03.GROCERIES & PROVISIONS
29-Sep-2017,7004106,148.42,ASDA STORES LIMITED,306530,"Health, Education, Care and Safeguarding",Children's & Education Services,103,Third Party Payments,505,Other Establishments,5041,Revenue,03.GROCERIES & PROVISIONS
29-Sep-2017,7004106,16.55,ASDA STORES LIMITED,306530,"Environment, Housing & Leisure",Cultural & Related Services,104,Premises-Related Expenditure,502,Cleaning and Domestic Supplies,5012,Revenue,03.GROCERIES & PROVISIONS
29-Sep-2017,7004106,15.42,ASDA STORES LIMITED,306530,"Environment, Housing & Leisure",Cultural & Related Services,104,Supplies and Services,504,Equipment,5023,Revenue,03.GROCERIES & PROVISIONS
29-Sep-2017,7004107,33.32,BOOTS THE CHEMISTS LTD,002209,"Health, Education, Care and Safeguarding",Children's & Education Services,103,Supplies and Services,504,Equipment,5023,Revenue,PUB HEALTH.PUBLIC HEALTH
29-Sep-2017,7004108,4.67,SAINSBURY'S SUPERMARKET LIMITED,334326,Corporate Strategy,Children's & Education Services,103,Supplies and Services,504,Catering,5024,Revenue,03.GROCERIES & PROVISIONS
29-Sep-2017,7004108,11.25,SAINSBURY'S SUPERMARKET LIMITED,334326,Corporate Strategy,Children's & Education Services,103,Supplies and Services,504,Catering,5024,Revenue,03.GROCERIES & PROVISIONS
29-Sep-2017,7004108,83.18,SAINSBURY'S SUPERMARKET LIMITED,334326,Housing Revenue Account,Housing Revenue Account,N/A,Supplies and Services,504,Equipment,5023,Revenue,03.GROCERIES & PROVISIONS
29-Sep-2017,7004108,3.25,SAINSBURY'S SUPERMARKET LIMITED,334326,"Environment, Housing & Leisure",Cultural & Related Services,104,Supplies and Services,504,Equipment,5023,Revenue,03.GROCERIES & PROVISIONS
29-Sep-2017,7004109,5.00,B & Q (205037),205037,"Environment, Housing & Leisure",Cultural & Related Services,104,Supplies and Services,504,Miscellaneous Expenses,5034,Revenue,BUILD GEN
29-Sep-2017,7004109,51.52,B & Q (205037),205037,"Health, Education, Care and Safeguarding",Children's & Education Services,103,Third Party Payments,505,Other Establishments,5041,Revenue,BUILD GEN
29-Sep-2017,7004109,15.00,B & Q (205037),205037,"Environment, Housing & Leisure",Cultural & Related Services,104,Supplies and Services,504,Miscellaneous Expenses,5034,Revenue,BUILD GEN
29-Sep-2017,7004109,45.00,B & Q (205037),205037,"Health, Education, Care and Safeguarding",Children's & Education Services,103,Supplies and Services,504,Equipment,5023,Revenue,BUILD GEN
29-Sep-2017,7004109,61.67,B & Q (205037),205037,"Environment, Housing & Leisure",Cultural & Related Services,104,Supplies and Services,504,Equipment,5023,Revenue,BUILD GEN
29-Sep-2017,7004109,37.53,B & Q (205037),205037,"Environment, Housing & Leisure",Cultural & Related Services,104,Supplies and Services,504,Equipment,5023,Revenue,BUILD GEN
29-Sep-2017,7004109,39.63,B & Q (205037),205037,"Environment, Housing & Leisure",Environmental & Regulatory Services,105,Supplies and Services,504,Equipment,5023,Revenue,BUILD GEN
29-Sep-2017,7004109,7.46,B & Q (205037),205037,"Environment, Housing & Leisure",Environmental & Regulatory Services,105,Supplies and Services,504,Equipment,5023,Revenue,BUILD GEN
29-Sep-2017,7004109,21.72,B & Q (205037),205037,"Health, Education, Care and Safeguarding",Children's & Education Services,103,Supplies and Services,504,Miscellaneous Expenses,5034,Revenue,BUILD GEN
29-Sep-2017,7004109,61.83,B & Q (205037),205037,"Environment, Housing & Leisure",Environmental & Regulatory Services,105,Supplies and Services,504,Equipment,5023,Revenue,BUILD GEN
29-Sep-2017,7004109,37.53,B & Q (205037),205037,"Environment, Housing & Leisure",Cultural & Related Services,104,Supplies and Services,504,Equipment,5023,Revenue,BUILD GEN
29-Sep-2017,7004109,15.42,B & Q (205037),205037,"Health, Education, Care and Safeguarding",Children's & Education Services,103,Supplies and Services,504,Miscellaneous Expenses,5034,Revenue,BUILD GEN
29-Sep-2017,7004109,16.67,B & Q (205037),205037,"Environment, Housing & Leisure",Cultural & Related Services,104,Supplies and Services,504,Equipment,5023,Revenue,BUILD GEN
29-Sep-2017,7004109,13.25,B & Q (205037),205037,"Health, Education, Care and Safeguarding",Children's & Education Services,103,Supplies and Services,504,Equipment,5023,Revenue,BUILD GEN
29-Sep-2017,7004109,16.67,B & Q (205037),205037,"Environment, Housing & Leisure",Environmental & Regulatory Services,105,Supplies and Services,504,Equipment,5023,Revenue,BUILD GEN
29-Sep-2017,7004109,167.48,B & Q (205037),205037,"Health, Education, Care and Safeguarding",Children's & Education Services,103,Supplies and Services,504,Equipment,5023,Revenue,BUILD GEN
29-Sep-2017,7004109,24.95,B & Q (205037),205037,"Environment, Housing & Leisure",Environmental & Regulatory Services,105,Supplies and Services,504,Equipment,5023,Revenue,BUILD GEN
29-Sep-2017,7004110,122.50,TV LICENSING,014515,"Health, Education, Care and Safeguarding",Children's & Education Services,103,Supplies and Services,504,Miscellaneous Expenses,5034,Revenue,SUBSTV
29-Sep-2017,7004110,147.00,TV LICENSING,014515,"Health, Education, Care and Safeguarding",Children's & Education Services,103,Supplies and Services,504,Miscellaneous Expenses,5034,Revenue,SUBSTV
29-Sep-2017,7004110,147.00,TV LICENSING,014515,"Health, Education, Care and Safeguarding",Children's & Education Services,103,Third Party Payments,505,Other Establishments,5041,Revenue,SUBSTV
29-Sep-2017,7004110,147.00,TV LICENSING,014515,"Health, Education, Care and Safeguarding",Children's & Education Services,103,Third Party Payments,505,Other Establishments,5041,Revenue,SUBSTV
29-Sep-2017,7004110,147.00,TV LICENSING,014515,"Health, Education, Care and Safeguarding",Children's & Education Services,103,Third Party Payments,505,Other Establishments,5041,Revenue,SUBSTV
29-Sep-2017,7004111,26.66,MAXWELLS (NORTH SHIELDS) LTD,013151,"Health, Education, Care and Safeguarding",Children's & Education Services,103,Supplies and Services,504,Equipment,5023,Revenue,BUILD GEN
29-Sep-2017,7004112,12.76,TESCO STORES LTD,336585,"Health, Education, Care and Safeguarding",Children's & Education Services,103,Supplies and Services,504,Equipment,5023,Revenue,03.GROCERIES & PROVISIONS
29-Sep-2017,7004112,18.71,TESCO STORES LTD,336585,"Health, Education, Care and Safeguarding",Children's & Education Services,103,Supplies and Services,504,Equipment,5023,Revenue,03.GROCERIES & PROVISIONS
29-Sep-2017,7004112,124.17,TESCO STORES LTD,336585,"Health, Education, Care and Safeguarding",Children's & Education Services,103,Third Party Payments,505,Other Establishments,5041,Revenue,03.GROCERIES & PROVISIONS
29-Sep-2017,7004112,74.75,TESCO STORES LTD,336585,"Health, Education, Care and Safeguarding",Children's & Education Services,103,Supplies and Services,504,Equipment,5023,Revenue,03.GROCERIES & PROVISIONS
29-Sep-2017,7004112,89.75,TESCO STORES LTD,336585,"Health, Education, Care and Safeguarding",Children's & Education Services,103,Supplies and Services,504,Equipment,5023,Revenue,03.GROCERIES & PROVISIONS
29-Sep-2017,7004112,10.50,TESCO STORES LTD,336585,"Health, Education, Care and Safeguarding",Children's & Education Services,103,Third Party Payments,505,Other Establishments,5041,Revenue,03.GROCERIES & PROVISIONS
29-Sep-2017,7004112,14.81,TESCO STORES LTD,336585,"Health, Education, Care and Safeguarding",Children's & Education Services,103,Supplies and Services,504,Equipment,5023,Revenue,03.GROCERIES & PROVISIONS
29-Sep-2017,7004113,8.30,HOMEBASE LIMITED,329060,"Health, Education, Care and Safeguarding",Children's & Education Services,103,Premises-Related Expenditure,502,"Repairs, alterations and maintenance of buildings",5005,Revenue,BUILD GEN
29-Sep-2017,7004114,2.62,AF BLAKEMORE & SON LIMITED T/A LOWRIES CASH & CARRY,332872,Commissioning & Investment,Children's & Education Services,103,Supplies and Services,504,Equipment,5023,Revenue,03.GROCERIES & PROVISIONS
29-Sep-2017,7004114,10.55,AF BLAKEMORE & SON LIMITED T/A LOWRIES CASH & CARRY,332872,Commissioning & Investment,Children's & Education Services,103,Supplies and Services,504,Equipment,5023,Revenue,03.GROCERIES & PROVISIONS
29-Sep-2017,7004114,11.27,AF BLAKEMORE & SON LIMITED T/A LOWRIES CASH & CARRY,332872,Commissioning & Investment,Children's & Education Services,103,Supplies and Services,504,Equipment,5023,Revenue,03.GROCERIES & PROVISIONS
29-Sep-2017,7004114,28.08,AF BLAKEMORE & SON LIMITED T/A LOWRIES CASH & CARRY,332872,Commissioning & Investment,Children's & Education Services,103,Supplies and Services,504,Equipment,5023,Revenue,03.GROCERIES & PROVISIONS
29-Sep-2017,7004114,6.58,AF BLAKEMORE & SON LIMITED T/A LOWRIES CASH & CARRY,332872,Commissioning & Investment,Children's & Education Services,103,Supplies and Services,504,Equipment,5023,Revenue,03.GROCERIES & PROVISIONS
29-Sep-2017,7004114,10.00,AF BLAKEMORE & SON LIMITED T/A LOWRIES CASH & CARRY,332872,Commissioning & Investment,Children's & Education Services,103,Supplies and Services,504,Equipment,5023,Revenue,03.GROCERIES & PROVISIONS
29-Sep-2017,7004114,3.39,AF BLAKEMORE & SON LIMITED T/A LOWRIES CASH & CARRY,332872,Commissioning & Investment,Children's & Education Services,103,Supplies and Services,504,Equipment,5023,Revenue,03.GROCERIES & PROVISIONS
29-Sep-2017,7004114,10.69,AF BLAKEMORE & SON LIMITED T/A LOWRIES CASH & CARRY,332872,Commissioning & Investment,Children's & Education Services,103,Supplies and Services,504,Equipment,5023,Revenue,03.GROCERIES & PROVISIONS
29-Sep-2017,7004114,2.70,AF BLAKEMORE & SON LIMITED T/A LOWRIES CASH & CARRY,332872,Commissioning & Investment,Children's & Education Services,103,Supplies and Services,504,Equipment,5023,Revenue,03.GROCERIES & PROVISIONS
29-Sep-2017,7004114,18.68,AF BLAKEMORE & SON LIMITED T/A LOWRIES CASH & CARRY,332872,"Environment, Housing & Leisure",Adult Social Care,101,Supplies and Services,504,Equipment,5023,Revenue,03.GROCERIES & PROVISIONS
29-Sep-2017,7004114,44.50,AF BLAKEMORE & SON LIMITED T/A LOWRIES CASH & CARRY,332872,"Environment, Housing & Leisure",Adult Social Care,101,Supplies and Services,504,Equipment,5023,Revenue,03.GROCERIES & PROVISIONS
29-Sep-2017,7004114,12.70,AF BLAKEMORE & SON LIMITED T/A LOWRIES CASH & CARRY,332872,"Environment, Housing & Leisure",Adult Social Care,101,Supplies and Services,504,Equipment,5023,Revenue,03.GROCERIES & PROVISIONS
29-Sep-2017,7004114,9.03,AF BLAKEMORE & SON LIMITED T/A LOWRIES CASH & CARRY,332872,Commissioning & Investment,Children's & Education Services,103,Supplies and Services,504,Equipment,5023,Revenue,03.GROCERIES & PROVISIONS
29-Sep-2017,7004114,10.69,AF BLAKEMORE & SON LIMITED T/A LOWRIES CASH & CARRY,332872,Commissioning & Investment,Children's & Education Services,103,Supplies and Services,504,Equipment,5023,Revenue,03.GROCERIES & PROVISIONS
29-Sep-2017,7004114,3.05,AF BLAKEMORE & SON LIMITED T/A LOWRIES CASH & CARRY,332872,Commissioning & Investment,Children's & Education Services,103,Supplies and Services,504,Equipment,5023,Revenue,03.GROCERIES & PROVISIONS
29-Sep-2017,7004114,9.52,AF BLAKEMORE & SON LIMITED T/A LOWRIES CASH & CARRY,332872,"Environment, Housing & Leisure",Adult Social Care,101,Supplies and Services,504,Equipment,5023,Revenue,03.GROCERIES & PROVISIONS
29-Sep-2017,7004114,19.04,AF BLAKEMORE & SON LIMITED T/A LOWRIES CASH & CARRY,332872,"Environment, Housing & Leisure",Cultural & Related Services,104,Supplies and Services,504,Equipment,5023,Revenue,03.GROCERIES & PROVISIONS
29-Sep-2017,7004114,17.10,AF BLAKEMORE & SON LIMITED T/A LOWRIES CASH & CARRY,332872,"Environment, Housing & Leisure",Cultural & Related Services,104,Supplies and Services,504,Equipment,5023,Revenue,03.GROCERIES & PROVISIONS
29-Sep-2017,7004114,12.76,AF BLAKEMORE & SON LIMITED T/A LOWRIES CASH & CARRY,332872,"Environment, Housing & Leisure",Cultural & Related Services,104,Supplies and Services,504,Equipment,5023,Revenue,03.GROCERIES & PROVISIONS
29-Sep-2017,7004114,17.18,AF BLAKEMORE & SON LIMITED T/A LOWRIES CASH & CARRY,332872,"Environment, Housing & Leisure",Cultural & Related Services,104,Supplies and Services,504,Equipment,5023,Revenue,03.GROCERIES & PROVISIONS
29-Sep-2017,7004114,28.90,AF BLAKEMORE & SON LIMITED T/A LOWRIES CASH & CARRY,332872,"Environment, Housing & Leisure",Adult Social Care,101,Supplies and Services,504,Equipment,5023,Revenue,03.GROCERIES & PROVISIONS
29-Sep-2017,7004114,7.80,AF BLAKEMORE & SON LIMITED T/A LOWRIES CASH & CARRY,332872,"Environment, Housing & Leisure",Adult Social Care,101,Supplies and Services,504,Equipment,5023,Revenue,03.GROCERIES & PROVISIONS
29-Sep-2017,7004114,36.27,AF BLAKEMORE & SON LIMITED T/A LOWRIES CASH & CARRY,332872,"Environment, Housing & Leisure",Adult Social Care,101,Supplies and Services,504,Equipment,5023,Revenue,03.GROCERIES & PROVISIONS
29-Sep-2017,7004114,69.90,AF BLAKEMORE & SON LIMITED T/A LOWRIES CASH & CARRY,332872,"Environment, Housing & Leisure",Cultural & Related Services,104,Supplies and Services,504,Equipment,5023,Revenue,03.GROCERIES & PROVISIONS
29-Sep-2017,7004114,6.91,AF BLAKEMORE & SON LIMITED T/A LOWRIES CASH & CARRY,332872,"Environment, Housing & Leisure",Cultural & Related Services,104,Supplies and Services,504,Equipment,5023,Revenue,03.GROCERIES & PROVISIONS
29-Sep-2017,7004114,36.69,AF BLAKEMORE & SON LIMITED T/A LOWRIES CASH & CARRY,332872,Commissioning & Investment,Children's & Education Services,103,Supplies and Services,504,Equipment,5023,Revenue,03.GROCERIES & PROVISIONS
29-Sep-2017,7004114,-26.37,AF BLAKEMORE & SON LIMITED T/A LOWRIES CASH & CARRY,332872,Commissioning & Investment,Children's & Education Services,103,Supplies and Services,504,Equipment,5023,Revenue,03.GROCERIES & PROVISIONS
29-Sep-2017,7004114,33.00,AF BLAKEMORE & SON LIMITED T/A LOWRIES CASH & CARRY,332872,Commissioning & Investment,Children's & Education Services,103,Supplies and Services,504,Equipment,5023,Revenue,03.GROCERIES & PROVISIONS
29-Sep-2017,7004114,5.67,AF BLAKEMORE & SON LIMITED T/A LOWRIES CASH & CARRY,332872,Commissioning & Investment,Children's & Education Services,103,Supplies and Services,504,Equipment,5023,Revenue,03.GROCERIES & PROVISIONS
29-Sep-2017,7004114,8.25,AF BLAKEMORE & SON LIMITED T/A LOWRIES CASH & CARRY,332872,Commissioning & Investment,Children's & Education Services,103,Supplies and Services,504,Equipment,5023,Revenue,03.GROCERIES & PROVISIONS
29-Sep-2017,7004114,16.74,AF BLAKEMORE & SON LIMITED T/A LOWRIES CASH & CARRY,332872,Commissioning & Investment,Children's & Education Services,103,Supplies and Services,504,Equipment,5023,Revenue,03.GROCERIES & PROVISIONS
29-Sep-2017,7004114,8.45,AF BLAKEMORE & SON LIMITED T/A LOWRIES CASH & CARRY,332872,Commissioning & Investment,Children's & Education Services,103,Supplies and Services,504,Equipment,5023,Revenue,03.GROCERIES & PROVISIONS
29-Sep-2017,7004114,20.47,AF BLAKEMORE & SON LIMITED T/A LOWRIES CASH & CARRY,332872,Commissioning & Investment,Children's & Education Services,103,Supplies and Services,504,Equipment,5023,Revenue,03.GROCERIES & PROVISIONS
29-Sep-2017,7004114,51.54,AF BLAKEMORE & SON LIMITED T/A LOWRIES CASH & CARRY,332872,Commissioning & Investment,Children's & Education Services,103,Supplies and Services,504,Equipment,5023,Revenue,03.GROCERIES & PROVISIONS
29-Sep-2017,7004114,13.20,AF BLAKEMORE & SON LIMITED T/A LOWRIES CASH & CARRY,332872,Commissioning & Investment,Children's & Education Services,103,Supplies and Services,504,Equipment,5023,Revenue,03.GROCERIES & PROVISIONS
29-Sep-2017,7004114,33.56,AF BLAKEMORE & SON LIMITED T/A LOWRIES CASH & CARRY,332872,"Environment, Housing & Leisure",Cultural & Related Services,104,Supplies and Services,504,Equipment,5023,Revenue,03.GROCERIES & PROVISIONS
29-Sep-2017,7004114,5.70,AF BLAKEMORE & SON LIMITED T/A LOWRIES CASH & CARRY,332872,Commissioning & Investment,Children's & Education Services,103,Supplies and Services,504,Equipment,5023,Revenue,03.GROCERIES & PROVISIONS
29-Sep-2017,7004114,30.33,AF BLAKEMORE & SON LIMITED T/A LOWRIES CASH & CARRY,332872,"Environment, Housing & Leisure",Adult Social Care,101,Supplies and Services,504,Equipment,5023,Revenue,03.GROCERIES & PROVISIONS
29-Sep-2017,7004114,10.27,AF BLAKEMORE & SON LIMITED T/A LOWRIES CASH & CARRY,332872,"Environment, Housing & Leisure",Adult Social Care,101,Supplies and Services,504,Equipment,5023,Revenue,03.GROCERIES & PROVISIONS
29-Sep-2017,7004114,3.44,AF BLAKEMORE & SON LIMITED T/A LOWRIES CASH & CARRY,332872,"Environment, Housing & Leisure",Adult Social Care,101,Supplies and Services,504,Equipment,5023,Revenue,03.GROCERIES & PROVISIONS
29-Sep-2017,7004114,44.50,AF BLAKEMORE & SON LIMITED T/A LOWRIES CASH & CARRY,332872,"Environment, Housing & Leisure",Adult Social Care,101,Supplies and Services,504,Equipment,5023,Revenue,03.GROCERIES & PROVISIONS
29-Sep-2017,7004114,19.76,AF BLAKEMORE & SON LIMITED T/A LOWRIES CASH & CARRY,332872,Commissioning & Investment,Children's & Education Services,103,Supplies and Services,504,Equipment,5023,Revenue,03.GROCERIES & PROVISIONS
29-Sep-2017,7004114,14.22,AF BLAKEMORE & SON LIMITED T/A LOWRIES CASH & CARRY,332872,Commissioning & Investment,Children's & Education Services,103,Supplies and Services,504,Equipment,5023,Revenue,03.GROCERIES & PROVISIONS
29-Sep-2017,7004114,23.50,AF BLAKEMORE & SON LIMITED T/A LOWRIES CASH & CARRY,332872,"Environment, Housing & Leisure",Cultural & Related Services,104,Supplies and Services,504,Equipment,5023,Revenue,03.GROCERIES & PROVISIONS
29-Sep-2017,7004114,12.08,AF BLAKEMORE & SON LIMITED T/A LOWRIES CASH & CARRY,332872,"Environment, Housing & Leisure",Adult Social Care,101,Supplies and Services,504,Equipment,5023,Revenue,03.GROCERIES & PROVISIONS
29-Sep-2017,7004114,36.27,AF BLAKEMORE & SON LIMITED T/A LOWRIES CASH & CARRY,332872,"Environment, Housing & Leisure",Adult Social Care,101,Supplies and Services,504,Equipment,5023,Revenue,03.GROCERIES & PROVISIONS
29-Sep-2017,7004114,2.48,AF BLAKEMORE & SON LIMITED T/A LOWRIES CASH & CARRY,332872,Commissioning & Investment,Children's & Education Services,103,Supplies and Services,504,Equipment,5023,Revenue,03.GROCERIES & PROVISIONS
29-Sep-2017,7004114,9.88,AF BLAKEMORE & SON LIMITED T/A LOWRIES CASH & CARRY,332872,Commissioning & Investment,Children's & Education Services,103,Supplies and Services,504,Equipment,5023,Revenue,03.GROCERIES & PROVISIONS
29-Sep-2017,7004114,2.81,AF BLAKEMORE & SON LIMITED T/A LOWRIES CASH & CARRY,332872,"Environment, Housing & Leisure",Cultural & Related Services,104,Supplies and Services,504,Equipment,5023,Revenue,03.GROCERIES & PROVISIONS
29-Sep-2017,7004114,14.24,AF BLAKEMORE & SON LIMITED T/A LOWRIES CASH & CARRY,332872,"Environment, Housing & Leisure",Cultural & Related Services,104,Supplies and Services,504,Equipment,5023,Revenue,03.GROCERIES & PROVISIONS
29-Sep-2017,7004114,8.42,AF BLAKEMORE & SON LIMITED T/A LOWRIES CASH & CARRY,332872,"Environment, Housing & Leisure",Adult Social Care,101,Supplies and Services,504,Equipment,5023,Revenue,03.GROCERIES & PROVISIONS
29-Sep-2017,7004114,10.11,AF BLAKEMORE & SON LIMITED T/A LOWRIES CASH & CARRY,332872,"Environment, Housing & Leisure",Adult Social Care,101,Supplies and Services,504,Equipment,5023,Revenue,03.GROCERIES & PROVISIONS
29-Sep-2017,7004114,-8.85,AF BLAKEMORE & SON LIMITED T/A LOWRIES CASH & CARRY,332872,Commissioning & Investment,Children's & Education Services,103,Supplies and Services,504,Equipment,5023,Revenue,03.GROCERIES & PROVISIONS
29-Sep-2017,7004114,23.01,AF BLAKEMORE & SON LIMITED T/A LOWRIES CASH & CARRY,332872,"Environment, Housing & Leisure",Cultural & Related Services,104,Supplies and Services,504,Equipment,5023,Revenue,03.GROCERIES & PROVISIONS
29-Sep-2017,7004114,3.54,AF BLAKEMORE & SON LIMITED T/A LOWRIES CASH & CARRY,332872,"Environment, Housing & Leisure",Cultural & Related Services,104,Supplies and Services,504,Equipment,5023,Revenue,03.GROCERIES & PROVISIONS
29-Sep-2017,7004114,-4.82,AF BLAKEMORE & SON LIMITED T/A LOWRIES CASH & CARRY,332872,"Environment, Housing & Leisure",Adult Social Care,101,Supplies and Services,504,Equipment,5023,Revenue,03.GROCERIES & PROVISIONS
29-Sep-2017,7004114,7.16,AF BLAKEMORE & SON LIMITED T/A LOWRIES CASH & CARRY,332872,Commissioning & Investment,Children's & Education Services,103,Supplies and Services,504,Equipment,5023,Revenue,03.GROCERIES & PROVISIONS
29-Sep-2017,7004114,9.55,AF BLAKEMORE & SON LIMITED T/A LOWRIES CASH & CARRY,332872,Commissioning & Investment,Children's & Education Services,103,Supplies and Services,504,Equipment,5023,Revenue,03.GROCERIES & PROVISIONS
29-Sep-2017,7004114,14.71,AF BLAKEMORE & SON LIMITED T/A LOWRIES CASH & CARRY,332872,"Environment, Housing & Leisure",Cultural & Related Services,104,Supplies and Services,504,Equipment,5023,Revenue,03.GROCERIES & PROVISIONS
29-Sep-2017,7004114,34.95,AF BLAKEMORE & SON LIMITED T/A LOWRIES CASH & CARRY,332872,"Environment, Housing & Leisure",Cultural & Related Services,104,Supplies and Services,504,Equipment,5023,Revenue,03.GROCERIES & PROVISIONS
29-Sep-2017,7004114,21.10,AF BLAKEMORE & SON LIMITED T/A LOWRIES CASH & CARRY,332872,"Environment, Housing & Leisure",Cultural & Related Services,104,Supplies and Services,504,Equipment,5023,Revenue,03.GROCERIES & PROVISIONS
29-Sep-2017,7004114,16.84,AF BLAKEMORE & SON LIMITED T/A LOWRIES CASH & CARRY,332872,Commissioning & Investment,Children's & Education Services,103,Supplies and Services,504,Equipment,5023,Revenue,03.GROCERIES & PROVISIONS
29-Sep-2017,7004114,9.35,AF BLAKEMORE & SON LIMITED T/A LOWRIES CASH & CARRY,332872,Commissioning & Investment,Children's & Education Services,103,Supplies and Services,504,Equipment,5023,Revenue,03.GROCERIES & PROVISIONS
29-Sep-2017,7004114,10.59,AF BLAKEMORE & SON LIMITED T/A LOWRIES CASH & CARRY,332872,Commissioning & Investment,Children's & Education Services,103,Supplies and Services,504,Equipment,5023,Revenue,03.GROCERIES & PROVISIONS
29-Sep-2017,7004114,5.10,AF BLAKEMORE & SON LIMITED T/A LOWRIES CASH & CARRY,332872,Commissioning & Investment,Children's & Education Services,103,Supplies and Services,504,Equipment,5023,Revenue,03.GROCERIES & PROVISIONS
29-Sep-2017,7004114,33.56,AF BLAKEMORE & SON LIMITED T/A LOWRIES CASH & CARRY,332872,Commissioning & Investment,Children's & Education Services,103,Supplies and Services,504,Equipment,5023,Revenue,03.GROCERIES & PROVISIONS
29-Sep-2017,7004114,7.12,AF BLAKEMORE & SON LIMITED T/A LOWRIES CASH & CARRY,332872,"Environment, Housing & Leisure",Cultural & Related Services,104,Supplies and Services,504,Equipment,5023,Revenue,03.GROCERIES & PROVISIONS
29-Sep-2017,7004114,9.83,AF BLAKEMORE & SON LIMITED T/A LOWRIES CASH & CARRY,332872,"Environment, Housing & Leisure",Cultural & Related Services,104,Supplies and Services,504,Equipment,5023,Revenue,03.GROCERIES & PROVISIONS
29-Sep-2017,7004114,9.34,AF BLAKEMORE & SON LIMITED T/A LOWRIES CASH & CARRY,332872,"Environment, Housing & Leisure",Cultural & Related Services,104,Supplies and Services,504,Equipment,5023,Revenue,03.GROCERIES & PROVISIONS
29-Sep-2017,7004114,73.20,AF BLAKEMORE & SON LIMITED T/A LOWRIES CASH & CARRY,332872,"Environment, Housing & Leisure",Cultural & Related Services,104,Supplies and Services,504,Equipment,5023,Revenue,03.GROCERIES & PROVISIONS
29-Sep-2017,7004114,18.48,AF BLAKEMORE & SON LIMITED T/A LOWRIES CASH & CARRY,332872,Commissioning & Investment,Children's & Education Services,103,Supplies and Services,504,Equipment,5023,Revenue,03.GROCERIES & PROVISIONS
29-Sep-2017,7004114,13.20,AF BLAKEMORE & SON LIMITED T/A LOWRIES CASH & CARRY,332872,Commissioning & Investment,Children's & Education Services,103,Supplies and Services,504,Equipment,5023,Revenue,03.GROCERIES & PROVISIONS
29-Sep-2017,7004114,24.60,AF BLAKEMORE & SON LIMITED T/A LOWRIES CASH & CARRY,332872,Commissioning & Investment,Children's & Education Services,103,Supplies and Services,504,Equipment,5023,Revenue,03.GROCERIES & PROVISIONS
29-Sep-2017,7004114,8.39,AF BLAKEMORE & SON LIMITED T/A LOWRIES CASH & CARRY,332872,Commissioning & Investment,Children's & Education Services,103,Supplies and Services,504,Equipment,5023,Revenue,03.GROCERIES & PROVISIONS
29-Sep-2017,7004114,5.62,AF BLAKEMORE & SON LIMITED T/A LOWRIES CASH & CARRY,332872,"Environment, Housing & Leisure",Adult Social Care,101,Supplies and Services,504,Equipment,5023,Revenue,03.GROCERIES & PROVISIONS
29-Sep-2017,7004114,11.61,AF BLAKEMORE & SON LIMITED T/A LOWRIES CASH & CARRY,332872,"Environment, Housing & Leisure",Adult Social Care,101,Supplies and Services,504,Equipment,5023,Revenue,03.GROCERIES & PROVISIONS
29-Sep-2017,7004114,5.62,AF BLAKEMORE & SON LIMITED T/A LOWRIES CASH & CARRY,332872,"Environment, Housing & Leisure",Adult Social Care,101,Supplies and Services,504,Equipment,5023,Revenue,03.GROCERIES & PROVISIONS
29-Sep-2017,7004114,17.12,AF BLAKEMORE & SON LIMITED T/A LOWRIES CASH & CARRY,332872,Commissioning & Investment,Children's & Education Services,103,Supplies and Services,504,Equipment,5023,Revenue,03.GROCERIES & PROVISIONS
29-Sep-2017,7004114,6.24,AF BLAKEMORE & SON LIMITED T/A LOWRIES CASH & CARRY,332872,Commissioning & Investment,Children's & Education Services,103,Supplies and Services,504,Equipment,5023,Revenue,03.GROCERIES & PROVISIONS
29-Sep-2017,7004114,42.00,AF BLAKEMORE & SON LIMITED T/A LOWRIES CASH & CARRY,332872,Commissioning & Investment,Children's & Education Services,103,Supplies and Services,504,Equipment,5023,Revenue,03.GROCERIES & PROVISIONS
29-Sep-2017,7004114,32.90,AF BLAKEMORE & SON LIMITED T/A LOWRIES CASH & CARRY,332872,"Environment, Housing & Leisure",Adult Social Care,101,Supplies and Services,504,Equipment,5023,Revenue,03.GROCERIES & PROVISIONS
29-Sep-2017,7004114,15.82,AF BLAKEMORE & SON LIMITED T/A LOWRIES CASH & CARRY,332872,"Environment, Housing & Leisure",Adult Social Care,101,Supplies and Services,504,Equipment,5023,Revenue,03.GROCERIES & PROVISIONS
29-Sep-2017,7004114,13.32,AF BLAKEMORE & SON LIMITED T/A LOWRIES CASH & CARRY,332872,Commissioning & Investment,Children's & Education Services,103,Supplies and Services,504,Equipment,5023,Revenue,03.GROCERIES & PROVISIONS
29-Sep-2017,7004114,18.96,AF BLAKEMORE & SON LIMITED T/A LOWRIES CASH & CARRY,332872,Commissioning & Investment,Children's & Education Services,103,Supplies and Services,504,Equipment,5023,Revenue,03.GROCERIES & PROVISIONS
29-Sep-2017,7004114,72.34,AF BLAKEMORE & SON LIMITED T/A LOWRIES CASH & CARRY,332872,Commissioning & Investment,Children's & Education Services,103,Supplies and Services,504,Equipment,5023,Revenue,03.GROCERIES & PROVISIONS
29-Sep-2017,7004114,10.52,AF BLAKEMORE & SON LIMITED T/A LOWRIES CASH & CARRY,332872,Commissioning & Investment,Children's & Education Services,103,Supplies and Services,504,Equipment,5023,Revenue,03.GROCERIES & PROVISIONS
29-Sep-2017,7004114,10.71,AF BLAKEMORE & SON LIMITED T/A LOWRIES CASH & CARRY,332872,"Environment, Housing & Leisure",Cultural & Related Services,104,Supplies and Services,504,Equipment,5023,Revenue,03.GROCERIES & PROVISIONS
29-Sep-2017,7004114,5.23,AF BLAKEMORE & SON LIMITED T/A LOWRIES CASH & CARRY,332872,"Environment, Housing & Leisure",Adult Social Care,101,Supplies and Services,504,Equipment,5023,Revenue,03.GROCERIES & PROVISIONS
29-Sep-2017,7004114,12.30,AF BLAKEMORE & SON LIMITED T/A LOWRIES CASH & CARRY,332872,"Environment, Housing & Leisure",Cultural & Related Services,104,Supplies and Services,504,Equipment,5023,Revenue,03.GROCERIES & PROVISIONS
29-Sep-2017,7004114,4.28,AF BLAKEMORE & SON LIMITED T/A LOWRIES CASH & CARRY,332872,"Environment, Housing & Leisure",Cultural & Related Services,104,Supplies and Services,504,Equipment,5023,Revenue,03.GROCERIES & PROVISIONS
